Workbook

Sheet Management Input
D1: Chestnut Decision Support Tool
F2: Version 2.0
D3: Establishment Decisions: | M3: Harvesting and Marketing Decisions:
D4: Site Prep: | E4: Herbicide only (1 qt/ac.) | N4: Harvest Method: | P4: Nut wizard
D6: Spacing (Ft): | E6: 30 | F6: x | G6: 30 | N6: Expected Rate of Return: | Q6: 0.05 | R6: enter a percentage return for this investment
D8: Layout/Design: | E8: Rectangular/Square | N8: Expected Price/lb for nuts | Q8: 3
D10: Site Quality: | E10: Good | N10: Number of acres in the orchard: | R10: 8
G11: Graft Technique:
D12: Planting Stock: | E12: Grafted Seedlings | H12: Self Grafted (Field) | N12: UMCA Guide to Growing Chinese Chestnuts in Missouri
D14: Fertilization: | E14: Good early growth (> 8")
D16: Tree Staking: | E16: Steel conduit pipe
D18: Irrigation system: | E18: Drip Irrigation
D20: Management Decisions: | M20: Financial Results
D21: Thinning: | E21: 0.1 | H21: Enter a % of trees removed (i.e. 50%, 33%) | M21: Based on the information that was entered in the model, this Chestnut Orchard will have the following financial performance over a 70 year period:
D24: Fertilization: | E24: Bearing trees (46% N) | Q24: 1 Acre | S24: =R10 -> 8 | T24: acres
M25: Initial Number of Trees/ac | Q25: ='Cost Budgets'!B3 -> 48.4 | S25: =Q25*$S$24 -> 387.2
D26: Pruning: | E26: Spring prune | M26: Expected Price/lb for nuts | Q26: ='Financial Analysis'!C18 -> 3
M27: ="PV of Revenues/ac @ "&TEXT(Q6,"0%") -> PV of Revenues/ac @ 5% | Q27: =IFERROR('Financial Analysis'!D71,0) -> 79326.26631 | S27: =Q27*$S$24 -> 634610.1305
D28: Weed Control: | E28: Herbicide (Roundup TM) | M28: ="PV of Costs /ac @ "&TEXT(Q6,"0%") -> PV of Costs /ac @ 5% | Q28: =IFERROR('Financial Analysis'!D73,0) -> 33081.21661 | S28: =Q28*$S$24 -> 264649.7329
M29: ="NPV/ac @ "&TEXT(Q6,"0%") -> NPV/ac @ 5% | Q29: =IFERROR('Financial Analysis'!D75,0) -> 46245.0497 | S29: 369960.3976
D30: Pest Control: | E30: Warrior | M30: Rate of Return (MIRR) | Q30: =IFERROR('Financial Analysis'!D77,0) -> 0.1178599388 | S30: =Q30 -> 0.1178599388
M31: Years to Break Even | Q31: =IFERROR('Financial Analysis'!D79,0) -> 5 | S31: =Q31 -> 5
D32: Disease Control: | E32: Abound | M32: ="AEV/ac @ "&TEXT(Q6,"0%") -> AEV/ac @ 5% | Q32: =IFERROR('Financial Analysis'!D81,0) -> 2443.042019 | S32: =Q32*S24 -> 19544.33615
M33: =IF(Q29=0, "The model is indicating that you are not removing enough trees with each thinning. To correct for this error, either increase your initial tree spacing or increase your thinning percentage"," ") -> 
D34: Deer Control: | E34: Game Deterrent Fencing
L78: =IF('Cost Budgets'!B95=0,1,0) -> 0

Sheet Cost Budgets
A1: Establishment Costs: | F1: Cost /acre | G1: Cost/tree
A2: Site Prep | B2: ='Management Input'!E4 -> Herbicide only (1 qt/ac.) | F2: =LOOKUP($B$2,'Input Tables'!$A$2:$A$5,'Input Tables'!B2:B5) -> 120 | G2: =LOOKUP($B$2,'Input Tables'!$A$2:$A$5,'Input Tables'!C2:C5) -> 2.479338843
A3: Initial # of Stems | B3: ='Cost Budgets'!B91 -> 48.4
A4: Planting Stock | B4: ='Management Input'!E12 -> Grafted Seedlings
A5: Graft Technique | B5: ='Management Input'!H12 -> Self Grafted (Field) | F5: ='Cost Budgets'!C95 -> 653.4 | G5: ='Cost Budgets'!B95 -> 13.5
A6: Fertilization | B6: ='Management Input'!E14 -> Good early growth (> 8") | F6: =LOOKUP($B$6,Fert,'Input Tables'!B20:B22) -> 49.368 | G6: =LOOKUP($B$6,Fert,'Input Tables'!C20:C22) -> 1.02
A7: Tree Staking | B7: ='Management Input'!E16 -> Steel conduit pipe | F7: =LOOKUP($B$7,'Input Tables'!$A$28:$A$32,'Input Tables'!B28:B32) -> 96.8 | G7: =LOOKUP($B$7,'Input Tables'!$A$28:$A$32,'Input Tables'!C28:C32) -> 2
A8: Irrigation System | B8: ='Management Input'!E18 -> Drip Irrigation | F8: =LOOKUP(B8,Irrigate,'Input Tables'!B106:B110) -> 445.5
D9: Subtotal: | F9: =SUM(F2:F8) -> 1365.068
A10: Management Costs:
A11: Thinning | B11: ='Management Input'!E21 -> 0.1
A12: Fertilization | B12: ='Management Input'!E24 -> Bearing trees (46% N) | F12: =LOOKUP($B$12,ManFert,'Input Tables'!B35:B38) -> 90 | G12: =LOOKUP($B$12,ManFert,'Input Tables'!C35:C38) -> 1.859504132
A13: Pruning | B13: ='Management Input'!E26 -> Spring prune | F13: =LOOKUP($B$13,Prune1,'Input Tables'!B41:B44) -> 48.4 | G13: =LOOKUP($B$13,Prune1,'Input Tables'!C41:C44) -> 1
A14: Weed Control | B14: ='Management Input'!E28 -> Herbicide (Roundup TM) | F14: =LOOKUP($B$14,Weed,'Input Tables'!B47:B51) -> 120 | G14: =LOOKUP($B$14,Weed,'Input Tables'!C47:C51) -> 2.479338843
A15: Pest Control | B15: ='Management Input'!E30 -> Warrior | F15: =LOOKUP($B$15,PestC,'Input Tables'!B54:B65) -> 9.408 | G15: =LOOKUP($B$15,PestC,'Input Tables'!C54:C65) -> 0.1943801653
A16: Disease Control | B16: ='Management Input'!E32 -> Abound | F16: =LOOKUP($B$16,DiseaseC,'Input Tables'!B68:B73) -> 0 | G16: =LOOKUP($B$16,DiseaseC,'Input Tables'!C68:C73) -> 0
A17: Deer Control | B17: ='Management Input'!E34 -> Game Deterrent Fencing | F17: =LOOKUP($B$17,DeerC,'Input Tables'!B76:B82) -> 349.44 | G17: =LOOKUP($B$17,DeerC,'Input Tables'!C76:C82) -> 7.219834711
D18: Subtotal: | F18: =SUM(F12:F17) -> 617.248
A19: Harvesting Costs: | G19: Cost/lb
A20: Harvesting Method | B20: ='Management Input'!P4 -> Nut wizard | F20: =LOOKUP($B$20,Harvest,'Input Tables'!B92:B96) -> 2058.649213
A89: Spacing
A90: ='Management Input'!E8 -> Rectangular/Square | B90: # of Stems/ac
A91: =TEXT('Management Input'!E6,"0")&" x "&TEXT('Management Input'!G6,"0") -> 30 x 30 | B91: =IF(OR(A90="rectangular/square",A90="diamond"),43560/('Management Input'!E6*'Management Input'!G6),(43560/((('Management Input'!E6/2)^2)*3.14))) -> 48.4
A93: Seedling Costs | B93: $/Stem | C93: $/Acre
A94: ='Management Input'!E12 -> Grafted Seedlings
A95: ='Management Input'!H12 -> Self Grafted (Field) | B95: =VLOOKUP(A94,I100:N104,(IF(A95="Not Grafted",2,IF(A95="Nursery Grafted",3,IF(A95="Professionally Grafted",4,IF(A95="Self Grafted (Bench)",5,6)))))) -> 13.5 | C95: =B95*'Cost Budgets'!B3 -> 653.4
A97: Nut Price | B97: ='Management Input'!Q8 -> 3 | C97: per lb.
I98: Grafting Cost Table
J99: Not Grafted | K99: Nursery Grafted | L99: Professionally Grafted | M99: Self Grafted (Bench) | N99: Self Grafted (Field)
I100: Grafted Seedlings | K100: ='Input Tables'!C13 -> 20 | L100: ='Input Tables'!C13 -> 20 | M100: ='Input Tables'!C88+'Input Tables'!C14 -> 13.5 | N100: =J101+'Input Tables'!C89 -> 13.5
I101: Seed | J101: ='Input Tables'!C14 -> 3.5 | L101: =J101+'Input Tables'!C87 -> 21.5 | M101: =J101+'Input Tables'!C88 -> 13.5 | N101: =J101+'Input Tables'!C89 -> 13.5
I102: Seedlings (bare root) | J102: ='Input Tables'!C15 -> 4 | L102: =J102+'Input Tables'!C87 -> 22 | M102: =J102+'Input Tables'!C88 -> 14 | N102: =J102+'Input Tables'!C89 -> 14
I103: Seedlings (RPM™) | J103: ='Input Tables'!C16 -> 17.5 | K103: =J103+'Input Tables'!C86 -> 35.5 | L103: =J103+'Input Tables'!C87 -> 35.5 | N103: =J103+'Input Tables'!C89 -> 27.5
I104: User Defined | J104: ='Input Tables'!C17 -> 0

Sheet Financial Analysis
A1: Tree Growth Estimations | C1: Site Index | D1: 1 | E1: =D1+1 -> 2 | F1: =E1+1 -> 3 | G1: 4 | H1: 5 | I1: 6 | J1: 7 | K1: 8 | L1: 9 | M1: 10 | N1: 11 | O1: 12 | P1: 13 | Q1: 14 | R1: 15 | S1: 16 | T1: 17 | U1: 18 | V1: 19 | W1: 20 | X1: 21 | Y1: 22 | Z1: 23 | AA1: 24 | AB1: 25 | AC1: 26 | AD1: 27 | AE1: 28 | AF1: 29 | AG1: 30 | AH1: 31 | AI1: 32 | AJ1: 33 | AK1: 34 | AL1: 35 | AM1: 36 | AN1: 37 | AO1: 38 | AP1: 39 | AQ1: 40 | AR1: 41 | AS1: 42 | AT1: 43 | AU1: 44 | AV1: 45 | AW1: 46 | AX1: 47 | AY1: 48 | AZ1: 49 | BA1: 50 | BB1: 51 | BC1: 52 | BD1: 53 | BE1: 54 | BF1: 55 | BG1: 56 | BH1: 57 | BI1: 58 | BJ1: 59 | BK1: 60
B2: Average TC per Stem | C2: ='Management Input'!$E$10 -> Good | D2: =E2-$I$16 -> 0.5 | E2: 1 | F2: 1.5 | G2: =H2-$I$16 -> 2 | H2: =LOOKUP(C2,SI,'Input Tables'!C99:C102) -> 2.5 | I2: =H2+(H16*H15) -> 3 | J2: 3.5 | K2: 4 | L2: 4.5 | M2: 5 | N2: 5.5 | O2: 6 | P2: 6.5 | Q2: 7 | R2: 7.5 | S2: 8 | T2: 8.452772423 | U2: 8.888657409 | V2: 9.30683024 | W2: 9.706745045 | X2: 10.11381917 | Y2: 10.50339594 | Z2: 10.90220725 | AA2: 11.30997172 | AB2: 11.70204308 | AC2: 12.10463328 | AD2: 12.49229276 | AE2: 12.89172839 | AF2: 13.30221928 | AG2: 13.69939766 | AH2: 14.1085496 | AI2: 14.50506977 | AJ2: 14.91425746 | AK2: 15.31147523 | AL2: 15.72185885 | AM2: 16.12091271 | AN2: 16.5334618 | AO2: =AN2+(AN16*AN15) -> 16.93529909 | AP2: 17.32631568 | AQ2: 17.73232387 | AR2: 18.12811117 | AS2: 18.53880518 | AT2: 18.93985664 | AU2: 19.33118069 | AV2: 19.73842456 | AW2: 20.13649602 | AX2: 20.55010683 | AY2: 20.95508343 | AZ2: 21.35134693 | BA2: 21.76379085 | BB2: 22.16803862 | BC2: 22.56402128 | BD2: 22.97661669 | BE2: 23.38144383 | BF2: 23.77843952 | BG2: 24.1923001 | BH2: 24.5988078 | BI2: 24.99790251 | BJ2: 25.41395961 | BK2: 25.82306603
C3: Initial Tree Height
B4: Crown Competition Factor | D4: =((C6*3.14*(2*(D2)+2.436)^2)/44000)*100 -> 4.077825558 | E4: =((D6*3.14*(2*(E2)+2.436)^2)/44000)*100 -> 6.796814358 | F4: 10.20660316 | G4: 14.30719196 | H4: 19.09858076 | I4: 24.07290242 | J4: 28.21212544 | K4: 32.17699282 | L4: 35.83905002 | M4: 42.38084609 | N4: 45.60581529 | O4: 52.64704263 | P4: 60.19352452 | Q4: 68.24526096 | R4: 76.80225194 | S4: 85.86449747 | T4: 94.50668978 | U4: 103.2179701 | V4: 111.9361651 | W4: 108.5438834 | X4: 116.7836394 | Y4: 112.4563326 | Z4: 108.2150952 | AA4: 115.6190195 | AB4: 110.672109 | AC4: 117.6766808 | AD4: 112.1621251 | AE4: 106.9135103 | AF4: 113.2248181 | AG4: 107.5533459 | AH4: 113.5341678 | AI4: 107.5362737 | AJ4: 113.2062982 | AK4: 106.9648144 | AL4: 112.3420604 | AM4: 105.9275774 | AN4: 111.0282677 | AO4: 116.1118235 | AP4: 109.0509497 | AQ4: 113.8783333 | AR4: 106.8163408 | AS4: 111.3996363 | AT4: 115.9682338 | AU4: 108.4630642 | AV4: 112.8047077 | AW4: 105.4178148 | AX4: 109.5409939 | AY4: 113.6547365 | AZ4: 105.9780323 | BA4: 109.8868192 | BB4: 113.7866186 | BC4: 105.9053507 | BD4: 109.611941 | BE4: 113.3107078 | BF4: 105.297774 | BG4: 108.8134233 | BH4: 112.3228123 | BI4: 104.2401485 | BJ4: 107.5750711 | BK4: 110.9054816
C5: Initial Density
B6: Stems per Acre | C6: ='Cost Budgets'!B3 -> 48.4 | D6: =C6 -> 48.4 | E6: =D6-E10 -> 48.4 | F6: =E6-F10 -> 48.4 | G6: 48.4 | H6: =G6-(G8+H10) -> 47.4 | I6: 44.4 | J6: 41.4 | K6: 38.4 | L6: 38.4 | M6: 35.4 | N6: 35.4 | O6: 35.4 | P6: 35.4 | Q6: 35.4 | R6: 35.4 | S6: 35.4 | T6: 35.4 | U6: 35.4 | V6: 31.86 | W6: 31.86 | X6: 28.674 | Y6: 25.8066 | Z6: 25.8066 | AA6: 23.22594 | AB6: 23.22594 | AC6: 20.903346 | AD6: 18.8130114 | AE6: 18.8130114 | AF6: 16.93171026 | AG6: 16.93171026 | AH6: 15.23853923 | AI6: 15.23853923 | AJ6: 13.71468531 | AK6: 13.71468531 | AL6: 12.34321678 | AM6: 12.34321678 | AN6: 12.34321678 | AO6: 11.1088951 | AP6: 11.1088951 | AQ6: 9.998005591 | AR6: 9.998005591 | AS6: 9.998005591 | AT6: 8.998205032 | AU6: 8.998205032 | AV6: 8.098384529 | AW6: 8.098384529 | AX6: 8.098384529 | AY6: 7.288546076 | AZ6: 7.288546076 | BA6: 7.288546076 | BB6: 6.559691469 | BC6: 6.559691469 | BD6: 6.559691469 | BE6: 5.903722322 | BF6: 5.903722322 | BG6: 5.903722322 | BH6: 5.31335009 | BI6: 5.31335009 | BJ6: 5.31335009 | BK6: 5.31335009
B8: Mortality Loss (1st 10 years) | C8: 0.08 | D8: =IF(D1<10,RANDBETWEEN(0,($C$8*C6)),0) -> 3 | E8: 0 | F8: 3 | G8: 1 | H8: 3 | I8: 3 | J8: 3 | K8: 0 | L8: 3 | M8: 0 | N8: 0 | O8: 0 | P8: 0 | Q8: 0 | R8: 0 | S8: 0 | T8: 0 | U8: 0 | V8: 0 | W8: 0 | X8: 0 | Y8: 0 | Z8: 0 | AA8: 0 | AB8: 0 | AC8: 0 | AD8: 0 | AE8: 0 | AF8: 0 | AG8: 0 | AH8: 0 | AI8: 0 | AJ8: =IF(AJ1<10,RANDBETWEEN(0,($C$8*AI6)),0) -> 0 | AK8: 0 | AL8: 0 | AM8: 0 | AN8: 0 | AO8: 0 | AP8: 0 | AQ8: 0 | AR8: 0 | AS8: 0 | AT8: 0 | AU8: 0 | AV8: 0 | AW8: 0 | AX8: 0 | AY8: 0 | AZ8: 0 | BA8: 0 | BB8: 0 | BC8: 0 | BD8: 0 | BE8: 0 | BF8: 0 | BG8: 0 | BH8: 0 | BI8: 0 | BJ8: 0 | BK8: 0
C9: Removal %
B10: Thinnings (# of stems removed) | C10: ='Management Input'!E21 -> 0.1 | D10: =IF(D15>0.8,0,(D6*($C$10))) -> 0 | E10: =IF(E15>0.8,0,((D6-D8)*($C$10))) -> 0 | F10: 0 | G10: 0 | H10: 0 | I10: 0 | J10: 0 | K10: 0 | L10: 0 | M10: 0 | N10: 0 | O10: 0 | P10: 0 | Q10: 0 | R10: 0 | S10: 0 | T10: 0 | U10: 0 | V10: 3.54 | W10: 0 | X10: 3.186 | Y10: 2.8674 | Z10: 0 | AA10: 2.58066 | AB10: 0 | AC10: 2.322594 | AD10: 2.0903346 | AE10: 0 | AF10: 1.88130114 | AG10: 0 | AH10: 1.693171026 | AI10: 0 | AJ10: 1.523853923 | AK10: =IF(AK15>0.8,0,((AJ6-AJ8)*($C$10))) -> 0 | AL10: 1.371468531 | AM10: 0 | AN10: 0 | AO10: 1.234321678 | AP10: 0 | AQ10: 1.11088951 | AR10: 0 | AS10: 0 | AT10: 0.9998005591 | AU10: 0 | AV10: 0.8998205032 | AW10: 0 | AX10: 0 | AY10: 0.8098384529 | AZ10: 0 | BA10: 0 | BB10: 0.7288546076 | BC10: 0 | BD10: 0 | BE10: 0.6559691469 | BF10: 0 | BG10: 0 | BH10: 0.5903722322 | BI10: 0 | BJ10: 0 | BK10: 0
B12: Nut Yield/tree | D12: ='Growth models'!B32*(RANDBETWEEN(75,(100*D15))/100) -> -10.551512 | E12: ='Growth models'!C32*(RANDBETWEEN(75,(100*E15))/100) -> -2.063796 | F12: ='Growth models'!D32*(RANDBETWEEN(75,(100*F15))/100) -> 5.41364 | G12: ='Growth models'!E32*(RANDBETWEEN(75,(100*G15))/100) -> 12.460716 | H12: ='Growth models'!F32*(RANDBETWEEN(75,(100*H15))/100) -> 22.79232 | I12: ='Growth models'!G32*(RANDBETWEEN(75,(100*I15))/100) -> 30.736196 | J12: ='Growth models'!H32*(RANDBETWEEN(75,(100*J15))/100) -> 33.34346 | K12: ='Growth models'!I32*(RANDBETWEEN(75,(100*K15))/100) -> 45.44652 | L12: ='Growth models'!J32*(RANDBETWEEN(75,(100*L15))/100) -> 42.50848 | M12: ='Growth models'!K32*(RANDBETWEEN(75,(100*M15))/100) -> 49.40326 | N12: ='Growth models'!L32*(RANDBETWEEN(75,(100*N15))/100) -> 49.812528 | O12: ='Growth models'!M32*(RANDBETWEEN(75,(100*O15))/100) -> 55.541928 | P12: ='Growth models'!N32*(RANDBETWEEN(75,(100*P15))/100) -> 60.45554 | Q12: ='Growth models'!O32*(RANDBETWEEN(75,(100*Q15))/100) -> 74.986992 | R12: ='Growth models'!P32*(RANDBETWEEN(75,(100*R15))/100) -> 84.43876 | S12: ='Growth models'!Q32*(RANDBETWEEN(75,(100*S15))/100) -> 68.779088 | T12: ='Growth models'!R32*(RANDBETWEEN(75,(100*T15))/100) -> 80.34846 | U12: ='Growth models'!S32*(RANDBETWEEN(75,(100*U15))/100) -> 79.58898 | V12: ='Growth models'!T32*(RANDBETWEEN(75,(100*V15))/100) -> 78.308692 | W12: ='Growth models'!U32*(RANDBETWEEN(75,(100*W15))/100) -> 83.8896 | X12: ='Growth models'!V32*(RANDBETWEEN(75,(100*X15))/100) -> 80.8161 | Y12: ='Growth models'!W32*(RANDBETWEEN(75,(100*Y15))/100) -> 83.894576 | Z12: ='Growth models'!X32*(RANDBETWEEN(75,(100*Z15))/100) -> 89.0883 | AA12: ='Growth models'!Y32*(RANDBETWEEN(75,(100*AA15))/100) -> 86.1837 | AB12: ='Growth models'!Z32*(RANDBETWEEN(75,(100*AB15))/100) -> 93.4576 | AC12: ='Growth models'!AA32*(RANDBETWEEN(75,(100*AC15))/100) -> 88.8831 | AD12: ='Growth models'!AB32*(RANDBETWEEN(75,(100*AD15))/100) -> 94.790204 | AE12: ='Growth models'!AC32*(RANDBETWEEN(75,(100*AE15))/100) -> 90.9465 | AF12: ='Growth models'!AD32*(RANDBETWEEN(75,(100*AF15))/100) -> 92.981136 | AG12: ='Growth models'!AE32*(RANDBETWEEN(75,(100*AG15))/100) -> 98.5936 | AH12: ='Growth models'!AF32*(RANDBETWEEN(75,(100*AH15))/100) -> 95.454436 | AI12: ='Growth models'!AG32*(RANDBETWEEN(75,(100*AI15))/100) -> 100.867356 | AJ12: ='Growth models'!AH32*(RANDBETWEEN(75,(100*AJ15))/100) -> 94.94984 | AK12: ='Growth models'!AI32*(RANDBETWEEN(75,(100*AK15))/100) -> 100.15648 | AL12: ='Growth models'!AJ32*(RANDBETWEEN(75,(100*AL15))/100) -> 97.75116 | AM12: ='Growth models'!AK32*(RANDBETWEEN(75,(100*AM15))/100) -> 96.498556 | AN12: ='Growth models'!AL32*(RANDBETWEEN(75,(100*AN15))/100) -> 98.914004 | AO12: ='Growth models'!AM32*(RANDBETWEEN(75,(100*AO15))/100) -> 97.48908 | AP12: ='Growth models'!AN32*(RANDBETWEEN(75,(100*AP15))/100) -> 93.5007 | AQ12: ='Growth models'!AO32*(RANDBETWEEN(75,(100*AQ15))/100) -> 93.1965 | AR12: ='Growth models'!AP32*(RANDBETWEEN(75,(100*AR15))/100) -> 94.071888 | AS12: ='Growth models'!AQ32*(RANDBETWEEN(75,(100*AS15))/100) -> 97.349804 | AT12: ='Growth models'!AR32*(RANDBETWEEN(75,(100*AT15))/100) -> 91.9635 | AU12: ='Growth models'!AS32*(RANDBETWEEN(75,(100*AU15))/100) -> 92.689296 | AV12: ='Growth models'!AT32*(RANDBETWEEN(75,(100*AV15))/100) -> 90.9465 | AW12: ='Growth models'!AU32*(RANDBETWEEN(75,(100*AW15))/100) -> 96.42784 | AX12: ='Growth models'!AV32*(RANDBETWEEN(75,(100*AX15))/100) -> 94.632204 | AY12: ='Growth models'!AW32*(RANDBETWEEN(75,(100*AY15))/100) -> 91.6531 | AZ12: ='Growth models'!AX32*(RANDBETWEEN(75,(100*AZ15))/100) -> 88.7037 | BA12: ='Growth models'!AY32*(RANDBETWEEN(75,(100*BA15))/100) -> 92.84238 | BB12: ='Growth models'!AZ32*(RANDBETWEEN(75,(100*BB15))/100) -> 92.264732 | BC12: ='Growth models'!BA32*(RANDBETWEEN(75,(100*BC15))/100) -> 91.709204 | BD12: ='Growth models'!BB32*(RANDBETWEEN(75,(100*BD15))/100) -> 91.18338 | BE12: ='Growth models'!BC32*(RANDBETWEEN(75,(100*BE15))/100) -> 86.1027 | BF12: ='Growth models'!BD32*(RANDBETWEEN(75,(100*BF15))/100) -> 91.3936 | BG12: ='Growth models'!BE32*(RANDBETWEEN(75,(100*BG15))/100) -> 90.99744 | BH12: ='Growth models'!BF32*(RANDBETWEEN(75,(100*BH15))/100) -> 86.128976 | BI12: ='Growth models'!BG32*(RANDBETWEEN(75,(100*BI15))/100) -> 88.13532 | BJ12: ='Growth models'!BH32*(RANDBETWEEN(75,(100*BJ15))/100) -> 86.821812 | BK12: ='Growth models'!BI32*(RANDBETWEEN(75,(100*BK15))/100) -> 88.97138
B14: Nut Yield/Acre | D14: =D12*D4 -> -43.02722531 | E14: -14.02723829 | F14: 55.25487512 | G14: 178.2778558 | H14: 435.3009642 | I14: 739.909447 | J14: 940.689876 | K14: 1462.332348 | L14: 1523.463541 | M14: 2093.751958 | N14: 2271.740951 | O14: 2924.118251 | P14: 3639.03203 | Q14: 5117.506838 | R14: 6485.086919 | S14: 5905.681828 | T14: 7593.466984 | U14: 8215.012956 | V14: 8765.574679 | W14: 9105.70296 | X14: 9437.998283 | Y14: 9434.476344 | Z14: 9640.698863 | AA14: 9964.474889 | AB14: 10343.14969 | AC14: 10459.46819 | AD14: 10631.87072 | AE14: 9723.409566 | AF14: 10527.77221 | AG14: 10604.07156 | AH14: 10837.33995 | AI14: 10846.8996 | AJ14: =AJ12*AJ4 -> 10748.9199 | AK14: 10713.21929 | AL14: 10981.56672 | AM14: 10221.85826 | AN14: 10982.25051 | AO14: 11319.63485 | AP14: 10196.34013 | AQ14: 10613.06209 | AR14: 10048.41485 | AS14: 10844.73276 | AT14: 10664.84467 | AU14: 10053.36506 | AV14: 10259.19335 | AW14: 10165.21218 | AX14: 10366.10568 | AY14: 10416.80893 | AZ14: 9400.643581 | BA14: 10202.15382 | BB14: 10498.49187 | BC14: 9712.495409 | BD14: 9994.787267 | BE14: 9756.357884 | BF14: 9623.542633 | BG14: 9901.742962 | BH14: 9674.248802 | BI14: 9187.238845 | BJ14: 9339.862598 | BK14: 9867.413749
A15: Growth Ratio | D15: 1 | E15: =IF(E4<80,1,(1.411-(0.00485*E4)-(7.643/E4))) -> 1 | F15: =IF(F4<80,1,(1.411-(0.00485*F4)-(7.643/F4))) -> 1 | G15: 1 | H15: 1 | I15: 1 | J15: 1 | K15: 1 | L15: 1 | M15: 1 | N15: 1 | O15: 1 | P15: 1 | Q15: 1 | R15: 1 | S15: 0.9055448454 | T15: 0.8717699728 | U15: 0.8363456614 | V15: 0.7998296112 | W15: 0.8141482485 | X15: 0.7791535377 | Y15: 0.7976226284 | Z15: 0.8155289339 | AA15: 0.7841427147 | AB15: 0.8051804146 | AC15: 0.7753189513 | AD15: 0.7988712611 | AE15: 0.8209817839 | AF15: 0.7943567637 | AG15: 0.8183038621 | AH15: 0.7930403449 | AI15: 0.8183753804 | AJ15: 0.7944355424 | AK15: 0.8207672471 | AL15: 0.798107717 | AM15: 0.8250981788 | AN15: 0.8036745765 | AO15: 0.7820331797 | AP15: 0.8120163884 | AQ15: 0.7915745948 | AR15: 0.8213880245 | AS15: 0.8021029223 | AT15: 0.782648087 | AU15: 0.8144877542 | AV15: 0.7961429032 | AW15: 0.8272216211 | AX15: 0.8099532138 | AY15: 0.7925270006 | AZ15: 0.8248878238 | BA15: 0.8084955442 | BB15: 0.7919653145 | BC15: 0.8251908354 | BD15: 0.8096542817 | BE15: 0.7939913658 | BF15: 0.827721166 | BG15: 0.8130154009 | BH15: 0.7981894118 | BI15: 0.8321142023 | BJ15: 0.8182128462 | BK15: 0.8041938764
A16: Expected Growth Rate | E16: =F16 -> 0.5 | F16: 0.5 | G16: 0.5 | H16: =I16 -> 0.5 | I16: =LOOKUP(C2,SI,'Input Tables'!B99:B102) -> 0.5 | J16: =I16 -> 0.5 | K16: =J16 -> 0.5 | L16: 0.5 | M16: 0.5 | N16: 0.5 | O16: 0.5 | P16: 0.5 | Q16: 0.5 | R16: 0.5 | S16: 0.5 | T16: 0.5 | U16: 0.5 | V16: 0.5 | W16: 0.5 | X16: 0.5 | Y16: 0.5 | Z16: 0.5 | AA16: 0.5 | AB16: 0.5 | AC16: 0.5 | AD16: 0.5 | AE16: 0.5 | AF16: 0.5 | AG16: 0.5 | AH16: 0.5 | AI16: 0.5 | AJ16: 0.5 | AK16: 0.5 | AL16: 0.5 | AM16: 0.5 | AN16: 0.5 | AO16: 0.5 | AP16: 0.5 | AQ16: 0.5 | AR16: 0.5 | AS16: 0.5 | AT16: 0.5 | AU16: 0.5 | AV16: 0.5 | AW16: 0.5 | AX16: 0.5 | AY16: 0.5 | AZ16: 0.5 | BA16: 0.5 | BB16: 0.5 | BC16: 0.5 | BD16: 0.5 | BE16: 0.5 | BF16: 0.5 | BG16: 0.5 | BH16: 0.5 | BI16: 0.5 | BJ16: 0.5 | BK16: 0.5
A17: Nut Revenue | C17: Nut Price/lb
B18: Gross Revenue per Tree | C18: ='Management Input'!Q8 -> 3 | D18: =IF(D12<0,0,(D12*$C$18)) -> 0 | E18: =IF(E12<0,0,(E12*$C$18)) -> 0 | F18: 16.24092 | G18: 37.382148 | H18: 68.37696 | I18: 92.208588 | J18: 100.03038 | K18: 136.33956 | L18: 127.52544 | M18: 148.20978 | N18: 149.437584 | O18: 166.625784 | P18: 181.36662 | Q18: 224.960976 | R18: 253.31628 | S18: 206.337264 | T18: 241.04538 | U18: 238.76694 | V18: 234.926076 | W18: 251.6688 | X18: 242.4483 | Y18: 251.683728 | Z18: 267.2649 | AA18: 258.5511 | AB18: 280.3728 | AC18: 266.6493 | AD18: 284.370612 | AE18: 272.8395 | AF18: 278.943408 | AG18: 295.7808 | AH18: 286.363308 | AI18: 302.602068 | AJ18: 284.84952 | AK18: 300.46944 | AL18: 293.25348 | AM18: 289.495668 | AN18: 296.742012 | AO18: 292.46724 | AP18: 280.5021 | AQ18: 279.5895 | AR18: 282.215664 | AS18: 292.049412 | AT18: 275.8905 | AU18: 278.067888 | AV18: 272.8395 | AW18: 289.28352 | AX18: 283.896612 | AY18: 274.9593 | AZ18: 266.1111 | BA18: 278.52714 | BB18: 276.794196 | BC18: 275.127612 | BD18: 273.55014 | BE18: 258.3081 | BF18: 274.1808 | BG18: 272.99232 | BH18: 258.386928 | BI18: 264.40596 | BJ18: 260.465436 | BK18: 266.91414
B20: Gross Revenue per Acre (Potential) | D20: =D18*D6 -> 0 | E20: 0 | F20: 786.060528 | G20: 1809.295963 | H20: 3241.067904 | I20: 4094.061307 | J20: 4141.257732 | K20: 5235.439104 | L20: 4896.976896 | M20: 5246.626212 | N20: 5290.090474 | O20: 5898.552754 | P20: 6420.378348 | Q20: 7963.61855 | R20: 8967.396312 | S20: 7304.339146 | T20: 8533.006452 | U20: 8452.349676 | V20: 7484.744781 | W20: 8018.167968 | X20: 6951.962554 | Y20: 6495.101295 | Z20: 6897.198368 | AA20: 6005.092336 | AB20: 6511.92183 | AC20: 5573.862579 | AD20: 5349.867565 | AE20: 5132.932624 | AF20: 4722.988963 | AG20: 5008.074806 | AH20: 4363.758504 | AI20: 4611.213486 | AJ20: =AJ18*AJ6 -> 3906.621528 | AK20: 4120.843815 | AL20: 3619.691275 | AM20: 3573.307787 | AN20: 3662.750982 | AO20: 3248.98789 | AP20: 3116.068405 | AQ20: 2795.337384 | AR20: 2821.593787 | AS20: 2919.911654 | AT20: 2482.519285 | AU20: 2502.111869 | AV20: 2209.559186 | AW20: 2342.729183 | AX20: 2299.10393 | AY20: 2004.053527 | AZ20: 1939.563014 | BA20: 2030.057893 | BB20: 1815.684526 | BC20: 1804.752249 | BD20: 1794.40452 | BE20: 1524.979296 | BF20: 1618.687309 | BG20: 1611.670853 | BH20: 1372.900207 | BI20: 1404.881431 | BJ20: 1383.944048 | BK20: 1418.20827
B22: Gross Revenue per Acre (Actual) | D22: =IF(D58=0,0,D20) -> 0 | E22: 0 | F22: 0 | G22: 0 | H22: 3241.067904 | I22: 4094.061307 | J22: 4141.257732 | K22: 5235.439104 | L22: 4896.976896 | M22: 5246.626212 | N22: 5290.090474 | O22: 5898.552754 | P22: 6420.378348 | Q22: 7963.61855 | R22: 8967.396312 | S22: 7304.339146 | T22: 8533.006452 | U22: 8452.349676 | V22: 7484.744781 | W22: 8018.167968 | X22: 6951.962554 | Y22: 6495.101295 | Z22: 6897.198368 | AA22: 6005.092336 | AB22: 6511.92183 | AC22: 5573.862579 | AD22: 5349.867565 | AE22: 5132.932624 | AF22: 4722.988963 | AG22: 5008.074806 | AH22: 4363.758504 | AI22: 4611.213486 | AJ22: =IF(AJ58=0,0,AJ20) -> 3906.621528 | AK22: 4120.843815 | AL22: 3619.691275 | AM22: 3573.307787 | AN22: 3662.750982 | AO22: 3248.98789 | AP22: 3116.068405 | AQ22: 2795.337384 | AR22: 2821.593787 | AS22: 2919.911654 | AT22: 2482.519285 | AU22: 2502.111869 | AV22: 2209.559186 | AW22: 2342.729183 | AX22: 2299.10393 | AY22: 0 | AZ22: 0 | BA22: 0 | BB22: 0 | BC22: 0 | BD22: 0 | BE22: 0 | BF22: 0 | BG22: 0 | BH22: 0 | BI22: 0 | BJ22: 0 | BK22: 0
A25: Establishment Costs
B26: Site Prep | D26: ='Cost Budgets'!F2 -> 120
E27: Replant based on Mortality Loss
B28: Planting Stock/Grafting | D28: ='Cost Budgets'!F5 -> 653.4 | E28: =D8*'Cost Budgets'!$G$5 -> 40.5 | F28: =E8*'Cost Budgets'!$G$5 -> 0 | G28: =F8*'Cost Budgets'!$G$5 -> 40.5
B30: Field Grafting
B32: Fertilization (establishment) | D32: ='Cost Budgets'!F6 -> 49.368
B34: Irrigation | D34: =IF('Management Input'!E18="Drip Irrigation", 'Input Tables'!B106,IF('Management Input'!E18="Hand water", 'Input Tables'!E107, IF('Management Input'!E18="Sprinkler",'Input Tables'!E108,IF('Management Input'!E18="User Defined", 'Input Tables'!B110,0)))) -> 445.5 | E34: =IF(D34<'Input Tables'!$B$106,D34,0) -> 0 | F34: =IF(E34<'Input Tables'!$B$106,E34,0) -> 0 | G34: =IF(F34<'Input Tables'!$B$106,F34,0) -> 0 | H34: =IF(G34<'Input Tables'!$B$106,G34,0) -> 0 | I34: =IF(H34<'Input Tables'!$B$106,H34,0) -> 0 | J34: =IF(I34<'Input Tables'!$B$106,I34,0) -> 0 | K34: =IF(J34<'Input Tables'!$B$106,J34,0) -> 0 | L34: =IF(K34<'Input Tables'!$B$106,K34,0) -> 0 | M34: =IF(L34<'Input Tables'!$B$106,L34,0) -> 0 | N34: =IF(M34<'Input Tables'!$B$106,M34,0) -> 0 | O34: =IF(N34<'Input Tables'!$B$106,N34,0) -> 0 | P34: =IF(O34<'Input Tables'!$B$106,O34,0) -> 0 | Q34: =IF(P34<'Input Tables'!$B$106,P34,0) -> 0 | R34: =IF(Q34<'Input Tables'!$B$106,Q34,0) -> 0 | S34: =IF(R34<'Input Tables'!$B$106,R34,0) -> 0 | T34: =IF(S34<'Input Tables'!$B$106,S34,0) -> 0 | U34: =IF(T34<'Input Tables'!$B$106,T34,0) -> 0 | V34: =IF(U34<'Input Tables'!$B$106,U34,0) -> 0 | W34: =IF(V34<'Input Tables'!$B$106,V34,0) -> 0 | X34: =IF(W34<'Input Tables'!$B$106,W34,0) -> 0 | Y34: =IF(X34<'Input Tables'!$B$106,X34,0) -> 0 | Z34: =IF(Y34<'Input Tables'!$B$106,Y34,0) -> 0 | AA34: =IF(Z34<'Input Tables'!$B$106,Z34,0) -> 0 | AB34: =IF(AA34<'Input Tables'!$B$106,AA34,0) -> 0 | AC34: =IF(AB34<'Input Tables'!$B$106,AB34,0) -> 0 | AD34: =IF(AC34<'Input Tables'!$B$106,AC34,0) -> 0 | AE34: =IF(AD34<'Input Tables'!$B$106,AD34,0) -> 0 | AF34: =IF(AE34<'Input Tables'!$B$106,AE34,0) -> 0 | AG34: =IF(AF34<'Input Tables'!$B$106,AF34,0) -> 0 | AH34: =IF(AG34<'Input Tables'!$B$106,AG34,0) -> 0 | AI34: =IF(AH34<'Input Tables'!$B$106,AH34,0) -> 0 | AJ34: =IF(AI34<'Input Tables'!$B$106,AI34,0) -> 0 | AK34: =IF(AJ34<'Input Tables'!$B$106,AJ34,0) -> 0 | AL34: =IF(AK34<'Input Tables'!$B$106,AK34,0) -> 0 | AM34: =IF(AL34<'Input Tables'!$B$106,AL34,0) -> 0 | AN34: =IF(AM34<'Input Tables'!$B$106,AM34,0) -> 0 | AO34: =IF(AN34<'Input Tables'!$B$106,AN34,0) -> 0 | AP34: =IF(AO34<'Input Tables'!$B$106,AO34,0) -> 0 | AQ34: =IF(AP34<'Input Tables'!$B$106,AP34,0) -> 0 | AR34: =IF(AQ34<'Input Tables'!$B$106,AQ34,0) -> 0 | AS34: =IF(AR34<'Input Tables'!$B$106,AR34,0) -> 0 | AT34: =IF(AS34<'Input Tables'!$B$106,AS34,0) -> 0 | AU34: =IF(AT34<'Input Tables'!$B$106,AT34,0) -> 0 | AV34: =IF(AU34<'Input Tables'!$B$106,AU34,0) -> 0 | AW34: =IF(AV34<'Input Tables'!$B$106,AV34,0) -> 0 | AX34: =IF(AW34<'Input Tables'!$B$106,AW34,0) -> 0 | AY34: =IF(AX34<'Input Tables'!$B$106,AX34,0) -> 0 | AZ34: =IF(AY34<'Input Tables'!$B$106,AY34,0) -> 0 | BA34: =IF(AZ34<'Input Tables'!$B$106,AZ34,0) -> 0 | BB34: =IF(BA34<'Input Tables'!$B$106,BA34,0) -> 0 | BC34: =IF(BB34<'Input Tables'!$B$106,BB34,0) -> 0 | BD34: =IF(BC34<'Input Tables'!$B$106,BC34,0) -> 0 | BE34: =IF(BD34<'Input Tables'!$B$106,BD34,0) -> 0 | BF34: =IF(BE34<'Input Tables'!$B$106,BE34,0) -> 0 | BG34: =IF(BF34<'Input Tables'!$B$106,BF34,0) -> 0 | BH34: =IF(BG34<'Input Tables'!$B$106,BG34,0) -> 0 | BI34: =IF(BH34<'Input Tables'!$B$106,BH34,0) -> 0 | BJ34: =IF(BI34<'Input Tables'!$B$106,BI34,0) -> 0 | BK34: =IF(BJ34<'Input Tables'!$B$106,BJ34,0) -> 0
B36: Tree Staking | D36: ='Cost Budgets'!F7 -> 96.8
B37: Potential Revenue less Est. costs | D37: =D20-D26-D28-D30-D32-D34-D36 -> -1365.068 | E37: =E20-E26-E28-E30-E32-E36 -> -40.5 | F37: 786.060528 | G37: 1768.795963 | H37: 3241.067904 | I37: 4094.061307 | J37: 4141.257732 | K37: 5235.439104 | L37: 4896.976896 | M37: 5246.626212 | N37: 5290.090474 | O37: 5898.552754 | P37: 6420.378348 | Q37: 7963.61855 | R37: 8967.396312 | S37: 7304.339146 | T37: 8533.006452 | U37: 8452.349676 | V37: 7484.744781 | W37: 8018.167968 | X37: 6951.962554 | Y37: 6495.101295 | Z37: 6897.198368 | AA37: 6005.092336 | AB37: 6511.92183 | AC37: 5573.862579 | AD37: 5349.867565 | AE37: 5132.932624 | AF37: 4722.988963 | AG37: 5008.074806 | AH37: 4363.758504 | AI37: 4611.213486 | AJ37: 3906.621528 | AK37: 4120.843815 | AL37: 3619.691275 | AM37: 3573.307787 | AN37: 3662.750982 | AO37: 3248.98789 | AP37: 3116.068405 | AQ37: 2795.337384 | AR37: 2821.593787 | AS37: 2919.911654 | AT37: 2482.519285 | AU37: 2502.111869 | AV37: 2209.559186 | AW37: 2342.729183 | AX37: 2299.10393 | AY37: 2004.053527 | AZ37: 1939.563014 | BA37: 2030.057893 | BB37: 1815.684526 | BC37: 1804.752249 | BD37: 1794.40452 | BE37: 1524.979296 | BF37: 1618.687309 | BG37: 1611.670853 | BH37: 1372.900207 | BI37: 1404.881431 | BJ37: 1383.944048 | BK37: 1418.20827
B38: Actual Revenue less Est. costs | D38: =D22-D26-D28-D30-D32-D36 -> -919.568 | E38: =E22-E26-E28-E30-E32-E36 -> -40.5 | F38: 0 | G38: -40.5 | H38: =H22-H26-H28-H30-H32-H36 -> 3241.067904 | I38: 4094.061307 | J38: 4141.257732 | K38: 5235.439104 | L38: 4896.976896 | M38: 5246.626212 | N38: 5290.090474 | O38: 5898.552754 | P38: 6420.378348 | Q38: 7963.61855 | R38: 8967.396312 | S38: 7304.339146 | T38: 8533.006452 | U38: 8452.349676 | V38: 7484.744781 | W38: 8018.167968 | X38: 6951.962554 | Y38: 6495.101295 | Z38: 6897.198368 | AA38: 6005.092336 | AB38: 6511.92183 | AC38: 5573.862579 | AD38: 5349.867565 | AE38: 5132.932624 | AF38: 4722.988963 | AG38: 5008.074806 | AH38: 4363.758504 | AI38: 4611.213486 | AJ38: 3906.621528 | AK38: 4120.843815 | AL38: 3619.691275 | AM38: 3573.307787 | AN38: 3662.750982 | AO38: 3248.98789 | AP38: 3116.068405 | AQ38: 2795.337384 | AR38: 2821.593787 | AS38: 2919.911654 | AT38: 2482.519285 | AU38: 2502.111869 | AV38: 2209.559186 | AW38: 2342.729183 | AX38: 2299.10393 | AY38: 0 | AZ38: 0 | BA38: 0 | BB38: 0 | BC38: 0 | BD38: 0 | BE38: 0 | BF38: 0 | BG38: 0 | BH38: 0 | BI38: 0 | BJ38: 0 | BK38: 0
A39: Management Costs
B40: Thinning | D40: ='Input Tables'!$C$25*D10*D2 -> 0 | E40: ='Input Tables'!$C$25*E10*E2 -> 0 | F40: ='Input Tables'!$C$25*F10*F2 -> 0 | G40: ='Input Tables'!$C$25*G10*G2 -> 0 | H40: ='Input Tables'!$C$25*H10*H2 -> 0 | I40: ='Input Tables'!$C$25*I10*I2 -> 0 | J40: ='Input Tables'!$C$25*J10*J2 -> 0 | K40: ='Input Tables'!$C$25*K10*K2 -> 0 | L40: ='Input Tables'!$C$25*L10*L2 -> 0 | M40: ='Input Tables'!$C$25*M10*M2 -> 0 | N40: ='Input Tables'!$C$25*N10*N2 -> 0 | O40: ='Input Tables'!$C$25*O10*O2 -> 0 | P40: ='Input Tables'!$C$25*P10*P2 -> 0 | Q40: ='Input Tables'!$C$25*Q10*Q2 -> 0 | R40: ='Input Tables'!$C$25*R10*R2 -> 0 | S40: ='Input Tables'!$C$25*S10*S2 -> 0 | T40: ='Input Tables'!$C$25*T10*T2 -> 0 | U40: ='Input Tables'!$C$25*U10*U2 -> 0 | V40: ='Input Tables'!$C$25*V10*V2 -> 1.38373952 | W40: ='Input Tables'!$C$25*W10*W2 -> 0 | X40: ='Input Tables'!$C$25*X10*X2 -> 1.353350371 | Y40: ='Input Tables'!$C$25*Y10*Y2 -> 1.264932376 | Z40: ='Input Tables'!$C$25*Z10*Z2 -> 0 | AA40: ='Input Tables'!$C$25*AA10*AA2 -> 1.225862048 | AB40: ='Input Tables'!$C$25*AB10*AB2 -> 0 | AC40: ='Input Tables'!$C$25*AC10*AC2 -> 1.180794243 | AD40: ='Input Tables'!$C$25*AD10*AD2 -> 1.096749015 | AE40: ='Input Tables'!$C$25*AE10*AE2 -> 0 | AF40: ='Input Tables'!$C$25*AF10*AF2 -> 1.051070173 | AG40: ='Input Tables'!$C$25*AG10*AG2 -> 0 | AH40: ='Input Tables'!$C$25*AH10*AH2 -> 1.003303871 | AI40: ='Input Tables'!$C$25*AI10*AI2 -> 0 | AJ40: ='Input Tables'!$C$25*AJ10*AJ2 -> 0.9545402892 | AK40: ='Input Tables'!$C$25*AK10*AK2 -> 0 | AL40: ='Input Tables'!$C$25*AL10*AL2 -> 0.905605456 | AM40: ='Input Tables'!$C$25*AM10*AM2 -> 0 | AN40: ='Input Tables'!$C$25*AN10*AN2 -> 0 | AO40: ='Input Tables'!$C$25*AO10*AO2 -> 0.8779514851 | AP40: ='Input Tables'!$C$25*AP10*AP2 -> 0 | AQ40: ='Input Tables'!$C$25*AQ10*AQ2 -> 0.8273434084 | AR40: ='Input Tables'!$C$25*AR10*AR2 -> 0 | AS40: ='Input Tables'!$C$25*AS10*AS2 -> 0 | AT40: ='Input Tables'!$C$25*AT10*AT2 -> 0.795315329 | AU40: ='Input Tables'!$C$25*AU10*AU2 -> 0 | AV40: ='Input Tables'!$C$25*AV10*AV2 -> 0.7459636432 | AW40: ='Input Tables'!$C$25*AW10*AW2 -> 0 | AX40: ='Input Tables'!$C$25*AX10*AX2 -> 0 | AY40: ='Input Tables'!$C$25*AY10*AY2 -> 0.7127497586 | AZ40: ='Input Tables'!$C$25*AZ10*AZ2 -> 0 | BA40: ='Input Tables'!$C$25*BA10*BA2 -> 0 | BB40: ='Input Tables'!$C$25*BB10*BB2 -> 0.6786056377 | BC40: ='Input Tables'!$C$25*BC10*BC2 -> 0 | BD40: ='Input Tables'!$C$25*BD10*BD2 -> 0 | BE40: ='Input Tables'!$C$25*BE10*BE2 -> 0.6441752421 | BF40: ='Input Tables'!$C$25*BF10*BF2 -> 0 | BG40: ='Input Tables'!$C$25*BG10*BG2 -> 0 | BH40: ='Input Tables'!$C$25*BH10*BH2 -> 0.6099430289 | BI40: ='Input Tables'!$C$25*BI10*BI2 -> 0 | BJ40: ='Input Tables'!$C$25*BJ10*BJ2 -> 0 | BK40: ='Input Tables'!$C$25*BK10*BK2 -> 0
B42: Fertilization (maintenance) | E42: =IF(OR(E1='Input Tables'!$BA$35,E1='Input Tables'!$BB$35, E1='Input Tables'!$BC$35,E1='Input Tables'!$BD$35, E1='Input Tables'!$BE$35,E1='Input Tables'!$BF$35,E1='Input Tables'!$BG$35,E1='Input Tables'!$BH$35,E1='Input Tables'!$BI$35,E1='Input Tables'!$BJ$35,E1='Input Tables'!BJ35,'Input Tables'!$BL$35),('Cost Budgets'!$G$12*E6),0) -> 90 | F42: =IF(OR(F1='Input Tables'!$BA$35,F1='Input Tables'!$BB$35, F1='Input Tables'!$BC$35,F1='Input Tables'!$BD$35, F1='Input Tables'!$BE$35,F1='Input Tables'!$BF$35,F1='Input Tables'!$BG$35,F1='Input Tables'!$BH$35,F1='Input Tables'!$BI$35,F1='Input Tables'!$BJ$35,F1='Input Tables'!BK35,'Input Tables'!$BL$35),('Cost Budgets'!$G$12*F6),0) -> 90 | G42: =IF(OR(G1='Input Tables'!$BA$35,G1='Input Tables'!$BB$35, G1='Input Tables'!$BC$35,G1='Input Tables'!$BD$35, G1='Input Tables'!$BE$35,G1='Input Tables'!$BF$35,G1='Input Tables'!$BG$35,G1='Input Tables'!$BH$35,G1='Input Tables'!$BI$35,G1='Input Tables'!$BJ$35,G1='Input Tables'!BL35,'Input Tables'!$BL$35),('Cost Budgets'!$G$12*G6),0) -> 90 | H42: =IF(OR(H1='Input Tables'!$BA$35,H1='Input Tables'!$BB$35, H1='Input Tables'!$BC$35,H1='Input Tables'!$BD$35, H1='Input Tables'!$BE$35,H1='Input Tables'!$BF$35,H1='Input Tables'!$BG$35,H1='Input Tables'!$BH$35,H1='Input Tables'!$BI$35,H1='Input Tables'!$BJ$35,H1='Input Tables'!BM35,'Input Tables'!$BL$35),('Cost Budgets'!$G$12*H6),0) -> 88.14049587 | I42: =IF(OR(I1='Input Tables'!$BA$35,I1='Input Tables'!$BB$35, I1='Input Tables'!$BC$35,I1='Input Tables'!$BD$35, I1='Input Tables'!$BE$35,I1='Input Tables'!$BF$35,I1='Input Tables'!$BG$35,I1='Input Tables'!$BH$35,I1='Input Tables'!$BI$35,I1='Input Tables'!$BJ$35,I1='Input Tables'!BN35,'Input Tables'!$BL$35),('Cost Budgets'!$G$12*I6),0) -> 82.56198347 | J42: =IF(OR(J1='Input Tables'!$BA$35,J1='Input Tables'!$BB$35, J1='Input Tables'!$BC$35,J1='Input Tables'!$BD$35, J1='Input Tables'!$BE$35,J1='Input Tables'!$BF$35,J1='Input Tables'!$BG$35,J1='Input Tables'!$BH$35,J1='Input Tables'!$BI$35,J1='Input Tables'!$BJ$35,J1='Input Tables'!BO35,'Input Tables'!$BL$35),('Cost Budgets'!$G$12*J6),0) -> 76.98347107 | K42: =IF(OR(K1='Input Tables'!$BA$35,K1='Input Tables'!$BB$35, K1='Input Tables'!$BC$35,K1='Input Tables'!$BD$35, K1='Input Tables'!$BE$35,K1='Input Tables'!$BF$35,K1='Input Tables'!$BG$35,K1='Input Tables'!$BH$35,K1='Input Tables'!$BI$35,K1='Input Tables'!$BJ$35,K1='Input Tables'!BP35,'Input Tables'!$BL$35),('Cost Budgets'!$G$12*K6),0) -> 71.40495868 | L42: =IF(OR(L1='Input Tables'!$BA$35,L1='Input Tables'!$BB$35, L1='Input Tables'!$BC$35,L1='Input Tables'!$BD$35, L1='Input Tables'!$BE$35,L1='Input Tables'!$BF$35,L1='Input Tables'!$BG$35,L1='Input Tables'!$BH$35,L1='Input Tables'!$BI$35,L1='Input Tables'!$BJ$35,L1='Input Tables'!BQ35,'Input Tables'!$BL$35),('Cost Budgets'!$G$12*L6),0) -> 71.40495868 | M42: =IF(OR(M1='Input Tables'!$BA$35,M1='Input Tables'!$BB$35, M1='Input Tables'!$BC$35,M1='Input Tables'!$BD$35, M1='Input Tables'!$BE$35,M1='Input Tables'!$BF$35,M1='Input Tables'!$BG$35,M1='Input Tables'!$BH$35,M1='Input Tables'!$BI$35,M1='Input Tables'!$BJ$35,M1='Input Tables'!BR35,'Input Tables'!$BL$35),('Cost Budgets'!$G$12*M6),0) -> 65.82644628 | N42: =IF(OR(N1='Input Tables'!$BA$35,N1='Input Tables'!$BB$35, N1='Input Tables'!$BC$35,N1='Input Tables'!$BD$35, N1='Input Tables'!$BE$35,N1='Input Tables'!$BF$35,N1='Input Tables'!$BG$35,N1='Input Tables'!$BH$35,N1='Input Tables'!$BI$35,N1='Input Tables'!$BJ$35,N1='Input Tables'!BS35,'Input Tables'!$BL$35),('Cost Budgets'!$G$12*N6),0) -> 65.82644628 | O42: =IF(OR(O1='Input Tables'!$BA$35,O1='Input Tables'!$BB$35, O1='Input Tables'!$BC$35,O1='Input Tables'!$BD$35, O1='Input Tables'!$BE$35,O1='Input Tables'!$BF$35,O1='Input Tables'!$BG$35,O1='Input Tables'!$BH$35,O1='Input Tables'!$BI$35,O1='Input Tables'!$BJ$35,O1='Input Tables'!BT35,'Input Tables'!$BL$35),('Cost Budgets'!$G$12*O6),0) -> 65.82644628 | P42: =IF(OR(P1='Input Tables'!$BA$35,P1='Input Tables'!$BB$35, P1='Input Tables'!$BC$35,P1='Input Tables'!$BD$35, P1='Input Tables'!$BE$35,P1='Input Tables'!$BF$35,P1='Input Tables'!$BG$35,P1='Input Tables'!$BH$35,P1='Input Tables'!$BI$35,P1='Input Tables'!$BJ$35,P1='Input Tables'!BU35,'Input Tables'!$BL$35),('Cost Budgets'!$G$12*P6),0) -> 65.82644628 | Q42: =IF(OR(Q1='Input Tables'!$BA$35,Q1='Input Tables'!$BB$35, Q1='Input Tables'!$BC$35,Q1='Input Tables'!$BD$35, Q1='Input Tables'!$BE$35,Q1='Input Tables'!$BF$35,Q1='Input Tables'!$BG$35,Q1='Input Tables'!$BH$35,Q1='Input Tables'!$BI$35,Q1='Input Tables'!$BJ$35,Q1='Input Tables'!BV35,'Input Tables'!$BL$35),('Cost Budgets'!$G$12*Q6),0) -> 65.82644628 | R42: =IF(OR(R1='Input Tables'!$BA$35,R1='Input Tables'!$BB$35, R1='Input Tables'!$BC$35,R1='Input Tables'!$BD$35, R1='Input Tables'!$BE$35,R1='Input Tables'!$BF$35,R1='Input Tables'!$BG$35,R1='Input Tables'!$BH$35,R1='Input Tables'!$BI$35,R1='Input Tables'!$BJ$35,R1='Input Tables'!BW35,'Input Tables'!$BL$35),('Cost Budgets'!$G$12*R6),0) -> 65.82644628 | S42: =IF(OR(S1='Input Tables'!$BA$35,S1='Input Tables'!$BB$35, S1='Input Tables'!$BC$35,S1='Input Tables'!$BD$35, S1='Input Tables'!$BE$35,S1='Input Tables'!$BF$35,S1='Input Tables'!$BG$35,S1='Input Tables'!$BH$35,S1='Input Tables'!$BI$35,S1='Input Tables'!$BJ$35,S1='Input Tables'!BX35,'Input Tables'!$BL$35),('Cost Budgets'!$G$12*S6),0) -> 65.82644628 | T42: =IF(OR(T1='Input Tables'!$BA$35,T1='Input Tables'!$BB$35, T1='Input Tables'!$BC$35,T1='Input Tables'!$BD$35, T1='Input Tables'!$BE$35,T1='Input Tables'!$BF$35,T1='Input Tables'!$BG$35,T1='Input Tables'!$BH$35,T1='Input Tables'!$BI$35,T1='Input Tables'!$BJ$35,T1='Input Tables'!BY35,'Input Tables'!$BL$35),('Cost Budgets'!$G$12*T6),0) -> 65.82644628 | U42: =IF(OR(U1='Input Tables'!$BA$35,U1='Input Tables'!$BB$35, U1='Input Tables'!$BC$35,U1='Input Tables'!$BD$35, U1='Input Tables'!$BE$35,U1='Input Tables'!$BF$35,U1='Input Tables'!$BG$35,U1='Input Tables'!$BH$35,U1='Input Tables'!$BI$35,U1='Input Tables'!$BJ$35,U1='Input Tables'!BZ35,'Input Tables'!$BL$35),('Cost Budgets'!$G$12*U6),0) -> 65.82644628 | V42: =IF(OR(V1='Input Tables'!$BA$35,V1='Input Tables'!$BB$35, V1='Input Tables'!$BC$35,V1='Input Tables'!$BD$35, V1='Input Tables'!$BE$35,V1='Input Tables'!$BF$35,V1='Input Tables'!$BG$35,V1='Input Tables'!$BH$35,V1='Input Tables'!$BI$35,V1='Input Tables'!$BJ$35,V1='Input Tables'!CA35,'Input Tables'!$BL$35),('Cost Budgets'!$G$12*V6),0) -> 59.24380165 | W42: =IF(OR(W1='Input Tables'!$BA$35,W1='Input Tables'!$BB$35, W1='Input Tables'!$BC$35,W1='Input Tables'!$BD$35, W1='Input Tables'!$BE$35,W1='Input Tables'!$BF$35,W1='Input Tables'!$BG$35,W1='Input Tables'!$BH$35,W1='Input Tables'!$BI$35,W1='Input Tables'!$BJ$35,W1='Input Tables'!CB35,'Input Tables'!$BL$35),('Cost Budgets'!$G$12*W6),0) -> 59.24380165 | X42: =IF(OR(X1='Input Tables'!$BA$35,X1='Input Tables'!$BB$35, X1='Input Tables'!$BC$35,X1='Input Tables'!$BD$35, X1='Input Tables'!$BE$35,X1='Input Tables'!$BF$35,X1='Input Tables'!$BG$35,X1='Input Tables'!$BH$35,X1='Input Tables'!$BI$35,X1='Input Tables'!$BJ$35,X1='Input Tables'!CC35,'Input Tables'!$BL$35),('Cost Budgets'!$G$12*X6),0) -> 53.31942149 | Y42: =IF(OR(Y1='Input Tables'!$BA$35,Y1='Input Tables'!$BB$35, Y1='Input Tables'!$BC$35,Y1='Input Tables'!$BD$35, Y1='Input Tables'!$BE$35,Y1='Input Tables'!$BF$35,Y1='Input Tables'!$BG$35,Y1='Input Tables'!$BH$35,Y1='Input Tables'!$BI$35,Y1='Input Tables'!$BJ$35,Y1='Input Tables'!CD35,'Input Tables'!$BL$35),('Cost Budgets'!$G$12*Y6),0) -> 47.98747934 | Z42: =IF(OR(Z1='Input Tables'!$BA$35,Z1='Input Tables'!$BB$35, Z1='Input Tables'!$BC$35,Z1='Input Tables'!$BD$35, Z1='Input Tables'!$BE$35,Z1='Input Tables'!$BF$35,Z1='Input Tables'!$BG$35,Z1='Input Tables'!$BH$35,Z1='Input Tables'!$BI$35,Z1='Input Tables'!$BJ$35,Z1='Input Tables'!CE35,'Input Tables'!$BL$35),('Cost Budgets'!$G$12*Z6),0) -> 47.98747934 | AA42: =IF(OR(AA1='Input Tables'!$BA$35,AA1='Input Tables'!$BB$35, AA1='Input Tables'!$BC$35,AA1='Input Tables'!$BD$35, AA1='Input Tables'!$BE$35,AA1='Input Tables'!$BF$35,AA1='Input Tables'!$BG$35,AA1='Input Tables'!$BH$35,AA1='Input Tables'!$BI$35,AA1='Input Tables'!$BJ$35,AA1='Input Tables'!CF35,'Input Tables'!$BL$35),('Cost Budgets'!$G$12*AA6),0) -> 43.1887314 | AB42: =IF(OR(AB1='Input Tables'!$BA$35,AB1='Input Tables'!$BB$35, AB1='Input Tables'!$BC$35,AB1='Input Tables'!$BD$35, AB1='Input Tables'!$BE$35,AB1='Input Tables'!$BF$35,AB1='Input Tables'!$BG$35,AB1='Input Tables'!$BH$35,AB1='Input Tables'!$BI$35,AB1='Input Tables'!$BJ$35,AB1='Input Tables'!CG35,'Input Tables'!$BL$35),('Cost Budgets'!$G$12*AB6),0) -> 43.1887314 | AC42: =IF(OR(AC1='Input Tables'!$BA$35,AC1='Input Tables'!$BB$35, AC1='Input Tables'!$BC$35,AC1='Input Tables'!$BD$35, AC1='Input Tables'!$BE$35,AC1='Input Tables'!$BF$35,AC1='Input Tables'!$BG$35,AC1='Input Tables'!$BH$35,AC1='Input Tables'!$BI$35,AC1='Input Tables'!$BJ$35,AC1='Input Tables'!CH35,'Input Tables'!$BL$35),('Cost Budgets'!$G$12*AC6),0) -> 38.86985826 | AD42: =IF(OR(AD1='Input Tables'!$BA$35,AD1='Input Tables'!$BB$35, AD1='Input Tables'!$BC$35,AD1='Input Tables'!$BD$35, AD1='Input Tables'!$BE$35,AD1='Input Tables'!$BF$35,AD1='Input Tables'!$BG$35,AD1='Input Tables'!$BH$35,AD1='Input Tables'!$BI$35,AD1='Input Tables'!$BJ$35,AD1='Input Tables'!CI35,'Input Tables'!$BL$35),('Cost Budgets'!$G$12*AD6),0) -> 34.98287244 | AE42: =IF(OR(AE1='Input Tables'!$BA$35,AE1='Input Tables'!$BB$35, AE1='Input Tables'!$BC$35,AE1='Input Tables'!$BD$35, AE1='Input Tables'!$BE$35,AE1='Input Tables'!$BF$35,AE1='Input Tables'!$BG$35,AE1='Input Tables'!$BH$35,AE1='Input Tables'!$BI$35,AE1='Input Tables'!$BJ$35,AE1='Input Tables'!CJ35,'Input Tables'!$BL$35),('Cost Budgets'!$G$12*AE6),0) -> 34.98287244 | AF42: =IF(OR(AF1='Input Tables'!$BA$35,AF1='Input Tables'!$BB$35, AF1='Input Tables'!$BC$35,AF1='Input Tables'!$BD$35, AF1='Input Tables'!$BE$35,AF1='Input Tables'!$BF$35,AF1='Input Tables'!$BG$35,AF1='Input Tables'!$BH$35,AF1='Input Tables'!$BI$35,AF1='Input Tables'!$BJ$35,AF1='Input Tables'!CK35,'Input Tables'!$BL$35),('Cost Budgets'!$G$12*AF6),0) -> 31.48458519 | AG42: =IF(OR(AG1='Input Tables'!$BA$35,AG1='Input Tables'!$BB$35, AG1='Input Tables'!$BC$35,AG1='Input Tables'!$BD$35, AG1='Input Tables'!$BE$35,AG1='Input Tables'!$BF$35,AG1='Input Tables'!$BG$35,AG1='Input Tables'!$BH$35,AG1='Input Tables'!$BI$35,AG1='Input Tables'!$BJ$35,AG1='Input Tables'!CL35,'Input Tables'!$BL$35),('Cost Budgets'!$G$12*AG6),0) -> 31.48458519 | AH42: =IF(OR(AH1='Input Tables'!$BA$35,AH1='Input Tables'!$BB$35, AH1='Input Tables'!$BC$35,AH1='Input Tables'!$BD$35, AH1='Input Tables'!$BE$35,AH1='Input Tables'!$BF$35,AH1='Input Tables'!$BG$35,AH1='Input Tables'!$BH$35,AH1='Input Tables'!$BI$35,AH1='Input Tables'!$BJ$35,AH1='Input Tables'!CM35,'Input Tables'!$BL$35),('Cost Budgets'!$G$12*AH6),0) -> 28.33612667 | AI42: =IF(OR(AI1='Input Tables'!$BA$35,AI1='Input Tables'!$BB$35, AI1='Input Tables'!$BC$35,AI1='Input Tables'!$BD$35, AI1='Input Tables'!$BE$35,AI1='Input Tables'!$BF$35,AI1='Input Tables'!$BG$35,AI1='Input Tables'!$BH$35,AI1='Input Tables'!$BI$35,AI1='Input Tables'!$BJ$35,AI1='Input Tables'!CN35,'Input Tables'!$BL$35),('Cost Budgets'!$G$12*AI6),0) -> 28.33612667 | AJ42: =IF(OR(AJ1='Input Tables'!$BA$35,AJ1='Input Tables'!$BB$35, AJ1='Input Tables'!$BC$35,AJ1='Input Tables'!$BD$35, AJ1='Input Tables'!$BE$35,AJ1='Input Tables'!$BF$35,AJ1='Input Tables'!$BG$35,AJ1='Input Tables'!$BH$35,AJ1='Input Tables'!$BI$35,AJ1='Input Tables'!$BJ$35,AJ1='Input Tables'!CO35,'Input Tables'!$BL$35),('Cost Budgets'!$G$12*AJ6),0) -> 25.50251401 | AK42: =IF(OR(AK1='Input Tables'!$BA$35,AK1='Input Tables'!$BB$35, AK1='Input Tables'!$BC$35,AK1='Input Tables'!$BD$35, AK1='Input Tables'!$BE$35,AK1='Input Tables'!$BF$35,AK1='Input Tables'!$BG$35,AK1='Input Tables'!$BH$35,AK1='Input Tables'!$BI$35,AK1='Input Tables'!$BJ$35,AK1='Input Tables'!CP35,'Input Tables'!$BL$35),('Cost Budgets'!$G$12*AK6),0) -> 25.50251401 | AL42: =IF(OR(AL1='Input Tables'!$BA$35,AL1='Input Tables'!$BB$35, AL1='Input Tables'!$BC$35,AL1='Input Tables'!$BD$35, AL1='Input Tables'!$BE$35,AL1='Input Tables'!$BF$35,AL1='Input Tables'!$BG$35,AL1='Input Tables'!$BH$35,AL1='Input Tables'!$BI$35,AL1='Input Tables'!$BJ$35,AL1='Input Tables'!CQ35,'Input Tables'!$BL$35),('Cost Budgets'!$G$12*AL6),0) -> 22.95226261 | AM42: =IF(OR(AM1='Input Tables'!$BA$35,AM1='Input Tables'!$BB$35, AM1='Input Tables'!$BC$35,AM1='Input Tables'!$BD$35, AM1='Input Tables'!$BE$35,AM1='Input Tables'!$BF$35,AM1='Input Tables'!$BG$35,AM1='Input Tables'!$BH$35,AM1='Input Tables'!$BI$35,AM1='Input Tables'!$BJ$35,AM1='Input Tables'!CR35,'Input Tables'!$BL$35),('Cost Budgets'!$G$12*AM6),0) -> 22.95226261 | AN42: =IF(OR(AN1='Input Tables'!$BA$35,AN1='Input Tables'!$BB$35, AN1='Input Tables'!$BC$35,AN1='Input Tables'!$BD$35, AN1='Input Tables'!$BE$35,AN1='Input Tables'!$BF$35,AN1='Input Tables'!$BG$35,AN1='Input Tables'!$BH$35,AN1='Input Tables'!$BI$35,AN1='Input Tables'!$BJ$35,AN1='Input Tables'!CS35,'Input Tables'!$BL$35),('Cost Budgets'!$G$12*AN6),0) -> 22.95226261 | AO42: =IF(OR(AO1='Input Tables'!$BA$35,AO1='Input Tables'!$BB$35, AO1='Input Tables'!$BC$35,AO1='Input Tables'!$BD$35, AO1='Input Tables'!$BE$35,AO1='Input Tables'!$BF$35,AO1='Input Tables'!$BG$35,AO1='Input Tables'!$BH$35,AO1='Input Tables'!$BI$35,AO1='Input Tables'!$BJ$35,AO1='Input Tables'!CT35,'Input Tables'!$BL$35),('Cost Budgets'!$G$12*AO6),0) -> 20.65703635 | AP42: =IF(OR(AP1='Input Tables'!$BA$35,AP1='Input Tables'!$BB$35, AP1='Input Tables'!$BC$35,AP1='Input Tables'!$BD$35, AP1='Input Tables'!$BE$35,AP1='Input Tables'!$BF$35,AP1='Input Tables'!$BG$35,AP1='Input Tables'!$BH$35,AP1='Input Tables'!$BI$35,AP1='Input Tables'!$BJ$35,AP1='Input Tables'!CU35,'Input Tables'!$BL$35),('Cost Budgets'!$G$12*AP6),0) -> 20.65703635 | AQ42: =IF(OR(AQ1='Input Tables'!$BA$35,AQ1='Input Tables'!$BB$35, AQ1='Input Tables'!$BC$35,AQ1='Input Tables'!$BD$35, AQ1='Input Tables'!$BE$35,AQ1='Input Tables'!$BF$35,AQ1='Input Tables'!$BG$35,AQ1='Input Tables'!$BH$35,AQ1='Input Tables'!$BI$35,AQ1='Input Tables'!$BJ$35,AQ1='Input Tables'!CV35,'Input Tables'!$BL$35),('Cost Budgets'!$G$12*AQ6),0) -> 18.59133271 | AR42: =IF(OR(AR1='Input Tables'!$BA$35,AR1='Input Tables'!$BB$35, AR1='Input Tables'!$BC$35,AR1='Input Tables'!$BD$35, AR1='Input Tables'!$BE$35,AR1='Input Tables'!$BF$35,AR1='Input Tables'!$BG$35,AR1='Input Tables'!$BH$35,AR1='Input Tables'!$BI$35,AR1='Input Tables'!$BJ$35,AR1='Input Tables'!CW35,'Input Tables'!$BL$35),('Cost Budgets'!$G$12*AR6),0) -> 18.59133271 | AS42: =IF(OR(AS1='Input Tables'!$BA$35,AS1='Input Tables'!$BB$35, AS1='Input Tables'!$BC$35,AS1='Input Tables'!$BD$35, AS1='Input Tables'!$BE$35,AS1='Input Tables'!$BF$35,AS1='Input Tables'!$BG$35,AS1='Input Tables'!$BH$35,AS1='Input Tables'!$BI$35,AS1='Input Tables'!$BJ$35,AS1='Input Tables'!CX35,'Input Tables'!$BL$35),('Cost Budgets'!$G$12*AS6),0) -> 18.59133271 | AT42: =IF(OR(AT1='Input Tables'!$BA$35,AT1='Input Tables'!$BB$35, AT1='Input Tables'!$BC$35,AT1='Input Tables'!$BD$35, AT1='Input Tables'!$BE$35,AT1='Input Tables'!$BF$35,AT1='Input Tables'!$BG$35,AT1='Input Tables'!$BH$35,AT1='Input Tables'!$BI$35,AT1='Input Tables'!$BJ$35,AT1='Input Tables'!CY35,'Input Tables'!$BL$35),('Cost Budgets'!$G$12*AT6),0) -> 16.73219944 | AU42: =IF(OR(AU1='Input Tables'!$BA$35,AU1='Input Tables'!$BB$35, AU1='Input Tables'!$BC$35,AU1='Input Tables'!$BD$35, AU1='Input Tables'!$BE$35,AU1='Input Tables'!$BF$35,AU1='Input Tables'!$BG$35,AU1='Input Tables'!$BH$35,AU1='Input Tables'!$BI$35,AU1='Input Tables'!$BJ$35,AU1='Input Tables'!CZ35,'Input Tables'!$BL$35),('Cost Budgets'!$G$12*AU6),0) -> 16.73219944 | AV42: =IF(OR(AV1='Input Tables'!$BA$35,AV1='Input Tables'!$BB$35, AV1='Input Tables'!$BC$35,AV1='Input Tables'!$BD$35, AV1='Input Tables'!$BE$35,AV1='Input Tables'!$BF$35,AV1='Input Tables'!$BG$35,AV1='Input Tables'!$BH$35,AV1='Input Tables'!$BI$35,AV1='Input Tables'!$BJ$35,AV1='Input Tables'!DA35,'Input Tables'!$BL$35),('Cost Budgets'!$G$12*AV6),0) -> 15.0589795 | AW42: =IF(OR(AW1='Input Tables'!$BA$35,AW1='Input Tables'!$BB$35, AW1='Input Tables'!$BC$35,AW1='Input Tables'!$BD$35, AW1='Input Tables'!$BE$35,AW1='Input Tables'!$BF$35,AW1='Input Tables'!$BG$35,AW1='Input Tables'!$BH$35,AW1='Input Tables'!$BI$35,AW1='Input Tables'!$BJ$35,AW1='Input Tables'!DB35,'Input Tables'!$BL$35),('Cost Budgets'!$G$12*AW6),0) -> 15.0589795 | AX42: =IF(OR(AX1='Input Tables'!$BA$35,AX1='Input Tables'!$BB$35, AX1='Input Tables'!$BC$35,AX1='Input Tables'!$BD$35, AX1='Input Tables'!$BE$35,AX1='Input Tables'!$BF$35,AX1='Input Tables'!$BG$35,AX1='Input Tables'!$BH$35,AX1='Input Tables'!$BI$35,AX1='Input Tables'!$BJ$35,AX1='Input Tables'!DC35,'Input Tables'!$BL$35),('Cost Budgets'!$G$12*AX6),0) -> 15.0589795 | AY42: =IF(OR(AY1='Input Tables'!$BA$35,AY1='Input Tables'!$BB$35, AY1='Input Tables'!$BC$35,AY1='Input Tables'!$BD$35, AY1='Input Tables'!$BE$35,AY1='Input Tables'!$BF$35,AY1='Input Tables'!$BG$35,AY1='Input Tables'!$BH$35,AY1='Input Tables'!$BI$35,AY1='Input Tables'!$BJ$35,AY1='Input Tables'!DD35,'Input Tables'!$BL$35),('Cost Budgets'!$G$12*AY6),0) -> 13.55308155 | AZ42: =IF(OR(AZ1='Input Tables'!$BA$35,AZ1='Input Tables'!$BB$35, AZ1='Input Tables'!$BC$35,AZ1='Input Tables'!$BD$35, AZ1='Input Tables'!$BE$35,AZ1='Input Tables'!$BF$35,AZ1='Input Tables'!$BG$35,AZ1='Input Tables'!$BH$35,AZ1='Input Tables'!$BI$35,AZ1='Input Tables'!$BJ$35,AZ1='Input Tables'!DE35,'Input Tables'!$BL$35),('Cost Budgets'!$G$12*AZ6),0) -> 13.55308155 | BA42: =IF(OR(BA1='Input Tables'!$BA$35,BA1='Input Tables'!$BB$35, BA1='Input Tables'!$BC$35,BA1='Input Tables'!$BD$35, BA1='Input Tables'!$BE$35,BA1='Input Tables'!$BF$35,BA1='Input Tables'!$BG$35,BA1='Input Tables'!$BH$35,BA1='Input Tables'!$BI$35,BA1='Input Tables'!$BJ$35,BA1='Input Tables'!DF35,'Input Tables'!$BL$35),('Cost Budgets'!$G$12*BA6),0) -> 13.55308155 | BB42: =IF(OR(BB1='Input Tables'!$BA$35,BB1='Input Tables'!$BB$35, BB1='Input Tables'!$BC$35,BB1='Input Tables'!$BD$35, BB1='Input Tables'!$BE$35,BB1='Input Tables'!$BF$35,BB1='Input Tables'!$BG$35,BB1='Input Tables'!$BH$35,BB1='Input Tables'!$BI$35,BB1='Input Tables'!$BJ$35,BB1='Input Tables'!DG35,'Input Tables'!$BL$35),('Cost Budgets'!$G$12*BB6),0) -> 12.19777339 | BC42: =IF(OR(BC1='Input Tables'!$BA$35,BC1='Input Tables'!$BB$35, BC1='Input Tables'!$BC$35,BC1='Input Tables'!$BD$35, BC1='Input Tables'!$BE$35,BC1='Input Tables'!$BF$35,BC1='Input Tables'!$BG$35,BC1='Input Tables'!$BH$35,BC1='Input Tables'!$BI$35,BC1='Input Tables'!$BJ$35,BC1='Input Tables'!DH35,'Input Tables'!$BL$35),('Cost Budgets'!$G$12*BC6),0) -> 12.19777339 | BD42: =IF(OR(BD1='Input Tables'!$BA$35,BD1='Input Tables'!$BB$35, BD1='Input Tables'!$BC$35,BD1='Input Tables'!$BD$35, BD1='Input Tables'!$BE$35,BD1='Input Tables'!$BF$35,BD1='Input Tables'!$BG$35,BD1='Input Tables'!$BH$35,BD1='Input Tables'!$BI$35,BD1='Input Tables'!$BJ$35,BD1='Input Tables'!DI35,'Input Tables'!$BL$35),('Cost Budgets'!$G$12*BD6),0) -> 12.19777339 | BE42: =IF(OR(BE1='Input Tables'!$BA$35,BE1='Input Tables'!$BB$35, BE1='Input Tables'!$BC$35,BE1='Input Tables'!$BD$35, BE1='Input Tables'!$BE$35,BE1='Input Tables'!$BF$35,BE1='Input Tables'!$BG$35,BE1='Input Tables'!$BH$35,BE1='Input Tables'!$BI$35,BE1='Input Tables'!$BJ$35,BE1='Input Tables'!DJ35,'Input Tables'!$BL$35),('Cost Budgets'!$G$12*BE6),0) -> 10.97799605 | BF42: =IF(OR(BF1='Input Tables'!$BA$35,BF1='Input Tables'!$BB$35, BF1='Input Tables'!$BC$35,BF1='Input Tables'!$BD$35, BF1='Input Tables'!$BE$35,BF1='Input Tables'!$BF$35,BF1='Input Tables'!$BG$35,BF1='Input Tables'!$BH$35,BF1='Input Tables'!$BI$35,BF1='Input Tables'!$BJ$35,BF1='Input Tables'!DK35,'Input Tables'!$BL$35),('Cost Budgets'!$G$12*BF6),0) -> 10.97799605 | BG42: =IF(OR(BG1='Input Tables'!$BA$35,BG1='Input Tables'!$BB$35, BG1='Input Tables'!$BC$35,BG1='Input Tables'!$BD$35, BG1='Input Tables'!$BE$35,BG1='Input Tables'!$BF$35,BG1='Input Tables'!$BG$35,BG1='Input Tables'!$BH$35,BG1='Input Tables'!$BI$35,BG1='Input Tables'!$BJ$35,BG1='Input Tables'!DL35,'Input Tables'!$BL$35),('Cost Budgets'!$G$12*BG6),0) -> 10.97799605 | BH42: =IF(OR(BH1='Input Tables'!$BA$35,BH1='Input Tables'!$BB$35, BH1='Input Tables'!$BC$35,BH1='Input Tables'!$BD$35, BH1='Input Tables'!$BE$35,BH1='Input Tables'!$BF$35,BH1='Input Tables'!$BG$35,BH1='Input Tables'!$BH$35,BH1='Input Tables'!$BI$35,BH1='Input Tables'!$BJ$35,BH1='Input Tables'!DM35,'Input Tables'!$BL$35),('Cost Budgets'!$G$12*BH6),0) -> 9.880196447 | BI42: =IF(OR(BI1='Input Tables'!$BA$35,BI1='Input Tables'!$BB$35, BI1='Input Tables'!$BC$35,BI1='Input Tables'!$BD$35, BI1='Input Tables'!$BE$35,BI1='Input Tables'!$BF$35,BI1='Input Tables'!$BG$35,BI1='Input Tables'!$BH$35,BI1='Input Tables'!$BI$35,BI1='Input Tables'!$BJ$35,BI1='Input Tables'!DN35,'Input Tables'!$BL$35),('Cost Budgets'!$G$12*BI6),0) -> 9.880196447 | BJ42: =IF(OR(BJ1='Input Tables'!$BA$35,BJ1='Input Tables'!$BB$35, BJ1='Input Tables'!$BC$35,BJ1='Input Tables'!$BD$35, BJ1='Input Tables'!$BE$35,BJ1='Input Tables'!$BF$35,BJ1='Input Tables'!$BG$35,BJ1='Input Tables'!$BH$35,BJ1='Input Tables'!$BI$35,BJ1='Input Tables'!$BJ$35,BJ1='Input Tables'!DO35,'Input Tables'!$BL$35),('Cost Budgets'!$G$12*BJ6),0) -> 9.880196447 | BK42: =IF(OR(BK1='Input Tables'!$BA$35,BK1='Input Tables'!$BB$35, BK1='Input Tables'!$BC$35,BK1='Input Tables'!$BD$35, BK1='Input Tables'!$BE$35,BK1='Input Tables'!$BF$35,BK1='Input Tables'!$BG$35,BK1='Input Tables'!$BH$35,BK1='Input Tables'!$BI$35,BK1='Input Tables'!$BJ$35,BK1='Input Tables'!DP35,'Input Tables'!$BL$35),('Cost Budgets'!$G$12*BK6),0) -> 9.880196447
B44: Pruning | E44: =IF(OR(E1='Input Tables'!$BA$41, E1='Input Tables'!$BB$41,E1='Input Tables'!$BC$41, E1='Input Tables'!$BD$41,E1='Input Tables'!$BE$41,E1='Input Tables'!$BF$41,E1='Input Tables'!$BG$41,E1='Input Tables'!$BH$41,E1='Input Tables'!$BI$41,E1='Input Tables'!$BJ$41,E1='Input Tables'!$BK$41, E1='Input Tables'!$BL$41,'Input Tables'!$BM$41),('Cost Budgets'!$G$13*E6),0) -> 0 | F44: =IF(OR(F1='Input Tables'!$BA$41, F1='Input Tables'!$BB$41,F1='Input Tables'!$BC$41, F1='Input Tables'!$BD$41,F1='Input Tables'!$BE$41,F1='Input Tables'!$BF$41,F1='Input Tables'!$BG$41,F1='Input Tables'!$BH$41,F1='Input Tables'!$BI$41,F1='Input Tables'!$BJ$41,F1='Input Tables'!$BK$41, F1='Input Tables'!$BL$41,'Input Tables'!$BM$41),('Cost Budgets'!$G$13*F6),0) -> 0 | G44: =IF(OR(G1='Input Tables'!$BA$41, G1='Input Tables'!$BB$41,G1='Input Tables'!$BC$41, G1='Input Tables'!$BD$41,G1='Input Tables'!$BE$41,G1='Input Tables'!$BF$41,G1='Input Tables'!$BG$41,G1='Input Tables'!$BH$41,G1='Input Tables'!$BI$41,G1='Input Tables'!$BJ$41,G1='Input Tables'!$BK$41, G1='Input Tables'!$BL$41,'Input Tables'!$BM$41),('Cost Budgets'!$G$13*G6),0) -> 0 | H44: =IF(OR(H1='Input Tables'!$BA$41, H1='Input Tables'!$BB$41,H1='Input Tables'!$BC$41, H1='Input Tables'!$BD$41,H1='Input Tables'!$BE$41,H1='Input Tables'!$BF$41,H1='Input Tables'!$BG$41,H1='Input Tables'!$BH$41,H1='Input Tables'!$BI$41,H1='Input Tables'!$BJ$41,H1='Input Tables'!$BK$41, H1='Input Tables'!$BL$41,'Input Tables'!$BM$41),('Cost Budgets'!$G$13*H6),0) -> 47.4 | I44: =IF(OR(I1='Input Tables'!$BA$41, I1='Input Tables'!$BB$41,I1='Input Tables'!$BC$41, I1='Input Tables'!$BD$41,I1='Input Tables'!$BE$41,I1='Input Tables'!$BF$41,I1='Input Tables'!$BG$41,I1='Input Tables'!$BH$41,I1='Input Tables'!$BI$41,I1='Input Tables'!$BJ$41,I1='Input Tables'!$BK$41, I1='Input Tables'!$BL$41,'Input Tables'!$BM$41),('Cost Budgets'!$G$13*I6),0) -> 0 | J44: =IF(OR(J1='Input Tables'!$BA$41, J1='Input Tables'!$BB$41,J1='Input Tables'!$BC$41, J1='Input Tables'!$BD$41,J1='Input Tables'!$BE$41,J1='Input Tables'!$BF$41,J1='Input Tables'!$BG$41,J1='Input Tables'!$BH$41,J1='Input Tables'!$BI$41,J1='Input Tables'!$BJ$41,J1='Input Tables'!$BK$41, J1='Input Tables'!$BL$41,'Input Tables'!$BM$41),('Cost Budgets'!$G$13*J6),0) -> 41.4 | K44: =IF(OR(K1='Input Tables'!$BA$41, K1='Input Tables'!$BB$41,K1='Input Tables'!$BC$41, K1='Input Tables'!$BD$41,K1='Input Tables'!$BE$41,K1='Input Tables'!$BF$41,K1='Input Tables'!$BG$41,K1='Input Tables'!$BH$41,K1='Input Tables'!$BI$41,K1='Input Tables'!$BJ$41,K1='Input Tables'!$BK$41, K1='Input Tables'!$BL$41,'Input Tables'!$BM$41),('Cost Budgets'!$G$13*K6),0) -> 0 | L44: =IF(OR(L1='Input Tables'!$BA$41, L1='Input Tables'!$BB$41,L1='Input Tables'!$BC$41, L1='Input Tables'!$BD$41,L1='Input Tables'!$BE$41,L1='Input Tables'!$BF$41,L1='Input Tables'!$BG$41,L1='Input Tables'!$BH$41,L1='Input Tables'!$BI$41,L1='Input Tables'!$BJ$41,L1='Input Tables'!$BK$41, L1='Input Tables'!$BL$41,'Input Tables'!$BM$41),('Cost Budgets'!$G$13*L6),0) -> 38.4 | M44: =IF(OR(M1='Input Tables'!$BA$41, M1='Input Tables'!$BB$41,M1='Input Tables'!$BC$41, M1='Input Tables'!$BD$41,M1='Input Tables'!$BE$41,M1='Input Tables'!$BF$41,M1='Input Tables'!$BG$41,M1='Input Tables'!$BH$41,M1='Input Tables'!$BI$41,M1='Input Tables'!$BJ$41,M1='Input Tables'!$BK$41, M1='Input Tables'!$BL$41,'Input Tables'!$BM$41),('Cost Budgets'!$G$13*M6),0) -> 0 | N44: =IF(OR(N1='Input Tables'!$BA$41, N1='Input Tables'!$BB$41,N1='Input Tables'!$BC$41, N1='Input Tables'!$BD$41,N1='Input Tables'!$BE$41,N1='Input Tables'!$BF$41,N1='Input Tables'!$BG$41,N1='Input Tables'!$BH$41,N1='Input Tables'!$BI$41,N1='Input Tables'!$BJ$41,N1='Input Tables'!$BK$41, N1='Input Tables'!$BL$41,'Input Tables'!$BM$41),('Cost Budgets'!$G$13*N6),0) -> 35.4 | O44: =IF(OR(O1='Input Tables'!$BA$41, O1='Input Tables'!$BB$41,O1='Input Tables'!$BC$41, O1='Input Tables'!$BD$41,O1='Input Tables'!$BE$41,O1='Input Tables'!$BF$41,O1='Input Tables'!$BG$41,O1='Input Tables'!$BH$41,O1='Input Tables'!$BI$41,O1='Input Tables'!$BJ$41,O1='Input Tables'!$BK$41, O1='Input Tables'!$BL$41,'Input Tables'!$BM$41),('Cost Budgets'!$G$13*O6),0) -> 0 | P44: =IF(OR(P1='Input Tables'!$BA$41, P1='Input Tables'!$BB$41,P1='Input Tables'!$BC$41, P1='Input Tables'!$BD$41,P1='Input Tables'!$BE$41,P1='Input Tables'!$BF$41,P1='Input Tables'!$BG$41,P1='Input Tables'!$BH$41,P1='Input Tables'!$BI$41,P1='Input Tables'!$BJ$41,P1='Input Tables'!$BK$41, P1='Input Tables'!$BL$41,'Input Tables'!$BM$41),('Cost Budgets'!$G$13*P6),0) -> 0 | Q44: =IF(OR(Q1='Input Tables'!$BA$41, Q1='Input Tables'!$BB$41,Q1='Input Tables'!$BC$41, Q1='Input Tables'!$BD$41,Q1='Input Tables'!$BE$41,Q1='Input Tables'!$BF$41,Q1='Input Tables'!$BG$41,Q1='Input Tables'!$BH$41,Q1='Input Tables'!$BI$41,Q1='Input Tables'!$BJ$41,Q1='Input Tables'!$BK$41, Q1='Input Tables'!$BL$41,'Input Tables'!$BM$41),('Cost Budgets'!$G$13*Q6),0) -> 0 | R44: =IF(OR(R1='Input Tables'!$BA$41, R1='Input Tables'!$BB$41,R1='Input Tables'!$BC$41, R1='Input Tables'!$BD$41,R1='Input Tables'!$BE$41,R1='Input Tables'!$BF$41,R1='Input Tables'!$BG$41,R1='Input Tables'!$BH$41,R1='Input Tables'!$BI$41,R1='Input Tables'!$BJ$41,R1='Input Tables'!$BK$41, R1='Input Tables'!$BL$41,'Input Tables'!$BM$41),('Cost Budgets'!$G$13*R6),0) -> 0 | S44: =IF(OR(S1='Input Tables'!$BA$41, S1='Input Tables'!$BB$41,S1='Input Tables'!$BC$41, S1='Input Tables'!$BD$41,S1='Input Tables'!$BE$41,S1='Input Tables'!$BF$41,S1='Input Tables'!$BG$41,S1='Input Tables'!$BH$41,S1='Input Tables'!$BI$41,S1='Input Tables'!$BJ$41,S1='Input Tables'!$BK$41, S1='Input Tables'!$BL$41,'Input Tables'!$BM$41),('Cost Budgets'!$G$13*S6),0) -> 0 | T44: =IF(OR(T1='Input Tables'!$BA$41, T1='Input Tables'!$BB$41,T1='Input Tables'!$BC$41, T1='Input Tables'!$BD$41,T1='Input Tables'!$BE$41,T1='Input Tables'!$BF$41,T1='Input Tables'!$BG$41,T1='Input Tables'!$BH$41,T1='Input Tables'!$BI$41,T1='Input Tables'!$BJ$41,T1='Input Tables'!$BK$41, T1='Input Tables'!$BL$41,'Input Tables'!$BM$41),('Cost Budgets'!$G$13*T6),0) -> 0 | U44: =IF(OR(U1='Input Tables'!$BA$41, U1='Input Tables'!$BB$41,U1='Input Tables'!$BC$41, U1='Input Tables'!$BD$41,U1='Input Tables'!$BE$41,U1='Input Tables'!$BF$41,U1='Input Tables'!$BG$41,U1='Input Tables'!$BH$41,U1='Input Tables'!$BI$41,U1='Input Tables'!$BJ$41,U1='Input Tables'!$BK$41, U1='Input Tables'!$BL$41,'Input Tables'!$BM$41),('Cost Budgets'!$G$13*U6),0) -> 0 | V44: =IF(OR(V1='Input Tables'!$BA$41, V1='Input Tables'!$BB$41,V1='Input Tables'!$BC$41, V1='Input Tables'!$BD$41,V1='Input Tables'!$BE$41,V1='Input Tables'!$BF$41,V1='Input Tables'!$BG$41,V1='Input Tables'!$BH$41,V1='Input Tables'!$BI$41,V1='Input Tables'!$BJ$41,V1='Input Tables'!$BK$41, V1='Input Tables'!$BL$41,'Input Tables'!$BM$41),('Cost Budgets'!$G$13*V6),0) -> 0 | W44: =IF(OR(W1='Input Tables'!$BA$41, W1='Input Tables'!$BB$41,W1='Input Tables'!$BC$41, W1='Input Tables'!$BD$41,W1='Input Tables'!$BE$41,W1='Input Tables'!$BF$41,W1='Input Tables'!$BG$41,W1='Input Tables'!$BH$41,W1='Input Tables'!$BI$41,W1='Input Tables'!$BJ$41,W1='Input Tables'!$BK$41, W1='Input Tables'!$BL$41,'Input Tables'!$BM$41),('Cost Budgets'!$G$13*W6),0) -> 0 | X44: =IF(OR(X1='Input Tables'!$BA$41, X1='Input Tables'!$BB$41,X1='Input Tables'!$BC$41, X1='Input Tables'!$BD$41,X1='Input Tables'!$BE$41,X1='Input Tables'!$BF$41,X1='Input Tables'!$BG$41,X1='Input Tables'!$BH$41,X1='Input Tables'!$BI$41,X1='Input Tables'!$BJ$41,X1='Input Tables'!$BK$41, X1='Input Tables'!$BL$41,'Input Tables'!$BM$41),('Cost Budgets'!$G$13*X6),0) -> 0 | Y44: =IF(OR(Y1='Input Tables'!$BA$41, Y1='Input Tables'!$BB$41,Y1='Input Tables'!$BC$41, Y1='Input Tables'!$BD$41,Y1='Input Tables'!$BE$41,Y1='Input Tables'!$BF$41,Y1='Input Tables'!$BG$41,Y1='Input Tables'!$BH$41,Y1='Input Tables'!$BI$41,Y1='Input Tables'!$BJ$41,Y1='Input Tables'!$BK$41, Y1='Input Tables'!$BL$41,'Input Tables'!$BM$41),('Cost Budgets'!$G$13*Y6),0) -> 0 | Z44: =IF(OR(Z1='Input Tables'!$BA$41, Z1='Input Tables'!$BB$41,Z1='Input Tables'!$BC$41, Z1='Input Tables'!$BD$41,Z1='Input Tables'!$BE$41,Z1='Input Tables'!$BF$41,Z1='Input Tables'!$BG$41,Z1='Input Tables'!$BH$41,Z1='Input Tables'!$BI$41,Z1='Input Tables'!$BJ$41,Z1='Input Tables'!$BK$41, Z1='Input Tables'!$BL$41,'Input Tables'!$BM$41),('Cost Budgets'!$G$13*Z6),0) -> 0 | AA44: =IF(OR(AA1='Input Tables'!$BA$41, AA1='Input Tables'!$BB$41,AA1='Input Tables'!$BC$41, AA1='Input Tables'!$BD$41,AA1='Input Tables'!$BE$41,AA1='Input Tables'!$BF$41,AA1='Input Tables'!$BG$41,AA1='Input Tables'!$BH$41,AA1='Input Tables'!$BI$41,AA1='Input Tables'!$BJ$41,AA1='Input Tables'!$BK$41, AA1='Input Tables'!$BL$41,'Input Tables'!$BM$41),('Cost Budgets'!$G$13*AA6),0) -> 0 | AB44: =IF(OR(AB1='Input Tables'!$BA$41, AB1='Input Tables'!$BB$41,AB1='Input Tables'!$BC$41, AB1='Input Tables'!$BD$41,AB1='Input Tables'!$BE$41,AB1='Input Tables'!$BF$41,AB1='Input Tables'!$BG$41,AB1='Input Tables'!$BH$41,AB1='Input Tables'!$BI$41,AB1='Input Tables'!$BJ$41,AB1='Input Tables'!$BK$41, AB1='Input Tables'!$BL$41,'Input Tables'!$BM$41),('Cost Budgets'!$G$13*AB6),0) -> 0 | AC44: =IF(OR(AC1='Input Tables'!$BA$41, AC1='Input Tables'!$BB$41,AC1='Input Tables'!$BC$41, AC1='Input Tables'!$BD$41,AC1='Input Tables'!$BE$41,AC1='Input Tables'!$BF$41,AC1='Input Tables'!$BG$41,AC1='Input Tables'!$BH$41,AC1='Input Tables'!$BI$41,AC1='Input Tables'!$BJ$41,AC1='Input Tables'!$BK$41, AC1='Input Tables'!$BL$41,'Input Tables'!$BM$41),('Cost Budgets'!$G$13*AC6),0) -> 0 | AD44: =IF(OR(AD1='Input Tables'!$BA$41, AD1='Input Tables'!$BB$41,AD1='Input Tables'!$BC$41, AD1='Input Tables'!$BD$41,AD1='Input Tables'!$BE$41,AD1='Input Tables'!$BF$41,AD1='Input Tables'!$BG$41,AD1='Input Tables'!$BH$41,AD1='Input Tables'!$BI$41,AD1='Input Tables'!$BJ$41,AD1='Input Tables'!$BK$41, AD1='Input Tables'!$BL$41,'Input Tables'!$BM$41),('Cost Budgets'!$G$13*AD6),0) -> 0 | AE44: =IF(OR(AE1='Input Tables'!$BA$41, AE1='Input Tables'!$BB$41,AE1='Input Tables'!$BC$41, AE1='Input Tables'!$BD$41,AE1='Input Tables'!$BE$41,AE1='Input Tables'!$BF$41,AE1='Input Tables'!$BG$41,AE1='Input Tables'!$BH$41,AE1='Input Tables'!$BI$41,AE1='Input Tables'!$BJ$41,AE1='Input Tables'!$BK$41, AE1='Input Tables'!$BL$41,'Input Tables'!$BM$41),('Cost Budgets'!$G$13*AE6),0) -> 0 | AF44: =IF(OR(AF1='Input Tables'!$BA$41, AF1='Input Tables'!$BB$41,AF1='Input Tables'!$BC$41, AF1='Input Tables'!$BD$41,AF1='Input Tables'!$BE$41,AF1='Input Tables'!$BF$41,AF1='Input Tables'!$BG$41,AF1='Input Tables'!$BH$41,AF1='Input Tables'!$BI$41,AF1='Input Tables'!$BJ$41,AF1='Input Tables'!$BK$41, AF1='Input Tables'!$BL$41,'Input Tables'!$BM$41),('Cost Budgets'!$G$13*AF6),0) -> 0 | AG44: =IF(OR(AG1='Input Tables'!$BA$41, AG1='Input Tables'!$BB$41,AG1='Input Tables'!$BC$41, AG1='Input Tables'!$BD$41,AG1='Input Tables'!$BE$41,AG1='Input Tables'!$BF$41,AG1='Input Tables'!$BG$41,AG1='Input Tables'!$BH$41,AG1='Input Tables'!$BI$41,AG1='Input Tables'!$BJ$41,AG1='Input Tables'!$BK$41, AG1='Input Tables'!$BL$41,'Input Tables'!$BM$41),('Cost Budgets'!$G$13*AG6),0) -> 0 | AH44: =IF(OR(AH1='Input Tables'!$BA$41, AH1='Input Tables'!$BB$41,AH1='Input Tables'!$BC$41, AH1='Input Tables'!$BD$41,AH1='Input Tables'!$BE$41,AH1='Input Tables'!$BF$41,AH1='Input Tables'!$BG$41,AH1='Input Tables'!$BH$41,AH1='Input Tables'!$BI$41,AH1='Input Tables'!$BJ$41,AH1='Input Tables'!$BK$41, AH1='Input Tables'!$BL$41,'Input Tables'!$BM$41),('Cost Budgets'!$G$13*AH6),0) -> 0 | AI44: =IF(OR(AI1='Input Tables'!$BA$41, AI1='Input Tables'!$BB$41,AI1='Input Tables'!$BC$41, AI1='Input Tables'!$BD$41,AI1='Input Tables'!$BE$41,AI1='Input Tables'!$BF$41,AI1='Input Tables'!$BG$41,AI1='Input Tables'!$BH$41,AI1='Input Tables'!$BI$41,AI1='Input Tables'!$BJ$41,AI1='Input Tables'!$BK$41, AI1='Input Tables'!$BL$41,'Input Tables'!$BM$41),('Cost Budgets'!$G$13*AI6),0) -> 0 | AJ44: =IF(OR(AJ1='Input Tables'!$BA$41, AJ1='Input Tables'!$BB$41,AJ1='Input Tables'!$BC$41, AJ1='Input Tables'!$BD$41,AJ1='Input Tables'!$BE$41,AJ1='Input Tables'!$BF$41,AJ1='Input Tables'!$BG$41,AJ1='Input Tables'!$BH$41,AJ1='Input Tables'!$BI$41,AJ1='Input Tables'!$BJ$41,AJ1='Input Tables'!$BK$41, AJ1='Input Tables'!$BL$41,'Input Tables'!$BM$41),('Cost Budgets'!$G$13*AJ6),0) -> 0 | AK44: =IF(OR(AK1='Input Tables'!$BA$41, AK1='Input Tables'!$BB$41,AK1='Input Tables'!$BC$41, AK1='Input Tables'!$BD$41,AK1='Input Tables'!$BE$41,AK1='Input Tables'!$BF$41,AK1='Input Tables'!$BG$41,AK1='Input Tables'!$BH$41,AK1='Input Tables'!$BI$41,AK1='Input Tables'!$BJ$41,AK1='Input Tables'!$BK$41, AK1='Input Tables'!$BL$41,'Input Tables'!$BM$41),('Cost Budgets'!$G$13*AK6),0) -> 0 | AL44: =IF(OR(AL1='Input Tables'!$BA$41, AL1='Input Tables'!$BB$41,AL1='Input Tables'!$BC$41, AL1='Input Tables'!$BD$41,AL1='Input Tables'!$BE$41,AL1='Input Tables'!$BF$41,AL1='Input Tables'!$BG$41,AL1='Input Tables'!$BH$41,AL1='Input Tables'!$BI$41,AL1='Input Tables'!$BJ$41,AL1='Input Tables'!$BK$41, AL1='Input Tables'!$BL$41,'Input Tables'!$BM$41),('Cost Budgets'!$G$13*AL6),0) -> 0 | AM44: =IF(OR(AM1='Input Tables'!$BA$41, AM1='Input Tables'!$BB$41,AM1='Input Tables'!$BC$41, AM1='Input Tables'!$BD$41,AM1='Input Tables'!$BE$41,AM1='Input Tables'!$BF$41,AM1='Input Tables'!$BG$41,AM1='Input Tables'!$BH$41,AM1='Input Tables'!$BI$41,AM1='Input Tables'!$BJ$41,AM1='Input Tables'!$BK$41, AM1='Input Tables'!$BL$41,'Input Tables'!$BM$41),('Cost Budgets'!$G$13*AM6),0) -> 0 | AN44: =IF(OR(AN1='Input Tables'!$BA$41, AN1='Input Tables'!$BB$41,AN1='Input Tables'!$BC$41, AN1='Input Tables'!$BD$41,AN1='Input Tables'!$BE$41,AN1='Input Tables'!$BF$41,AN1='Input Tables'!$BG$41,AN1='Input Tables'!$BH$41,AN1='Input Tables'!$BI$41,AN1='Input Tables'!$BJ$41,AN1='Input Tables'!$BK$41, AN1='Input Tables'!$BL$41,'Input Tables'!$BM$41),('Cost Budgets'!$G$13*AN6),0) -> 0 | AO44: =IF(OR(AO1='Input Tables'!$BA$41, AO1='Input Tables'!$BB$41,AO1='Input Tables'!$BC$41, AO1='Input Tables'!$BD$41,AO1='Input Tables'!$BE$41,AO1='Input Tables'!$BF$41,AO1='Input Tables'!$BG$41,AO1='Input Tables'!$BH$41,AO1='Input Tables'!$BI$41,AO1='Input Tables'!$BJ$41,AO1='Input Tables'!$BK$41, AO1='Input Tables'!$BL$41,'Input Tables'!$BM$41),('Cost Budgets'!$G$13*AO6),0) -> 0 | AP44: =IF(OR(AP1='Input Tables'!$BA$41, AP1='Input Tables'!$BB$41,AP1='Input Tables'!$BC$41, AP1='Input Tables'!$BD$41,AP1='Input Tables'!$BE$41,AP1='Input Tables'!$BF$41,AP1='Input Tables'!$BG$41,AP1='Input Tables'!$BH$41,AP1='Input Tables'!$BI$41,AP1='Input Tables'!$BJ$41,AP1='Input Tables'!$BK$41, AP1='Input Tables'!$BL$41,'Input Tables'!$BM$41),('Cost Budgets'!$G$13*AP6),0) -> 0 | AQ44: =IF(OR(AQ1='Input Tables'!$BA$41, AQ1='Input Tables'!$BB$41,AQ1='Input Tables'!$BC$41, AQ1='Input Tables'!$BD$41,AQ1='Input Tables'!$BE$41,AQ1='Input Tables'!$BF$41,AQ1='Input Tables'!$BG$41,AQ1='Input Tables'!$BH$41,AQ1='Input Tables'!$BI$41,AQ1='Input Tables'!$BJ$41,AQ1='Input Tables'!$BK$41, AQ1='Input Tables'!$BL$41,'Input Tables'!$BM$41),('Cost Budgets'!$G$13*AQ6),0) -> 0 | AR44: =IF(OR(AR1='Input Tables'!$BA$41, AR1='Input Tables'!$BB$41,AR1='Input Tables'!$BC$41, AR1='Input Tables'!$BD$41,AR1='Input Tables'!$BE$41,AR1='Input Tables'!$BF$41,AR1='Input Tables'!$BG$41,AR1='Input Tables'!$BH$41,AR1='Input Tables'!$BI$41,AR1='Input Tables'!$BJ$41,AR1='Input Tables'!$BK$41, AR1='Input Tables'!$BL$41,'Input Tables'!$BM$41),('Cost Budgets'!$G$13*AR6),0) -> 0 | AS44: =IF(OR(AS1='Input Tables'!$BA$41, AS1='Input Tables'!$BB$41,AS1='Input Tables'!$BC$41, AS1='Input Tables'!$BD$41,AS1='Input Tables'!$BE$41,AS1='Input Tables'!$BF$41,AS1='Input Tables'!$BG$41,AS1='Input Tables'!$BH$41,AS1='Input Tables'!$BI$41,AS1='Input Tables'!$BJ$41,AS1='Input Tables'!$BK$41, AS1='Input Tables'!$BL$41,'Input Tables'!$BM$41),('Cost Budgets'!$G$13*AS6),0) -> 0 | AT44: =IF(OR(AT1='Input Tables'!$BA$41, AT1='Input Tables'!$BB$41,AT1='Input Tables'!$BC$41, AT1='Input Tables'!$BD$41,AT1='Input Tables'!$BE$41,AT1='Input Tables'!$BF$41,AT1='Input Tables'!$BG$41,AT1='Input Tables'!$BH$41,AT1='Input Tables'!$BI$41,AT1='Input Tables'!$BJ$41,AT1='Input Tables'!$BK$41, AT1='Input Tables'!$BL$41,'Input Tables'!$BM$41),('Cost Budgets'!$G$13*AT6),0) -> 0 | AU44: =IF(OR(AU1='Input Tables'!$BA$41, AU1='Input Tables'!$BB$41,AU1='Input Tables'!$BC$41, AU1='Input Tables'!$BD$41,AU1='Input Tables'!$BE$41,AU1='Input Tables'!$BF$41,AU1='Input Tables'!$BG$41,AU1='Input Tables'!$BH$41,AU1='Input Tables'!$BI$41,AU1='Input Tables'!$BJ$41,AU1='Input Tables'!$BK$41, AU1='Input Tables'!$BL$41,'Input Tables'!$BM$41),('Cost Budgets'!$G$13*AU6),0) -> 0 | AV44: =IF(OR(AV1='Input Tables'!$BA$41, AV1='Input Tables'!$BB$41,AV1='Input Tables'!$BC$41, AV1='Input Tables'!$BD$41,AV1='Input Tables'!$BE$41,AV1='Input Tables'!$BF$41,AV1='Input Tables'!$BG$41,AV1='Input Tables'!$BH$41,AV1='Input Tables'!$BI$41,AV1='Input Tables'!$BJ$41,AV1='Input Tables'!$BK$41, AV1='Input Tables'!$BL$41,'Input Tables'!$BM$41),('Cost Budgets'!$G$13*AV6),0) -> 0 | AW44: =IF(OR(AW1='Input Tables'!$BA$41, AW1='Input Tables'!$BB$41,AW1='Input Tables'!$BC$41, AW1='Input Tables'!$BD$41,AW1='Input Tables'!$BE$41,AW1='Input Tables'!$BF$41,AW1='Input Tables'!$BG$41,AW1='Input Tables'!$BH$41,AW1='Input Tables'!$BI$41,AW1='Input Tables'!$BJ$41,AW1='Input Tables'!$BK$41, AW1='Input Tables'!$BL$41,'Input Tables'!$BM$41),('Cost Budgets'!$G$13*AW6),0) -> 0 | AX44: =IF(OR(AX1='Input Tables'!$BA$41, AX1='Input Tables'!$BB$41,AX1='Input Tables'!$BC$41, AX1='Input Tables'!$BD$41,AX1='Input Tables'!$BE$41,AX1='Input Tables'!$BF$41,AX1='Input Tables'!$BG$41,AX1='Input Tables'!$BH$41,AX1='Input Tables'!$BI$41,AX1='Input Tables'!$BJ$41,AX1='Input Tables'!$BK$41, AX1='Input Tables'!$BL$41,'Input Tables'!$BM$41),('Cost Budgets'!$G$13*AX6),0) -> 0 | AY44: =IF(OR(AY1='Input Tables'!$BA$41, AY1='Input Tables'!$BB$41,AY1='Input Tables'!$BC$41, AY1='Input Tables'!$BD$41,AY1='Input Tables'!$BE$41,AY1='Input Tables'!$BF$41,AY1='Input Tables'!$BG$41,AY1='Input Tables'!$BH$41,AY1='Input Tables'!$BI$41,AY1='Input Tables'!$BJ$41,AY1='Input Tables'!$BK$41, AY1='Input Tables'!$BL$41,'Input Tables'!$BM$41),('Cost Budgets'!$G$13*AY6),0) -> 0 | AZ44: =IF(OR(AZ1='Input Tables'!$BA$41, AZ1='Input Tables'!$BB$41,AZ1='Input Tables'!$BC$41, AZ1='Input Tables'!$BD$41,AZ1='Input Tables'!$BE$41,AZ1='Input Tables'!$BF$41,AZ1='Input Tables'!$BG$41,AZ1='Input Tables'!$BH$41,AZ1='Input Tables'!$BI$41,AZ1='Input Tables'!$BJ$41,AZ1='Input Tables'!$BK$41, AZ1='Input Tables'!$BL$41,'Input Tables'!$BM$41),('Cost Budgets'!$G$13*AZ6),0) -> 0 | BA44: =IF(OR(BA1='Input Tables'!$BA$41, BA1='Input Tables'!$BB$41,BA1='Input Tables'!$BC$41, BA1='Input Tables'!$BD$41,BA1='Input Tables'!$BE$41,BA1='Input Tables'!$BF$41,BA1='Input Tables'!$BG$41,BA1='Input Tables'!$BH$41,BA1='Input Tables'!$BI$41,BA1='Input Tables'!$BJ$41,BA1='Input Tables'!$BK$41, BA1='Input Tables'!$BL$41,'Input Tables'!$BM$41),('Cost Budgets'!$G$13*BA6),0) -> 0 | BB44: =IF(OR(BB1='Input Tables'!$BA$41, BB1='Input Tables'!$BB$41,BB1='Input Tables'!$BC$41, BB1='Input Tables'!$BD$41,BB1='Input Tables'!$BE$41,BB1='Input Tables'!$BF$41,BB1='Input Tables'!$BG$41,BB1='Input Tables'!$BH$41,BB1='Input Tables'!$BI$41,BB1='Input Tables'!$BJ$41,BB1='Input Tables'!$BK$41, BB1='Input Tables'!$BL$41,'Input Tables'!$BM$41),('Cost Budgets'!$G$13*BB6),0) -> 0 | BC44: =IF(OR(BC1='Input Tables'!$BA$41, BC1='Input Tables'!$BB$41,BC1='Input Tables'!$BC$41, BC1='Input Tables'!$BD$41,BC1='Input Tables'!$BE$41,BC1='Input Tables'!$BF$41,BC1='Input Tables'!$BG$41,BC1='Input Tables'!$BH$41,BC1='Input Tables'!$BI$41,BC1='Input Tables'!$BJ$41,BC1='Input Tables'!$BK$41, BC1='Input Tables'!$BL$41,'Input Tables'!$BM$41),('Cost Budgets'!$G$13*BC6),0) -> 0 | BD44: =IF(OR(BD1='Input Tables'!$BA$41, BD1='Input Tables'!$BB$41,BD1='Input Tables'!$BC$41, BD1='Input Tables'!$BD$41,BD1='Input Tables'!$BE$41,BD1='Input Tables'!$BF$41,BD1='Input Tables'!$BG$41,BD1='Input Tables'!$BH$41,BD1='Input Tables'!$BI$41,BD1='Input Tables'!$BJ$41,BD1='Input Tables'!$BK$41, BD1='Input Tables'!$BL$41,'Input Tables'!$BM$41),('Cost Budgets'!$G$13*BD6),0) -> 0 | BE44: =IF(OR(BE1='Input Tables'!$BA$41, BE1='Input Tables'!$BB$41,BE1='Input Tables'!$BC$41, BE1='Input Tables'!$BD$41,BE1='Input Tables'!$BE$41,BE1='Input Tables'!$BF$41,BE1='Input Tables'!$BG$41,BE1='Input Tables'!$BH$41,BE1='Input Tables'!$BI$41,BE1='Input Tables'!$BJ$41,BE1='Input Tables'!$BK$41, BE1='Input Tables'!$BL$41,'Input Tables'!$BM$41),('Cost Budgets'!$G$13*BE6),0) -> 0 | BF44: =IF(OR(BF1='Input Tables'!$BA$41, BF1='Input Tables'!$BB$41,BF1='Input Tables'!$BC$41, BF1='Input Tables'!$BD$41,BF1='Input Tables'!$BE$41,BF1='Input Tables'!$BF$41,BF1='Input Tables'!$BG$41,BF1='Input Tables'!$BH$41,BF1='Input Tables'!$BI$41,BF1='Input Tables'!$BJ$41,BF1='Input Tables'!$BK$41, BF1='Input Tables'!$BL$41,'Input Tables'!$BM$41),('Cost Budgets'!$G$13*BF6),0) -> 0 | BG44: =IF(OR(BG1='Input Tables'!$BA$41, BG1='Input Tables'!$BB$41,BG1='Input Tables'!$BC$41, BG1='Input Tables'!$BD$41,BG1='Input Tables'!$BE$41,BG1='Input Tables'!$BF$41,BG1='Input Tables'!$BG$41,BG1='Input Tables'!$BH$41,BG1='Input Tables'!$BI$41,BG1='Input Tables'!$BJ$41,BG1='Input Tables'!$BK$41, BG1='Input Tables'!$BL$41,'Input Tables'!$BM$41),('Cost Budgets'!$G$13*BG6),0) -> 0 | BH44: =IF(OR(BH1='Input Tables'!$BA$41, BH1='Input Tables'!$BB$41,BH1='Input Tables'!$BC$41, BH1='Input Tables'!$BD$41,BH1='Input Tables'!$BE$41,BH1='Input Tables'!$BF$41,BH1='Input Tables'!$BG$41,BH1='Input Tables'!$BH$41,BH1='Input Tables'!$BI$41,BH1='Input Tables'!$BJ$41,BH1='Input Tables'!$BK$41, BH1='Input Tables'!$BL$41,'Input Tables'!$BM$41),('Cost Budgets'!$G$13*BH6),0) -> 0 | BI44: =IF(OR(BI1='Input Tables'!$BA$41, BI1='Input Tables'!$BB$41,BI1='Input Tables'!$BC$41, BI1='Input Tables'!$BD$41,BI1='Input Tables'!$BE$41,BI1='Input Tables'!$BF$41,BI1='Input Tables'!$BG$41,BI1='Input Tables'!$BH$41,BI1='Input Tables'!$BI$41,BI1='Input Tables'!$BJ$41,BI1='Input Tables'!$BK$41, BI1='Input Tables'!$BL$41,'Input Tables'!$BM$41),('Cost Budgets'!$G$13*BI6),0) -> 0 | BJ44: =IF(OR(BJ1='Input Tables'!$BA$41, BJ1='Input Tables'!$BB$41,BJ1='Input Tables'!$BC$41, BJ1='Input Tables'!$BD$41,BJ1='Input Tables'!$BE$41,BJ1='Input Tables'!$BF$41,BJ1='Input Tables'!$BG$41,BJ1='Input Tables'!$BH$41,BJ1='Input Tables'!$BI$41,BJ1='Input Tables'!$BJ$41,BJ1='Input Tables'!$BK$41, BJ1='Input Tables'!$BL$41,'Input Tables'!$BM$41),('Cost Budgets'!$G$13*BJ6),0) -> 0 | BK44: =IF(OR(BK1='Input Tables'!$BA$41, BK1='Input Tables'!$BB$41,BK1='Input Tables'!$BC$41, BK1='Input Tables'!$BD$41,BK1='Input Tables'!$BE$41,BK1='Input Tables'!$BF$41,BK1='Input Tables'!$BG$41,BK1='Input Tables'!$BH$41,BK1='Input Tables'!$BI$41,BK1='Input Tables'!$BJ$41,BK1='Input Tables'!$BK$41, BK1='Input Tables'!$BL$41,'Input Tables'!$BM$41),('Cost Budgets'!$G$13*BK6),0) -> 0
B46: Weed Control | E46: =IF(OR(E1='Input Tables'!$BA$47, E1='Input Tables'!$BB$47,E1='Input Tables'!$BC$47, E1='Input Tables'!$BD$47,E1='Input Tables'!$BE$47,E1='Input Tables'!$BF$47,E1='Input Tables'!$BG$47,E1='Input Tables'!$BH$47,E1='Input Tables'!$BI$47,E1='Input Tables'!$BJ$47,E1='Input Tables'!$BK$47, E1='Input Tables'!$BL$47,'Input Tables'!$BM$47),('Cost Budgets'!$G$14*E6),0) -> 120 | F46: =IF(OR(F1='Input Tables'!$BA$47, F1='Input Tables'!$BB$47,F1='Input Tables'!$BC$47, F1='Input Tables'!$BD$47,F1='Input Tables'!$BE$47,F1='Input Tables'!$BF$47,F1='Input Tables'!$BG$47,F1='Input Tables'!$BH$47,F1='Input Tables'!$BI$47,F1='Input Tables'!$BJ$47,F1='Input Tables'!$BK$47, F1='Input Tables'!$BL$47,'Input Tables'!$BM$47),('Cost Budgets'!$G$14*F6),0) -> 0 | G46: =IF(OR(G1='Input Tables'!$BA$47, G1='Input Tables'!$BB$47,G1='Input Tables'!$BC$47, G1='Input Tables'!$BD$47,G1='Input Tables'!$BE$47,G1='Input Tables'!$BF$47,G1='Input Tables'!$BG$47,G1='Input Tables'!$BH$47,G1='Input Tables'!$BI$47,G1='Input Tables'!$BJ$47,G1='Input Tables'!$BK$47, G1='Input Tables'!$BL$47,'Input Tables'!$BM$47),('Cost Budgets'!$G$14*G6),0) -> 0 | H46: =IF(OR(H1='Input Tables'!$BA$47, H1='Input Tables'!$BB$47,H1='Input Tables'!$BC$47, H1='Input Tables'!$BD$47,H1='Input Tables'!$BE$47,H1='Input Tables'!$BF$47,H1='Input Tables'!$BG$47,H1='Input Tables'!$BH$47,H1='Input Tables'!$BI$47,H1='Input Tables'!$BJ$47,H1='Input Tables'!$BK$47, H1='Input Tables'!$BL$47,'Input Tables'!$BM$47),('Cost Budgets'!$G$14*H6),0) -> 0 | I46: =IF(OR(I1='Input Tables'!$BA$47, I1='Input Tables'!$BB$47,I1='Input Tables'!$BC$47, I1='Input Tables'!$BD$47,I1='Input Tables'!$BE$47,I1='Input Tables'!$BF$47,I1='Input Tables'!$BG$47,I1='Input Tables'!$BH$47,I1='Input Tables'!$BI$47,I1='Input Tables'!$BJ$47,I1='Input Tables'!$BK$47, I1='Input Tables'!$BL$47,'Input Tables'!$BM$47),('Cost Budgets'!$G$14*I6),0) -> 0 | J46: =IF(OR(J1='Input Tables'!$BA$47, J1='Input Tables'!$BB$47,J1='Input Tables'!$BC$47, J1='Input Tables'!$BD$47,J1='Input Tables'!$BE$47,J1='Input Tables'!$BF$47,J1='Input Tables'!$BG$47,J1='Input Tables'!$BH$47,J1='Input Tables'!$BI$47,J1='Input Tables'!$BJ$47,J1='Input Tables'!$BK$47, J1='Input Tables'!$BL$47,'Input Tables'!$BM$47),('Cost Budgets'!$G$14*J6),0) -> 102.6446281 | K46: =IF(OR(K1='Input Tables'!$BA$47, K1='Input Tables'!$BB$47,K1='Input Tables'!$BC$47, K1='Input Tables'!$BD$47,K1='Input Tables'!$BE$47,K1='Input Tables'!$BF$47,K1='Input Tables'!$BG$47,K1='Input Tables'!$BH$47,K1='Input Tables'!$BI$47,K1='Input Tables'!$BJ$47,K1='Input Tables'!$BK$47, K1='Input Tables'!$BL$47,'Input Tables'!$BM$47),('Cost Budgets'!$G$14*K6),0) -> 0 | L46: =IF(OR(L1='Input Tables'!$BA$47, L1='Input Tables'!$BB$47,L1='Input Tables'!$BC$47, L1='Input Tables'!$BD$47,L1='Input Tables'!$BE$47,L1='Input Tables'!$BF$47,L1='Input Tables'!$BG$47,L1='Input Tables'!$BH$47,L1='Input Tables'!$BI$47,L1='Input Tables'!$BJ$47,L1='Input Tables'!$BK$47, L1='Input Tables'!$BL$47,'Input Tables'!$BM$47),('Cost Budgets'!$G$14*L6),0) -> 0 | M46: =IF(OR(M1='Input Tables'!$BA$47, M1='Input Tables'!$BB$47,M1='Input Tables'!$BC$47, M1='Input Tables'!$BD$47,M1='Input Tables'!$BE$47,M1='Input Tables'!$BF$47,M1='Input Tables'!$BG$47,M1='Input Tables'!$BH$47,M1='Input Tables'!$BI$47,M1='Input Tables'!$BJ$47,M1='Input Tables'!$BK$47, M1='Input Tables'!$BL$47,'Input Tables'!$BM$47),('Cost Budgets'!$G$14*M6),0) -> 0 | N46: =IF(OR(N1='Input Tables'!$BA$47, N1='Input Tables'!$BB$47,N1='Input Tables'!$BC$47, N1='Input Tables'!$BD$47,N1='Input Tables'!$BE$47,N1='Input Tables'!$BF$47,N1='Input Tables'!$BG$47,N1='Input Tables'!$BH$47,N1='Input Tables'!$BI$47,N1='Input Tables'!$BJ$47,N1='Input Tables'!$BK$47, N1='Input Tables'!$BL$47,'Input Tables'!$BM$47),('Cost Budgets'!$G$14*N6),0) -> 0 | O46: =IF(OR(O1='Input Tables'!$BA$47, O1='Input Tables'!$BB$47,O1='Input Tables'!$BC$47, O1='Input Tables'!$BD$47,O1='Input Tables'!$BE$47,O1='Input Tables'!$BF$47,O1='Input Tables'!$BG$47,O1='Input Tables'!$BH$47,O1='Input Tables'!$BI$47,O1='Input Tables'!$BJ$47,O1='Input Tables'!$BK$47, O1='Input Tables'!$BL$47,'Input Tables'!$BM$47),('Cost Budgets'!$G$14*O6),0) -> 0 | P46: =IF(OR(P1='Input Tables'!$BA$47, P1='Input Tables'!$BB$47,P1='Input Tables'!$BC$47, P1='Input Tables'!$BD$47,P1='Input Tables'!$BE$47,P1='Input Tables'!$BF$47,P1='Input Tables'!$BG$47,P1='Input Tables'!$BH$47,P1='Input Tables'!$BI$47,P1='Input Tables'!$BJ$47,P1='Input Tables'!$BK$47, P1='Input Tables'!$BL$47,'Input Tables'!$BM$47),('Cost Budgets'!$G$14*P6),0) -> 0 | Q46: =IF(OR(Q1='Input Tables'!$BA$47, Q1='Input Tables'!$BB$47,Q1='Input Tables'!$BC$47, Q1='Input Tables'!$BD$47,Q1='Input Tables'!$BE$47,Q1='Input Tables'!$BF$47,Q1='Input Tables'!$BG$47,Q1='Input Tables'!$BH$47,Q1='Input Tables'!$BI$47,Q1='Input Tables'!$BJ$47,Q1='Input Tables'!$BK$47, Q1='Input Tables'!$BL$47,'Input Tables'!$BM$47),('Cost Budgets'!$G$14*Q6),0) -> 0 | R46: =IF(OR(R1='Input Tables'!$BA$47, R1='Input Tables'!$BB$47,R1='Input Tables'!$BC$47, R1='Input Tables'!$BD$47,R1='Input Tables'!$BE$47,R1='Input Tables'!$BF$47,R1='Input Tables'!$BG$47,R1='Input Tables'!$BH$47,R1='Input Tables'!$BI$47,R1='Input Tables'!$BJ$47,R1='Input Tables'!$BK$47, R1='Input Tables'!$BL$47,'Input Tables'!$BM$47),('Cost Budgets'!$G$14*R6),0) -> 0 | S46: =IF(OR(S1='Input Tables'!$BA$47, S1='Input Tables'!$BB$47,S1='Input Tables'!$BC$47, S1='Input Tables'!$BD$47,S1='Input Tables'!$BE$47,S1='Input Tables'!$BF$47,S1='Input Tables'!$BG$47,S1='Input Tables'!$BH$47,S1='Input Tables'!$BI$47,S1='Input Tables'!$BJ$47,S1='Input Tables'!$BK$47, S1='Input Tables'!$BL$47,'Input Tables'!$BM$47),('Cost Budgets'!$G$14*S6),0) -> 0 | T46: =IF(OR(T1='Input Tables'!$BA$47, T1='Input Tables'!$BB$47,T1='Input Tables'!$BC$47, T1='Input Tables'!$BD$47,T1='Input Tables'!$BE$47,T1='Input Tables'!$BF$47,T1='Input Tables'!$BG$47,T1='Input Tables'!$BH$47,T1='Input Tables'!$BI$47,T1='Input Tables'!$BJ$47,T1='Input Tables'!$BK$47, T1='Input Tables'!$BL$47,'Input Tables'!$BM$47),('Cost Budgets'!$G$14*T6),0) -> 0 | U46: =IF(OR(U1='Input Tables'!$BA$47, U1='Input Tables'!$BB$47,U1='Input Tables'!$BC$47, U1='Input Tables'!$BD$47,U1='Input Tables'!$BE$47,U1='Input Tables'!$BF$47,U1='Input Tables'!$BG$47,U1='Input Tables'!$BH$47,U1='Input Tables'!$BI$47,U1='Input Tables'!$BJ$47,U1='Input Tables'!$BK$47, U1='Input Tables'!$BL$47,'Input Tables'!$BM$47),('Cost Budgets'!$G$14*U6),0) -> 0 | V46: =IF(OR(V1='Input Tables'!$BA$47, V1='Input Tables'!$BB$47,V1='Input Tables'!$BC$47, V1='Input Tables'!$BD$47,V1='Input Tables'!$BE$47,V1='Input Tables'!$BF$47,V1='Input Tables'!$BG$47,V1='Input Tables'!$BH$47,V1='Input Tables'!$BI$47,V1='Input Tables'!$BJ$47,V1='Input Tables'!$BK$47, V1='Input Tables'!$BL$47,'Input Tables'!$BM$47),('Cost Budgets'!$G$14*V6),0) -> 0 | W46: =IF(OR(W1='Input Tables'!$BA$47, W1='Input Tables'!$BB$47,W1='Input Tables'!$BC$47, W1='Input Tables'!$BD$47,W1='Input Tables'!$BE$47,W1='Input Tables'!$BF$47,W1='Input Tables'!$BG$47,W1='Input Tables'!$BH$47,W1='Input Tables'!$BI$47,W1='Input Tables'!$BJ$47,W1='Input Tables'!$BK$47, W1='Input Tables'!$BL$47,'Input Tables'!$BM$47),('Cost Budgets'!$G$14*W6),0) -> 0 | X46: =IF(OR(X1='Input Tables'!$BA$47, X1='Input Tables'!$BB$47,X1='Input Tables'!$BC$47, X1='Input Tables'!$BD$47,X1='Input Tables'!$BE$47,X1='Input Tables'!$BF$47,X1='Input Tables'!$BG$47,X1='Input Tables'!$BH$47,X1='Input Tables'!$BI$47,X1='Input Tables'!$BJ$47,X1='Input Tables'!$BK$47, X1='Input Tables'!$BL$47,'Input Tables'!$BM$47),('Cost Budgets'!$G$14*X6),0) -> 0 | Y46: =IF(OR(Y1='Input Tables'!$BA$47, Y1='Input Tables'!$BB$47,Y1='Input Tables'!$BC$47, Y1='Input Tables'!$BD$47,Y1='Input Tables'!$BE$47,Y1='Input Tables'!$BF$47,Y1='Input Tables'!$BG$47,Y1='Input Tables'!$BH$47,Y1='Input Tables'!$BI$47,Y1='Input Tables'!$BJ$47,Y1='Input Tables'!$BK$47, Y1='Input Tables'!$BL$47,'Input Tables'!$BM$47),('Cost Budgets'!$G$14*Y6),0) -> 0 | Z46: =IF(OR(Z1='Input Tables'!$BA$47, Z1='Input Tables'!$BB$47,Z1='Input Tables'!$BC$47, Z1='Input Tables'!$BD$47,Z1='Input Tables'!$BE$47,Z1='Input Tables'!$BF$47,Z1='Input Tables'!$BG$47,Z1='Input Tables'!$BH$47,Z1='Input Tables'!$BI$47,Z1='Input Tables'!$BJ$47,Z1='Input Tables'!$BK$47, Z1='Input Tables'!$BL$47,'Input Tables'!$BM$47),('Cost Budgets'!$G$14*Z6),0) -> 0 | AA46: =IF(OR(AA1='Input Tables'!$BA$47, AA1='Input Tables'!$BB$47,AA1='Input Tables'!$BC$47, AA1='Input Tables'!$BD$47,AA1='Input Tables'!$BE$47,AA1='Input Tables'!$BF$47,AA1='Input Tables'!$BG$47,AA1='Input Tables'!$BH$47,AA1='Input Tables'!$BI$47,AA1='Input Tables'!$BJ$47,AA1='Input Tables'!$BK$47, AA1='Input Tables'!$BL$47,'Input Tables'!$BM$47),('Cost Budgets'!$G$14*AA6),0) -> 0 | AB46: =IF(OR(AB1='Input Tables'!$BA$47, AB1='Input Tables'!$BB$47,AB1='Input Tables'!$BC$47, AB1='Input Tables'!$BD$47,AB1='Input Tables'!$BE$47,AB1='Input Tables'!$BF$47,AB1='Input Tables'!$BG$47,AB1='Input Tables'!$BH$47,AB1='Input Tables'!$BI$47,AB1='Input Tables'!$BJ$47,AB1='Input Tables'!$BK$47, AB1='Input Tables'!$BL$47,'Input Tables'!$BM$47),('Cost Budgets'!$G$14*AB6),0) -> 0 | AC46: =IF(OR(AC1='Input Tables'!$BA$47, AC1='Input Tables'!$BB$47,AC1='Input Tables'!$BC$47, AC1='Input Tables'!$BD$47,AC1='Input Tables'!$BE$47,AC1='Input Tables'!$BF$47,AC1='Input Tables'!$BG$47,AC1='Input Tables'!$BH$47,AC1='Input Tables'!$BI$47,AC1='Input Tables'!$BJ$47,AC1='Input Tables'!$BK$47, AC1='Input Tables'!$BL$47,'Input Tables'!$BM$47),('Cost Budgets'!$G$14*AC6),0) -> 0 | AD46: =IF(OR(AD1='Input Tables'!$BA$47, AD1='Input Tables'!$BB$47,AD1='Input Tables'!$BC$47, AD1='Input Tables'!$BD$47,AD1='Input Tables'!$BE$47,AD1='Input Tables'!$BF$47,AD1='Input Tables'!$BG$47,AD1='Input Tables'!$BH$47,AD1='Input Tables'!$BI$47,AD1='Input Tables'!$BJ$47,AD1='Input Tables'!$BK$47, AD1='Input Tables'!$BL$47,'Input Tables'!$BM$47),('Cost Budgets'!$G$14*AD6),0) -> 0 | AE46: =IF(OR(AE1='Input Tables'!$BA$47, AE1='Input Tables'!$BB$47,AE1='Input Tables'!$BC$47, AE1='Input Tables'!$BD$47,AE1='Input Tables'!$BE$47,AE1='Input Tables'!$BF$47,AE1='Input Tables'!$BG$47,AE1='Input Tables'!$BH$47,AE1='Input Tables'!$BI$47,AE1='Input Tables'!$BJ$47,AE1='Input Tables'!$BK$47, AE1='Input Tables'!$BL$47,'Input Tables'!$BM$47),('Cost Budgets'!$G$14*AE6),0) -> 0 | AF46: =IF(OR(AF1='Input Tables'!$BA$47, AF1='Input Tables'!$BB$47,AF1='Input Tables'!$BC$47, AF1='Input Tables'!$BD$47,AF1='Input Tables'!$BE$47,AF1='Input Tables'!$BF$47,AF1='Input Tables'!$BG$47,AF1='Input Tables'!$BH$47,AF1='Input Tables'!$BI$47,AF1='Input Tables'!$BJ$47,AF1='Input Tables'!$BK$47, AF1='Input Tables'!$BL$47,'Input Tables'!$BM$47),('Cost Budgets'!$G$14*AF6),0) -> 0 | AG46: =IF(OR(AG1='Input Tables'!$BA$47, AG1='Input Tables'!$BB$47,AG1='Input Tables'!$BC$47, AG1='Input Tables'!$BD$47,AG1='Input Tables'!$BE$47,AG1='Input Tables'!$BF$47,AG1='Input Tables'!$BG$47,AG1='Input Tables'!$BH$47,AG1='Input Tables'!$BI$47,AG1='Input Tables'!$BJ$47,AG1='Input Tables'!$BK$47, AG1='Input Tables'!$BL$47,'Input Tables'!$BM$47),('Cost Budgets'!$G$14*AG6),0) -> 0 | AH46: =IF(OR(AH1='Input Tables'!$BA$47, AH1='Input Tables'!$BB$47,AH1='Input Tables'!$BC$47, AH1='Input Tables'!$BD$47,AH1='Input Tables'!$BE$47,AH1='Input Tables'!$BF$47,AH1='Input Tables'!$BG$47,AH1='Input Tables'!$BH$47,AH1='Input Tables'!$BI$47,AH1='Input Tables'!$BJ$47,AH1='Input Tables'!$BK$47, AH1='Input Tables'!$BL$47,'Input Tables'!$BM$47),('Cost Budgets'!$G$14*AH6),0) -> 0 | AI46: =IF(OR(AI1='Input Tables'!$BA$47, AI1='Input Tables'!$BB$47,AI1='Input Tables'!$BC$47, AI1='Input Tables'!$BD$47,AI1='Input Tables'!$BE$47,AI1='Input Tables'!$BF$47,AI1='Input Tables'!$BG$47,AI1='Input Tables'!$BH$47,AI1='Input Tables'!$BI$47,AI1='Input Tables'!$BJ$47,AI1='Input Tables'!$BK$47, AI1='Input Tables'!$BL$47,'Input Tables'!$BM$47),('Cost Budgets'!$G$14*AI6),0) -> 0 | AJ46: =IF(OR(AJ1='Input Tables'!$BA$47, AJ1='Input Tables'!$BB$47,AJ1='Input Tables'!$BC$47, AJ1='Input Tables'!$BD$47,AJ1='Input Tables'!$BE$47,AJ1='Input Tables'!$BF$47,AJ1='Input Tables'!$BG$47,AJ1='Input Tables'!$BH$47,AJ1='Input Tables'!$BI$47,AJ1='Input Tables'!$BJ$47,AJ1='Input Tables'!$BK$47, AJ1='Input Tables'!$BL$47,'Input Tables'!$BM$47),('Cost Budgets'!$G$14*AJ6),0) -> 0 | AK46: =IF(OR(AK1='Input Tables'!$BA$47, AK1='Input Tables'!$BB$47,AK1='Input Tables'!$BC$47, AK1='Input Tables'!$BD$47,AK1='Input Tables'!$BE$47,AK1='Input Tables'!$BF$47,AK1='Input Tables'!$BG$47,AK1='Input Tables'!$BH$47,AK1='Input Tables'!$BI$47,AK1='Input Tables'!$BJ$47,AK1='Input Tables'!$BK$47, AK1='Input Tables'!$BL$47,'Input Tables'!$BM$47),('Cost Budgets'!$G$14*AK6),0) -> 0 | AL46: =IF(OR(AL1='Input Tables'!$BA$47, AL1='Input Tables'!$BB$47,AL1='Input Tables'!$BC$47, AL1='Input Tables'!$BD$47,AL1='Input Tables'!$BE$47,AL1='Input Tables'!$BF$47,AL1='Input Tables'!$BG$47,AL1='Input Tables'!$BH$47,AL1='Input Tables'!$BI$47,AL1='Input Tables'!$BJ$47,AL1='Input Tables'!$BK$47, AL1='Input Tables'!$BL$47,'Input Tables'!$BM$47),('Cost Budgets'!$G$14*AL6),0) -> 0 | AM46: =IF(OR(AM1='Input Tables'!$BA$47, AM1='Input Tables'!$BB$47,AM1='Input Tables'!$BC$47, AM1='Input Tables'!$BD$47,AM1='Input Tables'!$BE$47,AM1='Input Tables'!$BF$47,AM1='Input Tables'!$BG$47,AM1='Input Tables'!$BH$47,AM1='Input Tables'!$BI$47,AM1='Input Tables'!$BJ$47,AM1='Input Tables'!$BK$47, AM1='Input Tables'!$BL$47,'Input Tables'!$BM$47),('Cost Budgets'!$G$14*AM6),0) -> 0 | AN46: =IF(OR(AN1='Input Tables'!$BA$47, AN1='Input Tables'!$BB$47,AN1='Input Tables'!$BC$47, AN1='Input Tables'!$BD$47,AN1='Input Tables'!$BE$47,AN1='Input Tables'!$BF$47,AN1='Input Tables'!$BG$47,AN1='Input Tables'!$BH$47,AN1='Input Tables'!$BI$47,AN1='Input Tables'!$BJ$47,AN1='Input Tables'!$BK$47, AN1='Input Tables'!$BL$47,'Input Tables'!$BM$47),('Cost Budgets'!$G$14*AN6),0) -> 0 | AO46: =IF(OR(AO1='Input Tables'!$BA$47, AO1='Input Tables'!$BB$47,AO1='Input Tables'!$BC$47, AO1='Input Tables'!$BD$47,AO1='Input Tables'!$BE$47,AO1='Input Tables'!$BF$47,AO1='Input Tables'!$BG$47,AO1='Input Tables'!$BH$47,AO1='Input Tables'!$BI$47,AO1='Input Tables'!$BJ$47,AO1='Input Tables'!$BK$47, AO1='Input Tables'!$BL$47,'Input Tables'!$BM$47),('Cost Budgets'!$G$14*AO6),0) -> 0 | AP46: =IF(OR(AP1='Input Tables'!$BA$47, AP1='Input Tables'!$BB$47,AP1='Input Tables'!$BC$47, AP1='Input Tables'!$BD$47,AP1='Input Tables'!$BE$47,AP1='Input Tables'!$BF$47,AP1='Input Tables'!$BG$47,AP1='Input Tables'!$BH$47,AP1='Input Tables'!$BI$47,AP1='Input Tables'!$BJ$47,AP1='Input Tables'!$BK$47, AP1='Input Tables'!$BL$47,'Input Tables'!$BM$47),('Cost Budgets'!$G$14*AP6),0) -> 0 | AQ46: =IF(OR(AQ1='Input Tables'!$BA$47, AQ1='Input Tables'!$BB$47,AQ1='Input Tables'!$BC$47, AQ1='Input Tables'!$BD$47,AQ1='Input Tables'!$BE$47,AQ1='Input Tables'!$BF$47,AQ1='Input Tables'!$BG$47,AQ1='Input Tables'!$BH$47,AQ1='Input Tables'!$BI$47,AQ1='Input Tables'!$BJ$47,AQ1='Input Tables'!$BK$47, AQ1='Input Tables'!$BL$47,'Input Tables'!$BM$47),('Cost Budgets'!$G$14*AQ6),0) -> 0 | AR46: =IF(OR(AR1='Input Tables'!$BA$47, AR1='Input Tables'!$BB$47,AR1='Input Tables'!$BC$47, AR1='Input Tables'!$BD$47,AR1='Input Tables'!$BE$47,AR1='Input Tables'!$BF$47,AR1='Input Tables'!$BG$47,AR1='Input Tables'!$BH$47,AR1='Input Tables'!$BI$47,AR1='Input Tables'!$BJ$47,AR1='Input Tables'!$BK$47, AR1='Input Tables'!$BL$47,'Input Tables'!$BM$47),('Cost Budgets'!$G$14*AR6),0) -> 0 | AS46: =IF(OR(AS1='Input Tables'!$BA$47, AS1='Input Tables'!$BB$47,AS1='Input Tables'!$BC$47, AS1='Input Tables'!$BD$47,AS1='Input Tables'!$BE$47,AS1='Input Tables'!$BF$47,AS1='Input Tables'!$BG$47,AS1='Input Tables'!$BH$47,AS1='Input Tables'!$BI$47,AS1='Input Tables'!$BJ$47,AS1='Input Tables'!$BK$47, AS1='Input Tables'!$BL$47,'Input Tables'!$BM$47),('Cost Budgets'!$G$14*AS6),0) -> 0 | AT46: =IF(OR(AT1='Input Tables'!$BA$47, AT1='Input Tables'!$BB$47,AT1='Input Tables'!$BC$47, AT1='Input Tables'!$BD$47,AT1='Input Tables'!$BE$47,AT1='Input Tables'!$BF$47,AT1='Input Tables'!$BG$47,AT1='Input Tables'!$BH$47,AT1='Input Tables'!$BI$47,AT1='Input Tables'!$BJ$47,AT1='Input Tables'!$BK$47, AT1='Input Tables'!$BL$47,'Input Tables'!$BM$47),('Cost Budgets'!$G$14*AT6),0) -> 0 | AU46: =IF(OR(AU1='Input Tables'!$BA$47, AU1='Input Tables'!$BB$47,AU1='Input Tables'!$BC$47, AU1='Input Tables'!$BD$47,AU1='Input Tables'!$BE$47,AU1='Input Tables'!$BF$47,AU1='Input Tables'!$BG$47,AU1='Input Tables'!$BH$47,AU1='Input Tables'!$BI$47,AU1='Input Tables'!$BJ$47,AU1='Input Tables'!$BK$47, AU1='Input Tables'!$BL$47,'Input Tables'!$BM$47),('Cost Budgets'!$G$14*AU6),0) -> 0 | AV46: =IF(OR(AV1='Input Tables'!$BA$47, AV1='Input Tables'!$BB$47,AV1='Input Tables'!$BC$47, AV1='Input Tables'!$BD$47,AV1='Input Tables'!$BE$47,AV1='Input Tables'!$BF$47,AV1='Input Tables'!$BG$47,AV1='Input Tables'!$BH$47,AV1='Input Tables'!$BI$47,AV1='Input Tables'!$BJ$47,AV1='Input Tables'!$BK$47, AV1='Input Tables'!$BL$47,'Input Tables'!$BM$47),('Cost Budgets'!$G$14*AV6),0) -> 0 | AW46: =IF(OR(AW1='Input Tables'!$BA$47, AW1='Input Tables'!$BB$47,AW1='Input Tables'!$BC$47, AW1='Input Tables'!$BD$47,AW1='Input Tables'!$BE$47,AW1='Input Tables'!$BF$47,AW1='Input Tables'!$BG$47,AW1='Input Tables'!$BH$47,AW1='Input Tables'!$BI$47,AW1='Input Tables'!$BJ$47,AW1='Input Tables'!$BK$47, AW1='Input Tables'!$BL$47,'Input Tables'!$BM$47),('Cost Budgets'!$G$14*AW6),0) -> 0 | AX46: =IF(OR(AX1='Input Tables'!$BA$47, AX1='Input Tables'!$BB$47,AX1='Input Tables'!$BC$47, AX1='Input Tables'!$BD$47,AX1='Input Tables'!$BE$47,AX1='Input Tables'!$BF$47,AX1='Input Tables'!$BG$47,AX1='Input Tables'!$BH$47,AX1='Input Tables'!$BI$47,AX1='Input Tables'!$BJ$47,AX1='Input Tables'!$BK$47, AX1='Input Tables'!$BL$47,'Input Tables'!$BM$47),('Cost Budgets'!$G$14*AX6),0) -> 0 | AY46: =IF(OR(AY1='Input Tables'!$BA$47, AY1='Input Tables'!$BB$47,AY1='Input Tables'!$BC$47, AY1='Input Tables'!$BD$47,AY1='Input Tables'!$BE$47,AY1='Input Tables'!$BF$47,AY1='Input Tables'!$BG$47,AY1='Input Tables'!$BH$47,AY1='Input Tables'!$BI$47,AY1='Input Tables'!$BJ$47,AY1='Input Tables'!$BK$47, AY1='Input Tables'!$BL$47,'Input Tables'!$BM$47),('Cost Budgets'!$G$14*AY6),0) -> 0 | AZ46: =IF(OR(AZ1='Input Tables'!$BA$47, AZ1='Input Tables'!$BB$47,AZ1='Input Tables'!$BC$47, AZ1='Input Tables'!$BD$47,AZ1='Input Tables'!$BE$47,AZ1='Input Tables'!$BF$47,AZ1='Input Tables'!$BG$47,AZ1='Input Tables'!$BH$47,AZ1='Input Tables'!$BI$47,AZ1='Input Tables'!$BJ$47,AZ1='Input Tables'!$BK$47, AZ1='Input Tables'!$BL$47,'Input Tables'!$BM$47),('Cost Budgets'!$G$14*AZ6),0) -> 0 | BA46: =IF(OR(BA1='Input Tables'!$BA$47, BA1='Input Tables'!$BB$47,BA1='Input Tables'!$BC$47, BA1='Input Tables'!$BD$47,BA1='Input Tables'!$BE$47,BA1='Input Tables'!$BF$47,BA1='Input Tables'!$BG$47,BA1='Input Tables'!$BH$47,BA1='Input Tables'!$BI$47,BA1='Input Tables'!$BJ$47,BA1='Input Tables'!$BK$47, BA1='Input Tables'!$BL$47,'Input Tables'!$BM$47),('Cost Budgets'!$G$14*BA6),0) -> 0 | BB46: =IF(OR(BB1='Input Tables'!$BA$47, BB1='Input Tables'!$BB$47,BB1='Input Tables'!$BC$47, BB1='Input Tables'!$BD$47,BB1='Input Tables'!$BE$47,BB1='Input Tables'!$BF$47,BB1='Input Tables'!$BG$47,BB1='Input Tables'!$BH$47,BB1='Input Tables'!$BI$47,BB1='Input Tables'!$BJ$47,BB1='Input Tables'!$BK$47, BB1='Input Tables'!$BL$47,'Input Tables'!$BM$47),('Cost Budgets'!$G$14*BB6),0) -> 0 | BC46: =IF(OR(BC1='Input Tables'!$BA$47, BC1='Input Tables'!$BB$47,BC1='Input Tables'!$BC$47, BC1='Input Tables'!$BD$47,BC1='Input Tables'!$BE$47,BC1='Input Tables'!$BF$47,BC1='Input Tables'!$BG$47,BC1='Input Tables'!$BH$47,BC1='Input Tables'!$BI$47,BC1='Input Tables'!$BJ$47,BC1='Input Tables'!$BK$47, BC1='Input Tables'!$BL$47,'Input Tables'!$BM$47),('Cost Budgets'!$G$14*BC6),0) -> 0 | BD46: =IF(OR(BD1='Input Tables'!$BA$47, BD1='Input Tables'!$BB$47,BD1='Input Tables'!$BC$47, BD1='Input Tables'!$BD$47,BD1='Input Tables'!$BE$47,BD1='Input Tables'!$BF$47,BD1='Input Tables'!$BG$47,BD1='Input Tables'!$BH$47,BD1='Input Tables'!$BI$47,BD1='Input Tables'!$BJ$47,BD1='Input Tables'!$BK$47, BD1='Input Tables'!$BL$47,'Input Tables'!$BM$47),('Cost Budgets'!$G$14*BD6),0) -> 0 | BE46: =IF(OR(BE1='Input Tables'!$BA$47, BE1='Input Tables'!$BB$47,BE1='Input Tables'!$BC$47, BE1='Input Tables'!$BD$47,BE1='Input Tables'!$BE$47,BE1='Input Tables'!$BF$47,BE1='Input Tables'!$BG$47,BE1='Input Tables'!$BH$47,BE1='Input Tables'!$BI$47,BE1='Input Tables'!$BJ$47,BE1='Input Tables'!$BK$47, BE1='Input Tables'!$BL$47,'Input Tables'!$BM$47),('Cost Budgets'!$G$14*BE6),0) -> 0 | BF46: =IF(OR(BF1='Input Tables'!$BA$47, BF1='Input Tables'!$BB$47,BF1='Input Tables'!$BC$47, BF1='Input Tables'!$BD$47,BF1='Input Tables'!$BE$47,BF1='Input Tables'!$BF$47,BF1='Input Tables'!$BG$47,BF1='Input Tables'!$BH$47,BF1='Input Tables'!$BI$47,BF1='Input Tables'!$BJ$47,BF1='Input Tables'!$BK$47, BF1='Input Tables'!$BL$47,'Input Tables'!$BM$47),('Cost Budgets'!$G$14*BF6),0) -> 0 | BG46: =IF(OR(BG1='Input Tables'!$BA$47, BG1='Input Tables'!$BB$47,BG1='Input Tables'!$BC$47, BG1='Input Tables'!$BD$47,BG1='Input Tables'!$BE$47,BG1='Input Tables'!$BF$47,BG1='Input Tables'!$BG$47,BG1='Input Tables'!$BH$47,BG1='Input Tables'!$BI$47,BG1='Input Tables'!$BJ$47,BG1='Input Tables'!$BK$47, BG1='Input Tables'!$BL$47,'Input Tables'!$BM$47),('Cost Budgets'!$G$14*BG6),0) -> 0 | BH46: =IF(OR(BH1='Input Tables'!$BA$47, BH1='Input Tables'!$BB$47,BH1='Input Tables'!$BC$47, BH1='Input Tables'!$BD$47,BH1='Input Tables'!$BE$47,BH1='Input Tables'!$BF$47,BH1='Input Tables'!$BG$47,BH1='Input Tables'!$BH$47,BH1='Input Tables'!$BI$47,BH1='Input Tables'!$BJ$47,BH1='Input Tables'!$BK$47, BH1='Input Tables'!$BL$47,'Input Tables'!$BM$47),('Cost Budgets'!$G$14*BH6),0) -> 0 | BI46: =IF(OR(BI1='Input Tables'!$BA$47, BI1='Input Tables'!$BB$47,BI1='Input Tables'!$BC$47, BI1='Input Tables'!$BD$47,BI1='Input Tables'!$BE$47,BI1='Input Tables'!$BF$47,BI1='Input Tables'!$BG$47,BI1='Input Tables'!$BH$47,BI1='Input Tables'!$BI$47,BI1='Input Tables'!$BJ$47,BI1='Input Tables'!$BK$47, BI1='Input Tables'!$BL$47,'Input Tables'!$BM$47),('Cost Budgets'!$G$14*BI6),0) -> 0 | BJ46: =IF(OR(BJ1='Input Tables'!$BA$47, BJ1='Input Tables'!$BB$47,BJ1='Input Tables'!$BC$47, BJ1='Input Tables'!$BD$47,BJ1='Input Tables'!$BE$47,BJ1='Input Tables'!$BF$47,BJ1='Input Tables'!$BG$47,BJ1='Input Tables'!$BH$47,BJ1='Input Tables'!$BI$47,BJ1='Input Tables'!$BJ$47,BJ1='Input Tables'!$BK$47, BJ1='Input Tables'!$BL$47,'Input Tables'!$BM$47),('Cost Budgets'!$G$14*BJ6),0) -> 0 | BK46: =IF(OR(BK1='Input Tables'!$BA$47, BK1='Input Tables'!$BB$47,BK1='Input Tables'!$BC$47, BK1='Input Tables'!$BD$47,BK1='Input Tables'!$BE$47,BK1='Input Tables'!$BF$47,BK1='Input Tables'!$BG$47,BK1='Input Tables'!$BH$47,BK1='Input Tables'!$BI$47,BK1='Input Tables'!$BJ$47,BK1='Input Tables'!$BK$47, BK1='Input Tables'!$BL$47,'Input Tables'!$BM$47),('Cost Budgets'!$G$14*BK6),0) -> 0
B48: Pest Control | E48: =IF(OR(E1='Input Tables'!$BA$54, E1='Input Tables'!$BB$54,E1='Input Tables'!$BC$54, E1='Input Tables'!$BD$54,E1='Input Tables'!$BE$54,E1='Input Tables'!$BF$54,E1='Input Tables'!$BG$54,E1='Input Tables'!$BH$54,E1='Input Tables'!$BI$54,E1='Input Tables'!$BJ$54,E1='Input Tables'!$BK$54, E1='Input Tables'!$BL$54,'Input Tables'!$BM$54),('Cost Budgets'!$G$15*E6),0) -> 0 | F48: =IF(OR(F1='Input Tables'!$BA$54, F1='Input Tables'!$BB$54,F1='Input Tables'!$BC$54, F1='Input Tables'!$BD$54,F1='Input Tables'!$BE$54,F1='Input Tables'!$BF$54,F1='Input Tables'!$BG$54,F1='Input Tables'!$BH$54,F1='Input Tables'!$BI$54,F1='Input Tables'!$BJ$54,F1='Input Tables'!$BK$54, F1='Input Tables'!$BL$54,'Input Tables'!$BM$54),('Cost Budgets'!$G$15*F6),0) -> 0 | G48: =IF(OR(G1='Input Tables'!$BA$54, G1='Input Tables'!$BB$54,G1='Input Tables'!$BC$54, G1='Input Tables'!$BD$54,G1='Input Tables'!$BE$54,G1='Input Tables'!$BF$54,G1='Input Tables'!$BG$54,G1='Input Tables'!$BH$54,G1='Input Tables'!$BI$54,G1='Input Tables'!$BJ$54,G1='Input Tables'!$BK$54, G1='Input Tables'!$BL$54,'Input Tables'!$BM$54),('Cost Budgets'!$G$15*G6),0) -> 0 | H48: =IF(OR(H1='Input Tables'!$BA$54, H1='Input Tables'!$BB$54,H1='Input Tables'!$BC$54, H1='Input Tables'!$BD$54,H1='Input Tables'!$BE$54,H1='Input Tables'!$BF$54,H1='Input Tables'!$BG$54,H1='Input Tables'!$BH$54,H1='Input Tables'!$BI$54,H1='Input Tables'!$BJ$54,H1='Input Tables'!$BK$54, H1='Input Tables'!$BL$54,'Input Tables'!$BM$54),('Cost Budgets'!$G$15*H6),0) -> 9.213619835 | I48: =IF(OR(I1='Input Tables'!$BA$54, I1='Input Tables'!$BB$54,I1='Input Tables'!$BC$54, I1='Input Tables'!$BD$54,I1='Input Tables'!$BE$54,I1='Input Tables'!$BF$54,I1='Input Tables'!$BG$54,I1='Input Tables'!$BH$54,I1='Input Tables'!$BI$54,I1='Input Tables'!$BJ$54,I1='Input Tables'!$BK$54, I1='Input Tables'!$BL$54,'Input Tables'!$BM$54),('Cost Budgets'!$G$15*I6),0) -> 0 | J48: =IF(OR(J1='Input Tables'!$BA$54, J1='Input Tables'!$BB$54,J1='Input Tables'!$BC$54, J1='Input Tables'!$BD$54,J1='Input Tables'!$BE$54,J1='Input Tables'!$BF$54,J1='Input Tables'!$BG$54,J1='Input Tables'!$BH$54,J1='Input Tables'!$BI$54,J1='Input Tables'!$BJ$54,J1='Input Tables'!$BK$54, J1='Input Tables'!$BL$54,'Input Tables'!$BM$54),('Cost Budgets'!$G$15*J6),0) -> 0 | K48: =IF(OR(K1='Input Tables'!$BA$54, K1='Input Tables'!$BB$54,K1='Input Tables'!$BC$54, K1='Input Tables'!$BD$54,K1='Input Tables'!$BE$54,K1='Input Tables'!$BF$54,K1='Input Tables'!$BG$54,K1='Input Tables'!$BH$54,K1='Input Tables'!$BI$54,K1='Input Tables'!$BJ$54,K1='Input Tables'!$BK$54, K1='Input Tables'!$BL$54,'Input Tables'!$BM$54),('Cost Budgets'!$G$15*K6),0) -> 7.464198347 | L48: =IF(OR(L1='Input Tables'!$BA$54, L1='Input Tables'!$BB$54,L1='Input Tables'!$BC$54, L1='Input Tables'!$BD$54,L1='Input Tables'!$BE$54,L1='Input Tables'!$BF$54,L1='Input Tables'!$BG$54,L1='Input Tables'!$BH$54,L1='Input Tables'!$BI$54,L1='Input Tables'!$BJ$54,L1='Input Tables'!$BK$54, L1='Input Tables'!$BL$54,'Input Tables'!$BM$54),('Cost Budgets'!$G$15*L6),0) -> 0 | M48: =IF(OR(M1='Input Tables'!$BA$54, M1='Input Tables'!$BB$54,M1='Input Tables'!$BC$54, M1='Input Tables'!$BD$54,M1='Input Tables'!$BE$54,M1='Input Tables'!$BF$54,M1='Input Tables'!$BG$54,M1='Input Tables'!$BH$54,M1='Input Tables'!$BI$54,M1='Input Tables'!$BJ$54,M1='Input Tables'!$BK$54, M1='Input Tables'!$BL$54,'Input Tables'!$BM$54),('Cost Budgets'!$G$15*M6),0) -> 0 | N48: =IF(OR(N1='Input Tables'!$BA$54, N1='Input Tables'!$BB$54,N1='Input Tables'!$BC$54, N1='Input Tables'!$BD$54,N1='Input Tables'!$BE$54,N1='Input Tables'!$BF$54,N1='Input Tables'!$BG$54,N1='Input Tables'!$BH$54,N1='Input Tables'!$BI$54,N1='Input Tables'!$BJ$54,N1='Input Tables'!$BK$54, N1='Input Tables'!$BL$54,'Input Tables'!$BM$54),('Cost Budgets'!$G$15*N6),0) -> 6.881057851 | O48: =IF(OR(O1='Input Tables'!$BA$54, O1='Input Tables'!$BB$54,O1='Input Tables'!$BC$54, O1='Input Tables'!$BD$54,O1='Input Tables'!$BE$54,O1='Input Tables'!$BF$54,O1='Input Tables'!$BG$54,O1='Input Tables'!$BH$54,O1='Input Tables'!$BI$54,O1='Input Tables'!$BJ$54,O1='Input Tables'!$BK$54, O1='Input Tables'!$BL$54,'Input Tables'!$BM$54),('Cost Budgets'!$G$15*O6),0) -> 0 | P48: =IF(OR(P1='Input Tables'!$BA$54, P1='Input Tables'!$BB$54,P1='Input Tables'!$BC$54, P1='Input Tables'!$BD$54,P1='Input Tables'!$BE$54,P1='Input Tables'!$BF$54,P1='Input Tables'!$BG$54,P1='Input Tables'!$BH$54,P1='Input Tables'!$BI$54,P1='Input Tables'!$BJ$54,P1='Input Tables'!$BK$54, P1='Input Tables'!$BL$54,'Input Tables'!$BM$54),('Cost Budgets'!$G$15*P6),0) -> 0 | Q48: =IF(OR(Q1='Input Tables'!$BA$54, Q1='Input Tables'!$BB$54,Q1='Input Tables'!$BC$54, Q1='Input Tables'!$BD$54,Q1='Input Tables'!$BE$54,Q1='Input Tables'!$BF$54,Q1='Input Tables'!$BG$54,Q1='Input Tables'!$BH$54,Q1='Input Tables'!$BI$54,Q1='Input Tables'!$BJ$54,Q1='Input Tables'!$BK$54, Q1='Input Tables'!$BL$54,'Input Tables'!$BM$54),('Cost Budgets'!$G$15*Q6),0) -> 6.881057851 | R48: =IF(OR(R1='Input Tables'!$BA$54, R1='Input Tables'!$BB$54,R1='Input Tables'!$BC$54, R1='Input Tables'!$BD$54,R1='Input Tables'!$BE$54,R1='Input Tables'!$BF$54,R1='Input Tables'!$BG$54,R1='Input Tables'!$BH$54,R1='Input Tables'!$BI$54,R1='Input Tables'!$BJ$54,R1='Input Tables'!$BK$54, R1='Input Tables'!$BL$54,'Input Tables'!$BM$54),('Cost Budgets'!$G$15*R6),0) -> 0 | S48: =IF(OR(S1='Input Tables'!$BA$54, S1='Input Tables'!$BB$54,S1='Input Tables'!$BC$54, S1='Input Tables'!$BD$54,S1='Input Tables'!$BE$54,S1='Input Tables'!$BF$54,S1='Input Tables'!$BG$54,S1='Input Tables'!$BH$54,S1='Input Tables'!$BI$54,S1='Input Tables'!$BJ$54,S1='Input Tables'!$BK$54, S1='Input Tables'!$BL$54,'Input Tables'!$BM$54),('Cost Budgets'!$G$15*S6),0) -> 0 | T48: =IF(OR(T1='Input Tables'!$BA$54, T1='Input Tables'!$BB$54,T1='Input Tables'!$BC$54, T1='Input Tables'!$BD$54,T1='Input Tables'!$BE$54,T1='Input Tables'!$BF$54,T1='Input Tables'!$BG$54,T1='Input Tables'!$BH$54,T1='Input Tables'!$BI$54,T1='Input Tables'!$BJ$54,T1='Input Tables'!$BK$54, T1='Input Tables'!$BL$54,'Input Tables'!$BM$54),('Cost Budgets'!$G$15*T6),0) -> 0 | U48: =IF(OR(U1='Input Tables'!$BA$54, U1='Input Tables'!$BB$54,U1='Input Tables'!$BC$54, U1='Input Tables'!$BD$54,U1='Input Tables'!$BE$54,U1='Input Tables'!$BF$54,U1='Input Tables'!$BG$54,U1='Input Tables'!$BH$54,U1='Input Tables'!$BI$54,U1='Input Tables'!$BJ$54,U1='Input Tables'!$BK$54, U1='Input Tables'!$BL$54,'Input Tables'!$BM$54),('Cost Budgets'!$G$15*U6),0) -> 0 | V48: =IF(OR(V1='Input Tables'!$BA$54, V1='Input Tables'!$BB$54,V1='Input Tables'!$BC$54, V1='Input Tables'!$BD$54,V1='Input Tables'!$BE$54,V1='Input Tables'!$BF$54,V1='Input Tables'!$BG$54,V1='Input Tables'!$BH$54,V1='Input Tables'!$BI$54,V1='Input Tables'!$BJ$54,V1='Input Tables'!$BK$54, V1='Input Tables'!$BL$54,'Input Tables'!$BM$54),('Cost Budgets'!$G$15*V6),0) -> 0 | W48: =IF(OR(W1='Input Tables'!$BA$54, W1='Input Tables'!$BB$54,W1='Input Tables'!$BC$54, W1='Input Tables'!$BD$54,W1='Input Tables'!$BE$54,W1='Input Tables'!$BF$54,W1='Input Tables'!$BG$54,W1='Input Tables'!$BH$54,W1='Input Tables'!$BI$54,W1='Input Tables'!$BJ$54,W1='Input Tables'!$BK$54, W1='Input Tables'!$BL$54,'Input Tables'!$BM$54),('Cost Budgets'!$G$15*W6),0) -> 0 | X48: =IF(OR(X1='Input Tables'!$BA$54, X1='Input Tables'!$BB$54,X1='Input Tables'!$BC$54, X1='Input Tables'!$BD$54,X1='Input Tables'!$BE$54,X1='Input Tables'!$BF$54,X1='Input Tables'!$BG$54,X1='Input Tables'!$BH$54,X1='Input Tables'!$BI$54,X1='Input Tables'!$BJ$54,X1='Input Tables'!$BK$54, X1='Input Tables'!$BL$54,'Input Tables'!$BM$54),('Cost Budgets'!$G$15*X6),0) -> 0 | Y48: =IF(OR(Y1='Input Tables'!$BA$54, Y1='Input Tables'!$BB$54,Y1='Input Tables'!$BC$54, Y1='Input Tables'!$BD$54,Y1='Input Tables'!$BE$54,Y1='Input Tables'!$BF$54,Y1='Input Tables'!$BG$54,Y1='Input Tables'!$BH$54,Y1='Input Tables'!$BI$54,Y1='Input Tables'!$BJ$54,Y1='Input Tables'!$BK$54, Y1='Input Tables'!$BL$54,'Input Tables'!$BM$54),('Cost Budgets'!$G$15*Y6),0) -> 0 | Z48: =IF(OR(Z1='Input Tables'!$BA$54, Z1='Input Tables'!$BB$54,Z1='Input Tables'!$BC$54, Z1='Input Tables'!$BD$54,Z1='Input Tables'!$BE$54,Z1='Input Tables'!$BF$54,Z1='Input Tables'!$BG$54,Z1='Input Tables'!$BH$54,Z1='Input Tables'!$BI$54,Z1='Input Tables'!$BJ$54,Z1='Input Tables'!$BK$54, Z1='Input Tables'!$BL$54,'Input Tables'!$BM$54),('Cost Budgets'!$G$15*Z6),0) -> 0 | AA48: =IF(OR(AA1='Input Tables'!$BA$54, AA1='Input Tables'!$BB$54,AA1='Input Tables'!$BC$54, AA1='Input Tables'!$BD$54,AA1='Input Tables'!$BE$54,AA1='Input Tables'!$BF$54,AA1='Input Tables'!$BG$54,AA1='Input Tables'!$BH$54,AA1='Input Tables'!$BI$54,AA1='Input Tables'!$BJ$54,AA1='Input Tables'!$BK$54, AA1='Input Tables'!$BL$54,'Input Tables'!$BM$54),('Cost Budgets'!$G$15*AA6),0) -> 0 | AB48: =IF(OR(AB1='Input Tables'!$BA$54, AB1='Input Tables'!$BB$54,AB1='Input Tables'!$BC$54, AB1='Input Tables'!$BD$54,AB1='Input Tables'!$BE$54,AB1='Input Tables'!$BF$54,AB1='Input Tables'!$BG$54,AB1='Input Tables'!$BH$54,AB1='Input Tables'!$BI$54,AB1='Input Tables'!$BJ$54,AB1='Input Tables'!$BK$54, AB1='Input Tables'!$BL$54,'Input Tables'!$BM$54),('Cost Budgets'!$G$15*AB6),0) -> 0 | AC48: =IF(OR(AC1='Input Tables'!$BA$54, AC1='Input Tables'!$BB$54,AC1='Input Tables'!$BC$54, AC1='Input Tables'!$BD$54,AC1='Input Tables'!$BE$54,AC1='Input Tables'!$BF$54,AC1='Input Tables'!$BG$54,AC1='Input Tables'!$BH$54,AC1='Input Tables'!$BI$54,AC1='Input Tables'!$BJ$54,AC1='Input Tables'!$BK$54, AC1='Input Tables'!$BL$54,'Input Tables'!$BM$54),('Cost Budgets'!$G$15*AC6),0) -> 0 | AD48: =IF(OR(AD1='Input Tables'!$BA$54, AD1='Input Tables'!$BB$54,AD1='Input Tables'!$BC$54, AD1='Input Tables'!$BD$54,AD1='Input Tables'!$BE$54,AD1='Input Tables'!$BF$54,AD1='Input Tables'!$BG$54,AD1='Input Tables'!$BH$54,AD1='Input Tables'!$BI$54,AD1='Input Tables'!$BJ$54,AD1='Input Tables'!$BK$54, AD1='Input Tables'!$BL$54,'Input Tables'!$BM$54),('Cost Budgets'!$G$15*AD6),0) -> 0 | AE48: =IF(OR(AE1='Input Tables'!$BA$54, AE1='Input Tables'!$BB$54,AE1='Input Tables'!$BC$54, AE1='Input Tables'!$BD$54,AE1='Input Tables'!$BE$54,AE1='Input Tables'!$BF$54,AE1='Input Tables'!$BG$54,AE1='Input Tables'!$BH$54,AE1='Input Tables'!$BI$54,AE1='Input Tables'!$BJ$54,AE1='Input Tables'!$BK$54, AE1='Input Tables'!$BL$54,'Input Tables'!$BM$54),('Cost Budgets'!$G$15*AE6),0) -> 0 | AF48: =IF(OR(AF1='Input Tables'!$BA$54, AF1='Input Tables'!$BB$54,AF1='Input Tables'!$BC$54, AF1='Input Tables'!$BD$54,AF1='Input Tables'!$BE$54,AF1='Input Tables'!$BF$54,AF1='Input Tables'!$BG$54,AF1='Input Tables'!$BH$54,AF1='Input Tables'!$BI$54,AF1='Input Tables'!$BJ$54,AF1='Input Tables'!$BK$54, AF1='Input Tables'!$BL$54,'Input Tables'!$BM$54),('Cost Budgets'!$G$15*AF6),0) -> 0 | AG48: =IF(OR(AG1='Input Tables'!$BA$54, AG1='Input Tables'!$BB$54,AG1='Input Tables'!$BC$54, AG1='Input Tables'!$BD$54,AG1='Input Tables'!$BE$54,AG1='Input Tables'!$BF$54,AG1='Input Tables'!$BG$54,AG1='Input Tables'!$BH$54,AG1='Input Tables'!$BI$54,AG1='Input Tables'!$BJ$54,AG1='Input Tables'!$BK$54, AG1='Input Tables'!$BL$54,'Input Tables'!$BM$54),('Cost Budgets'!$G$15*AG6),0) -> 0 | AH48: =IF(OR(AH1='Input Tables'!$BA$54, AH1='Input Tables'!$BB$54,AH1='Input Tables'!$BC$54, AH1='Input Tables'!$BD$54,AH1='Input Tables'!$BE$54,AH1='Input Tables'!$BF$54,AH1='Input Tables'!$BG$54,AH1='Input Tables'!$BH$54,AH1='Input Tables'!$BI$54,AH1='Input Tables'!$BJ$54,AH1='Input Tables'!$BK$54, AH1='Input Tables'!$BL$54,'Input Tables'!$BM$54),('Cost Budgets'!$G$15*AH6),0) -> 0 | AI48: =IF(OR(AI1='Input Tables'!$BA$54, AI1='Input Tables'!$BB$54,AI1='Input Tables'!$BC$54, AI1='Input Tables'!$BD$54,AI1='Input Tables'!$BE$54,AI1='Input Tables'!$BF$54,AI1='Input Tables'!$BG$54,AI1='Input Tables'!$BH$54,AI1='Input Tables'!$BI$54,AI1='Input Tables'!$BJ$54,AI1='Input Tables'!$BK$54, AI1='Input Tables'!$BL$54,'Input Tables'!$BM$54),('Cost Budgets'!$G$15*AI6),0) -> 0 | AJ48: =IF(OR(AJ1='Input Tables'!$BA$54, AJ1='Input Tables'!$BB$54,AJ1='Input Tables'!$BC$54, AJ1='Input Tables'!$BD$54,AJ1='Input Tables'!$BE$54,AJ1='Input Tables'!$BF$54,AJ1='Input Tables'!$BG$54,AJ1='Input Tables'!$BH$54,AJ1='Input Tables'!$BI$54,AJ1='Input Tables'!$BJ$54,AJ1='Input Tables'!$BK$54, AJ1='Input Tables'!$BL$54,'Input Tables'!$BM$54),('Cost Budgets'!$G$15*AJ6),0) -> 0 | AK48: =IF(OR(AK1='Input Tables'!$BA$54, AK1='Input Tables'!$BB$54,AK1='Input Tables'!$BC$54, AK1='Input Tables'!$BD$54,AK1='Input Tables'!$BE$54,AK1='Input Tables'!$BF$54,AK1='Input Tables'!$BG$54,AK1='Input Tables'!$BH$54,AK1='Input Tables'!$BI$54,AK1='Input Tables'!$BJ$54,AK1='Input Tables'!$BK$54, AK1='Input Tables'!$BL$54,'Input Tables'!$BM$54),('Cost Budgets'!$G$15*AK6),0) -> 0 | AL48: =IF(OR(AL1='Input Tables'!$BA$54, AL1='Input Tables'!$BB$54,AL1='Input Tables'!$BC$54, AL1='Input Tables'!$BD$54,AL1='Input Tables'!$BE$54,AL1='Input Tables'!$BF$54,AL1='Input Tables'!$BG$54,AL1='Input Tables'!$BH$54,AL1='Input Tables'!$BI$54,AL1='Input Tables'!$BJ$54,AL1='Input Tables'!$BK$54, AL1='Input Tables'!$BL$54,'Input Tables'!$BM$54),('Cost Budgets'!$G$15*AL6),0) -> 0 | AM48: =IF(OR(AM1='Input Tables'!$BA$54, AM1='Input Tables'!$BB$54,AM1='Input Tables'!$BC$54, AM1='Input Tables'!$BD$54,AM1='Input Tables'!$BE$54,AM1='Input Tables'!$BF$54,AM1='Input Tables'!$BG$54,AM1='Input Tables'!$BH$54,AM1='Input Tables'!$BI$54,AM1='Input Tables'!$BJ$54,AM1='Input Tables'!$BK$54, AM1='Input Tables'!$BL$54,'Input Tables'!$BM$54),('Cost Budgets'!$G$15*AM6),0) -> 0 | AN48: =IF(OR(AN1='Input Tables'!$BA$54, AN1='Input Tables'!$BB$54,AN1='Input Tables'!$BC$54, AN1='Input Tables'!$BD$54,AN1='Input Tables'!$BE$54,AN1='Input Tables'!$BF$54,AN1='Input Tables'!$BG$54,AN1='Input Tables'!$BH$54,AN1='Input Tables'!$BI$54,AN1='Input Tables'!$BJ$54,AN1='Input Tables'!$BK$54, AN1='Input Tables'!$BL$54,'Input Tables'!$BM$54),('Cost Budgets'!$G$15*AN6),0) -> 0 | AO48: =IF(OR(AO1='Input Tables'!$BA$54, AO1='Input Tables'!$BB$54,AO1='Input Tables'!$BC$54, AO1='Input Tables'!$BD$54,AO1='Input Tables'!$BE$54,AO1='Input Tables'!$BF$54,AO1='Input Tables'!$BG$54,AO1='Input Tables'!$BH$54,AO1='Input Tables'!$BI$54,AO1='Input Tables'!$BJ$54,AO1='Input Tables'!$BK$54, AO1='Input Tables'!$BL$54,'Input Tables'!$BM$54),('Cost Budgets'!$G$15*AO6),0) -> 0 | AP48: =IF(OR(AP1='Input Tables'!$BA$54, AP1='Input Tables'!$BB$54,AP1='Input Tables'!$BC$54, AP1='Input Tables'!$BD$54,AP1='Input Tables'!$BE$54,AP1='Input Tables'!$BF$54,AP1='Input Tables'!$BG$54,AP1='Input Tables'!$BH$54,AP1='Input Tables'!$BI$54,AP1='Input Tables'!$BJ$54,AP1='Input Tables'!$BK$54, AP1='Input Tables'!$BL$54,'Input Tables'!$BM$54),('Cost Budgets'!$G$15*AP6),0) -> 0 | AQ48: =IF(OR(AQ1='Input Tables'!$BA$54, AQ1='Input Tables'!$BB$54,AQ1='Input Tables'!$BC$54, AQ1='Input Tables'!$BD$54,AQ1='Input Tables'!$BE$54,AQ1='Input Tables'!$BF$54,AQ1='Input Tables'!$BG$54,AQ1='Input Tables'!$BH$54,AQ1='Input Tables'!$BI$54,AQ1='Input Tables'!$BJ$54,AQ1='Input Tables'!$BK$54, AQ1='Input Tables'!$BL$54,'Input Tables'!$BM$54),('Cost Budgets'!$G$15*AQ6),0) -> 0 | AR48: =IF(OR(AR1='Input Tables'!$BA$54, AR1='Input Tables'!$BB$54,AR1='Input Tables'!$BC$54, AR1='Input Tables'!$BD$54,AR1='Input Tables'!$BE$54,AR1='Input Tables'!$BF$54,AR1='Input Tables'!$BG$54,AR1='Input Tables'!$BH$54,AR1='Input Tables'!$BI$54,AR1='Input Tables'!$BJ$54,AR1='Input Tables'!$BK$54, AR1='Input Tables'!$BL$54,'Input Tables'!$BM$54),('Cost Budgets'!$G$15*AR6),0) -> 0 | AS48: =IF(OR(AS1='Input Tables'!$BA$54, AS1='Input Tables'!$BB$54,AS1='Input Tables'!$BC$54, AS1='Input Tables'!$BD$54,AS1='Input Tables'!$BE$54,AS1='Input Tables'!$BF$54,AS1='Input Tables'!$BG$54,AS1='Input Tables'!$BH$54,AS1='Input Tables'!$BI$54,AS1='Input Tables'!$BJ$54,AS1='Input Tables'!$BK$54, AS1='Input Tables'!$BL$54,'Input Tables'!$BM$54),('Cost Budgets'!$G$15*AS6),0) -> 0 | AT48: =IF(OR(AT1='Input Tables'!$BA$54, AT1='Input Tables'!$BB$54,AT1='Input Tables'!$BC$54, AT1='Input Tables'!$BD$54,AT1='Input Tables'!$BE$54,AT1='Input Tables'!$BF$54,AT1='Input Tables'!$BG$54,AT1='Input Tables'!$BH$54,AT1='Input Tables'!$BI$54,AT1='Input Tables'!$BJ$54,AT1='Input Tables'!$BK$54, AT1='Input Tables'!$BL$54,'Input Tables'!$BM$54),('Cost Budgets'!$G$15*AT6),0) -> 0 | AU48: =IF(OR(AU1='Input Tables'!$BA$54, AU1='Input Tables'!$BB$54,AU1='Input Tables'!$BC$54, AU1='Input Tables'!$BD$54,AU1='Input Tables'!$BE$54,AU1='Input Tables'!$BF$54,AU1='Input Tables'!$BG$54,AU1='Input Tables'!$BH$54,AU1='Input Tables'!$BI$54,AU1='Input Tables'!$BJ$54,AU1='Input Tables'!$BK$54, AU1='Input Tables'!$BL$54,'Input Tables'!$BM$54),('Cost Budgets'!$G$15*AU6),0) -> 0 | AV48: =IF(OR(AV1='Input Tables'!$BA$54, AV1='Input Tables'!$BB$54,AV1='Input Tables'!$BC$54, AV1='Input Tables'!$BD$54,AV1='Input Tables'!$BE$54,AV1='Input Tables'!$BF$54,AV1='Input Tables'!$BG$54,AV1='Input Tables'!$BH$54,AV1='Input Tables'!$BI$54,AV1='Input Tables'!$BJ$54,AV1='Input Tables'!$BK$54, AV1='Input Tables'!$BL$54,'Input Tables'!$BM$54),('Cost Budgets'!$G$15*AV6),0) -> 0 | AW48: =IF(OR(AW1='Input Tables'!$BA$54, AW1='Input Tables'!$BB$54,AW1='Input Tables'!$BC$54, AW1='Input Tables'!$BD$54,AW1='Input Tables'!$BE$54,AW1='Input Tables'!$BF$54,AW1='Input Tables'!$BG$54,AW1='Input Tables'!$BH$54,AW1='Input Tables'!$BI$54,AW1='Input Tables'!$BJ$54,AW1='Input Tables'!$BK$54, AW1='Input Tables'!$BL$54,'Input Tables'!$BM$54),('Cost Budgets'!$G$15*AW6),0) -> 0 | AX48: =IF(OR(AX1='Input Tables'!$BA$54, AX1='Input Tables'!$BB$54,AX1='Input Tables'!$BC$54, AX1='Input Tables'!$BD$54,AX1='Input Tables'!$BE$54,AX1='Input Tables'!$BF$54,AX1='Input Tables'!$BG$54,AX1='Input Tables'!$BH$54,AX1='Input Tables'!$BI$54,AX1='Input Tables'!$BJ$54,AX1='Input Tables'!$BK$54, AX1='Input Tables'!$BL$54,'Input Tables'!$BM$54),('Cost Budgets'!$G$15*AX6),0) -> 0 | AY48: =IF(OR(AY1='Input Tables'!$BA$54, AY1='Input Tables'!$BB$54,AY1='Input Tables'!$BC$54, AY1='Input Tables'!$BD$54,AY1='Input Tables'!$BE$54,AY1='Input Tables'!$BF$54,AY1='Input Tables'!$BG$54,AY1='Input Tables'!$BH$54,AY1='Input Tables'!$BI$54,AY1='Input Tables'!$BJ$54,AY1='Input Tables'!$BK$54, AY1='Input Tables'!$BL$54,'Input Tables'!$BM$54),('Cost Budgets'!$G$15*AY6),0) -> 0 | AZ48: =IF(OR(AZ1='Input Tables'!$BA$54, AZ1='Input Tables'!$BB$54,AZ1='Input Tables'!$BC$54, AZ1='Input Tables'!$BD$54,AZ1='Input Tables'!$BE$54,AZ1='Input Tables'!$BF$54,AZ1='Input Tables'!$BG$54,AZ1='Input Tables'!$BH$54,AZ1='Input Tables'!$BI$54,AZ1='Input Tables'!$BJ$54,AZ1='Input Tables'!$BK$54, AZ1='Input Tables'!$BL$54,'Input Tables'!$BM$54),('Cost Budgets'!$G$15*AZ6),0) -> 0 | BA48: =IF(OR(BA1='Input Tables'!$BA$54, BA1='Input Tables'!$BB$54,BA1='Input Tables'!$BC$54, BA1='Input Tables'!$BD$54,BA1='Input Tables'!$BE$54,BA1='Input Tables'!$BF$54,BA1='Input Tables'!$BG$54,BA1='Input Tables'!$BH$54,BA1='Input Tables'!$BI$54,BA1='Input Tables'!$BJ$54,BA1='Input Tables'!$BK$54, BA1='Input Tables'!$BL$54,'Input Tables'!$BM$54),('Cost Budgets'!$G$15*BA6),0) -> 0 | BB48: =IF(OR(BB1='Input Tables'!$BA$54, BB1='Input Tables'!$BB$54,BB1='Input Tables'!$BC$54, BB1='Input Tables'!$BD$54,BB1='Input Tables'!$BE$54,BB1='Input Tables'!$BF$54,BB1='Input Tables'!$BG$54,BB1='Input Tables'!$BH$54,BB1='Input Tables'!$BI$54,BB1='Input Tables'!$BJ$54,BB1='Input Tables'!$BK$54, BB1='Input Tables'!$BL$54,'Input Tables'!$BM$54),('Cost Budgets'!$G$15*BB6),0) -> 0 | BC48: =IF(OR(BC1='Input Tables'!$BA$54, BC1='Input Tables'!$BB$54,BC1='Input Tables'!$BC$54, BC1='Input Tables'!$BD$54,BC1='Input Tables'!$BE$54,BC1='Input Tables'!$BF$54,BC1='Input Tables'!$BG$54,BC1='Input Tables'!$BH$54,BC1='Input Tables'!$BI$54,BC1='Input Tables'!$BJ$54,BC1='Input Tables'!$BK$54, BC1='Input Tables'!$BL$54,'Input Tables'!$BM$54),('Cost Budgets'!$G$15*BC6),0) -> 0 | BD48: =IF(OR(BD1='Input Tables'!$BA$54, BD1='Input Tables'!$BB$54,BD1='Input Tables'!$BC$54, BD1='Input Tables'!$BD$54,BD1='Input Tables'!$BE$54,BD1='Input Tables'!$BF$54,BD1='Input Tables'!$BG$54,BD1='Input Tables'!$BH$54,BD1='Input Tables'!$BI$54,BD1='Input Tables'!$BJ$54,BD1='Input Tables'!$BK$54, BD1='Input Tables'!$BL$54,'Input Tables'!$BM$54),('Cost Budgets'!$G$15*BD6),0) -> 0 | BE48: =IF(OR(BE1='Input Tables'!$BA$54, BE1='Input Tables'!$BB$54,BE1='Input Tables'!$BC$54, BE1='Input Tables'!$BD$54,BE1='Input Tables'!$BE$54,BE1='Input Tables'!$BF$54,BE1='Input Tables'!$BG$54,BE1='Input Tables'!$BH$54,BE1='Input Tables'!$BI$54,BE1='Input Tables'!$BJ$54,BE1='Input Tables'!$BK$54, BE1='Input Tables'!$BL$54,'Input Tables'!$BM$54),('Cost Budgets'!$G$15*BE6),0) -> 0 | BF48: =IF(OR(BF1='Input Tables'!$BA$54, BF1='Input Tables'!$BB$54,BF1='Input Tables'!$BC$54, BF1='Input Tables'!$BD$54,BF1='Input Tables'!$BE$54,BF1='Input Tables'!$BF$54,BF1='Input Tables'!$BG$54,BF1='Input Tables'!$BH$54,BF1='Input Tables'!$BI$54,BF1='Input Tables'!$BJ$54,BF1='Input Tables'!$BK$54, BF1='Input Tables'!$BL$54,'Input Tables'!$BM$54),('Cost Budgets'!$G$15*BF6),0) -> 0 | BG48: =IF(OR(BG1='Input Tables'!$BA$54, BG1='Input Tables'!$BB$54,BG1='Input Tables'!$BC$54, BG1='Input Tables'!$BD$54,BG1='Input Tables'!$BE$54,BG1='Input Tables'!$BF$54,BG1='Input Tables'!$BG$54,BG1='Input Tables'!$BH$54,BG1='Input Tables'!$BI$54,BG1='Input Tables'!$BJ$54,BG1='Input Tables'!$BK$54, BG1='Input Tables'!$BL$54,'Input Tables'!$BM$54),('Cost Budgets'!$G$15*BG6),0) -> 0 | BH48: =IF(OR(BH1='Input Tables'!$BA$54, BH1='Input Tables'!$BB$54,BH1='Input Tables'!$BC$54, BH1='Input Tables'!$BD$54,BH1='Input Tables'!$BE$54,BH1='Input Tables'!$BF$54,BH1='Input Tables'!$BG$54,BH1='Input Tables'!$BH$54,BH1='Input Tables'!$BI$54,BH1='Input Tables'!$BJ$54,BH1='Input Tables'!$BK$54, BH1='Input Tables'!$BL$54,'Input Tables'!$BM$54),('Cost Budgets'!$G$15*BH6),0) -> 0 | BI48: =IF(OR(BI1='Input Tables'!$BA$54, BI1='Input Tables'!$BB$54,BI1='Input Tables'!$BC$54, BI1='Input Tables'!$BD$54,BI1='Input Tables'!$BE$54,BI1='Input Tables'!$BF$54,BI1='Input Tables'!$BG$54,BI1='Input Tables'!$BH$54,BI1='Input Tables'!$BI$54,BI1='Input Tables'!$BJ$54,BI1='Input Tables'!$BK$54, BI1='Input Tables'!$BL$54,'Input Tables'!$BM$54),('Cost Budgets'!$G$15*BI6),0) -> 0 | BJ48: =IF(OR(BJ1='Input Tables'!$BA$54, BJ1='Input Tables'!$BB$54,BJ1='Input Tables'!$BC$54, BJ1='Input Tables'!$BD$54,BJ1='Input Tables'!$BE$54,BJ1='Input Tables'!$BF$54,BJ1='Input Tables'!$BG$54,BJ1='Input Tables'!$BH$54,BJ1='Input Tables'!$BI$54,BJ1='Input Tables'!$BJ$54,BJ1='Input Tables'!$BK$54, BJ1='Input Tables'!$BL$54,'Input Tables'!$BM$54),('Cost Budgets'!$G$15*BJ6),0) -> 0 | BK48: =IF(OR(BK1='Input Tables'!$BA$54, BK1='Input Tables'!$BB$54,BK1='Input Tables'!$BC$54, BK1='Input Tables'!$BD$54,BK1='Input Tables'!$BE$54,BK1='Input Tables'!$BF$54,BK1='Input Tables'!$BG$54,BK1='Input Tables'!$BH$54,BK1='Input Tables'!$BI$54,BK1='Input Tables'!$BJ$54,BK1='Input Tables'!$BK$54, BK1='Input Tables'!$BL$54,'Input Tables'!$BM$54),('Cost Budgets'!$G$15*BK6),0) -> 0
B50: Disease Control | E50: =IF(OR(E1='Input Tables'!$BA$68, E1='Input Tables'!$BB$68,E1='Input Tables'!$BC$68, E1='Input Tables'!$BD$68,E1='Input Tables'!$BE$68,E1='Input Tables'!$BF$68,E1='Input Tables'!$BG$68,E1='Input Tables'!$BH$68,E1='Input Tables'!$BI$68,E1='Input Tables'!$BJ$68,E1='Input Tables'!$BK$68, E1='Input Tables'!$BL$68,'Input Tables'!$BM$68),('Cost Budgets'!$G$16*E6),0) -> 0 | F50: =IF(OR(F1='Input Tables'!$BA$68, F1='Input Tables'!$BB$68,F1='Input Tables'!$BC$68, F1='Input Tables'!$BD$68,F1='Input Tables'!$BE$68,F1='Input Tables'!$BF$68,F1='Input Tables'!$BG$68,F1='Input Tables'!$BH$68,F1='Input Tables'!$BI$68,F1='Input Tables'!$BJ$68,F1='Input Tables'!$BK$68, F1='Input Tables'!$BL$68,'Input Tables'!$BM$68),('Cost Budgets'!$G$16*F6),0) -> 0 | G50: =IF(OR(G1='Input Tables'!$BA$68, G1='Input Tables'!$BB$68,G1='Input Tables'!$BC$68, G1='Input Tables'!$BD$68,G1='Input Tables'!$BE$68,G1='Input Tables'!$BF$68,G1='Input Tables'!$BG$68,G1='Input Tables'!$BH$68,G1='Input Tables'!$BI$68,G1='Input Tables'!$BJ$68,G1='Input Tables'!$BK$68, G1='Input Tables'!$BL$68,'Input Tables'!$BM$68),('Cost Budgets'!$G$16*G6),0) -> 0 | H50: =IF(OR(H1='Input Tables'!$BA$68, H1='Input Tables'!$BB$68,H1='Input Tables'!$BC$68, H1='Input Tables'!$BD$68,H1='Input Tables'!$BE$68,H1='Input Tables'!$BF$68,H1='Input Tables'!$BG$68,H1='Input Tables'!$BH$68,H1='Input Tables'!$BI$68,H1='Input Tables'!$BJ$68,H1='Input Tables'!$BK$68, H1='Input Tables'!$BL$68,'Input Tables'!$BM$68),('Cost Budgets'!$G$16*H6),0) -> 0 | I50: =IF(OR(I1='Input Tables'!$BA$68, I1='Input Tables'!$BB$68,I1='Input Tables'!$BC$68, I1='Input Tables'!$BD$68,I1='Input Tables'!$BE$68,I1='Input Tables'!$BF$68,I1='Input Tables'!$BG$68,I1='Input Tables'!$BH$68,I1='Input Tables'!$BI$68,I1='Input Tables'!$BJ$68,I1='Input Tables'!$BK$68, I1='Input Tables'!$BL$68,'Input Tables'!$BM$68),('Cost Budgets'!$G$16*I6),0) -> 0 | J50: =IF(OR(J1='Input Tables'!$BA$68, J1='Input Tables'!$BB$68,J1='Input Tables'!$BC$68, J1='Input Tables'!$BD$68,J1='Input Tables'!$BE$68,J1='Input Tables'!$BF$68,J1='Input Tables'!$BG$68,J1='Input Tables'!$BH$68,J1='Input Tables'!$BI$68,J1='Input Tables'!$BJ$68,J1='Input Tables'!$BK$68, J1='Input Tables'!$BL$68,'Input Tables'!$BM$68),('Cost Budgets'!$G$16*J6),0) -> 0 | K50: =IF(OR(K1='Input Tables'!$BA$68, K1='Input Tables'!$BB$68,K1='Input Tables'!$BC$68, K1='Input Tables'!$BD$68,K1='Input Tables'!$BE$68,K1='Input Tables'!$BF$68,K1='Input Tables'!$BG$68,K1='Input Tables'!$BH$68,K1='Input Tables'!$BI$68,K1='Input Tables'!$BJ$68,K1='Input Tables'!$BK$68, K1='Input Tables'!$BL$68,'Input Tables'!$BM$68),('Cost Budgets'!$G$16*K6),0) -> 0 | L50: =IF(OR(L1='Input Tables'!$BA$68, L1='Input Tables'!$BB$68,L1='Input Tables'!$BC$68, L1='Input Tables'!$BD$68,L1='Input Tables'!$BE$68,L1='Input Tables'!$BF$68,L1='Input Tables'!$BG$68,L1='Input Tables'!$BH$68,L1='Input Tables'!$BI$68,L1='Input Tables'!$BJ$68,L1='Input Tables'!$BK$68, L1='Input Tables'!$BL$68,'Input Tables'!$BM$68),('Cost Budgets'!$G$16*L6),0) -> 0 | M50: =IF(OR(M1='Input Tables'!$BA$68, M1='Input Tables'!$BB$68,M1='Input Tables'!$BC$68, M1='Input Tables'!$BD$68,M1='Input Tables'!$BE$68,M1='Input Tables'!$BF$68,M1='Input Tables'!$BG$68,M1='Input Tables'!$BH$68,M1='Input Tables'!$BI$68,M1='Input Tables'!$BJ$68,M1='Input Tables'!$BK$68, M1='Input Tables'!$BL$68,'Input Tables'!$BM$68),('Cost Budgets'!$G$16*M6),0) -> 0 | N50: =IF(OR(N1='Input Tables'!$BA$68, N1='Input Tables'!$BB$68,N1='Input Tables'!$BC$68, N1='Input Tables'!$BD$68,N1='Input Tables'!$BE$68,N1='Input Tables'!$BF$68,N1='Input Tables'!$BG$68,N1='Input Tables'!$BH$68,N1='Input Tables'!$BI$68,N1='Input Tables'!$BJ$68,N1='Input Tables'!$BK$68, N1='Input Tables'!$BL$68,'Input Tables'!$BM$68),('Cost Budgets'!$G$16*N6),0) -> 0 | O50: =IF(OR(O1='Input Tables'!$BA$68, O1='Input Tables'!$BB$68,O1='Input Tables'!$BC$68, O1='Input Tables'!$BD$68,O1='Input Tables'!$BE$68,O1='Input Tables'!$BF$68,O1='Input Tables'!$BG$68,O1='Input Tables'!$BH$68,O1='Input Tables'!$BI$68,O1='Input Tables'!$BJ$68,O1='Input Tables'!$BK$68, O1='Input Tables'!$BL$68,'Input Tables'!$BM$68),('Cost Budgets'!$G$16*O6),0) -> 0 | P50: =IF(OR(P1='Input Tables'!$BA$68, P1='Input Tables'!$BB$68,P1='Input Tables'!$BC$68, P1='Input Tables'!$BD$68,P1='Input Tables'!$BE$68,P1='Input Tables'!$BF$68,P1='Input Tables'!$BG$68,P1='Input Tables'!$BH$68,P1='Input Tables'!$BI$68,P1='Input Tables'!$BJ$68,P1='Input Tables'!$BK$68, P1='Input Tables'!$BL$68,'Input Tables'!$BM$68),('Cost Budgets'!$G$16*P6),0) -> 0 | Q50: =IF(OR(Q1='Input Tables'!$BA$68, Q1='Input Tables'!$BB$68,Q1='Input Tables'!$BC$68, Q1='Input Tables'!$BD$68,Q1='Input Tables'!$BE$68,Q1='Input Tables'!$BF$68,Q1='Input Tables'!$BG$68,Q1='Input Tables'!$BH$68,Q1='Input Tables'!$BI$68,Q1='Input Tables'!$BJ$68,Q1='Input Tables'!$BK$68, Q1='Input Tables'!$BL$68,'Input Tables'!$BM$68),('Cost Budgets'!$G$16*Q6),0) -> 0 | R50: =IF(OR(R1='Input Tables'!$BA$68, R1='Input Tables'!$BB$68,R1='Input Tables'!$BC$68, R1='Input Tables'!$BD$68,R1='Input Tables'!$BE$68,R1='Input Tables'!$BF$68,R1='Input Tables'!$BG$68,R1='Input Tables'!$BH$68,R1='Input Tables'!$BI$68,R1='Input Tables'!$BJ$68,R1='Input Tables'!$BK$68, R1='Input Tables'!$BL$68,'Input Tables'!$BM$68),('Cost Budgets'!$G$16*R6),0) -> 0 | S50: =IF(OR(S1='Input Tables'!$BA$68, S1='Input Tables'!$BB$68,S1='Input Tables'!$BC$68, S1='Input Tables'!$BD$68,S1='Input Tables'!$BE$68,S1='Input Tables'!$BF$68,S1='Input Tables'!$BG$68,S1='Input Tables'!$BH$68,S1='Input Tables'!$BI$68,S1='Input Tables'!$BJ$68,S1='Input Tables'!$BK$68, S1='Input Tables'!$BL$68,'Input Tables'!$BM$68),('Cost Budgets'!$G$16*S6),0) -> 0 | T50: =IF(OR(T1='Input Tables'!$BA$68, T1='Input Tables'!$BB$68,T1='Input Tables'!$BC$68, T1='Input Tables'!$BD$68,T1='Input Tables'!$BE$68,T1='Input Tables'!$BF$68,T1='Input Tables'!$BG$68,T1='Input Tables'!$BH$68,T1='Input Tables'!$BI$68,T1='Input Tables'!$BJ$68,T1='Input Tables'!$BK$68, T1='Input Tables'!$BL$68,'Input Tables'!$BM$68),('Cost Budgets'!$G$16*T6),0) -> 0 | U50: =IF(OR(U1='Input Tables'!$BA$68, U1='Input Tables'!$BB$68,U1='Input Tables'!$BC$68, U1='Input Tables'!$BD$68,U1='Input Tables'!$BE$68,U1='Input Tables'!$BF$68,U1='Input Tables'!$BG$68,U1='Input Tables'!$BH$68,U1='Input Tables'!$BI$68,U1='Input Tables'!$BJ$68,U1='Input Tables'!$BK$68, U1='Input Tables'!$BL$68,'Input Tables'!$BM$68),('Cost Budgets'!$G$16*U6),0) -> 0 | V50: =IF(OR(V1='Input Tables'!$BA$68, V1='Input Tables'!$BB$68,V1='Input Tables'!$BC$68, V1='Input Tables'!$BD$68,V1='Input Tables'!$BE$68,V1='Input Tables'!$BF$68,V1='Input Tables'!$BG$68,V1='Input Tables'!$BH$68,V1='Input Tables'!$BI$68,V1='Input Tables'!$BJ$68,V1='Input Tables'!$BK$68, V1='Input Tables'!$BL$68,'Input Tables'!$BM$68),('Cost Budgets'!$G$16*V6),0) -> 0 | W50: =IF(OR(W1='Input Tables'!$BA$68, W1='Input Tables'!$BB$68,W1='Input Tables'!$BC$68, W1='Input Tables'!$BD$68,W1='Input Tables'!$BE$68,W1='Input Tables'!$BF$68,W1='Input Tables'!$BG$68,W1='Input Tables'!$BH$68,W1='Input Tables'!$BI$68,W1='Input Tables'!$BJ$68,W1='Input Tables'!$BK$68, W1='Input Tables'!$BL$68,'Input Tables'!$BM$68),('Cost Budgets'!$G$16*W6),0) -> 0 | X50: =IF(OR(X1='Input Tables'!$BA$68, X1='Input Tables'!$BB$68,X1='Input Tables'!$BC$68, X1='Input Tables'!$BD$68,X1='Input Tables'!$BE$68,X1='Input Tables'!$BF$68,X1='Input Tables'!$BG$68,X1='Input Tables'!$BH$68,X1='Input Tables'!$BI$68,X1='Input Tables'!$BJ$68,X1='Input Tables'!$BK$68, X1='Input Tables'!$BL$68,'Input Tables'!$BM$68),('Cost Budgets'!$G$16*X6),0) -> 0 | Y50: =IF(OR(Y1='Input Tables'!$BA$68, Y1='Input Tables'!$BB$68,Y1='Input Tables'!$BC$68, Y1='Input Tables'!$BD$68,Y1='Input Tables'!$BE$68,Y1='Input Tables'!$BF$68,Y1='Input Tables'!$BG$68,Y1='Input Tables'!$BH$68,Y1='Input Tables'!$BI$68,Y1='Input Tables'!$BJ$68,Y1='Input Tables'!$BK$68, Y1='Input Tables'!$BL$68,'Input Tables'!$BM$68),('Cost Budgets'!$G$16*Y6),0) -> 0 | Z50: =IF(OR(Z1='Input Tables'!$BA$68, Z1='Input Tables'!$BB$68,Z1='Input Tables'!$BC$68, Z1='Input Tables'!$BD$68,Z1='Input Tables'!$BE$68,Z1='Input Tables'!$BF$68,Z1='Input Tables'!$BG$68,Z1='Input Tables'!$BH$68,Z1='Input Tables'!$BI$68,Z1='Input Tables'!$BJ$68,Z1='Input Tables'!$BK$68, Z1='Input Tables'!$BL$68,'Input Tables'!$BM$68),('Cost Budgets'!$G$16*Z6),0) -> 0 | AA50: =IF(OR(AA1='Input Tables'!$BA$68, AA1='Input Tables'!$BB$68,AA1='Input Tables'!$BC$68, AA1='Input Tables'!$BD$68,AA1='Input Tables'!$BE$68,AA1='Input Tables'!$BF$68,AA1='Input Tables'!$BG$68,AA1='Input Tables'!$BH$68,AA1='Input Tables'!$BI$68,AA1='Input Tables'!$BJ$68,AA1='Input Tables'!$BK$68, AA1='Input Tables'!$BL$68,'Input Tables'!$BM$68),('Cost Budgets'!$G$16*AA6),0) -> 0 | AB50: =IF(OR(AB1='Input Tables'!$BA$68, AB1='Input Tables'!$BB$68,AB1='Input Tables'!$BC$68, AB1='Input Tables'!$BD$68,AB1='Input Tables'!$BE$68,AB1='Input Tables'!$BF$68,AB1='Input Tables'!$BG$68,AB1='Input Tables'!$BH$68,AB1='Input Tables'!$BI$68,AB1='Input Tables'!$BJ$68,AB1='Input Tables'!$BK$68, AB1='Input Tables'!$BL$68,'Input Tables'!$BM$68),('Cost Budgets'!$G$16*AB6),0) -> 0 | AC50: =IF(OR(AC1='Input Tables'!$BA$68, AC1='Input Tables'!$BB$68,AC1='Input Tables'!$BC$68, AC1='Input Tables'!$BD$68,AC1='Input Tables'!$BE$68,AC1='Input Tables'!$BF$68,AC1='Input Tables'!$BG$68,AC1='Input Tables'!$BH$68,AC1='Input Tables'!$BI$68,AC1='Input Tables'!$BJ$68,AC1='Input Tables'!$BK$68, AC1='Input Tables'!$BL$68,'Input Tables'!$BM$68),('Cost Budgets'!$G$16*AC6),0) -> 0 | AD50: =IF(OR(AD1='Input Tables'!$BA$68, AD1='Input Tables'!$BB$68,AD1='Input Tables'!$BC$68, AD1='Input Tables'!$BD$68,AD1='Input Tables'!$BE$68,AD1='Input Tables'!$BF$68,AD1='Input Tables'!$BG$68,AD1='Input Tables'!$BH$68,AD1='Input Tables'!$BI$68,AD1='Input Tables'!$BJ$68,AD1='Input Tables'!$BK$68, AD1='Input Tables'!$BL$68,'Input Tables'!$BM$68),('Cost Budgets'!$G$16*AD6),0) -> 0 | AE50: =IF(OR(AE1='Input Tables'!$BA$68, AE1='Input Tables'!$BB$68,AE1='Input Tables'!$BC$68, AE1='Input Tables'!$BD$68,AE1='Input Tables'!$BE$68,AE1='Input Tables'!$BF$68,AE1='Input Tables'!$BG$68,AE1='Input Tables'!$BH$68,AE1='Input Tables'!$BI$68,AE1='Input Tables'!$BJ$68,AE1='Input Tables'!$BK$68, AE1='Input Tables'!$BL$68,'Input Tables'!$BM$68),('Cost Budgets'!$G$16*AE6),0) -> 0 | AF50: =IF(OR(AF1='Input Tables'!$BA$68, AF1='Input Tables'!$BB$68,AF1='Input Tables'!$BC$68, AF1='Input Tables'!$BD$68,AF1='Input Tables'!$BE$68,AF1='Input Tables'!$BF$68,AF1='Input Tables'!$BG$68,AF1='Input Tables'!$BH$68,AF1='Input Tables'!$BI$68,AF1='Input Tables'!$BJ$68,AF1='Input Tables'!$BK$68, AF1='Input Tables'!$BL$68,'Input Tables'!$BM$68),('Cost Budgets'!$G$16*AF6),0) -> 0 | AG50: =IF(OR(AG1='Input Tables'!$BA$68, AG1='Input Tables'!$BB$68,AG1='Input Tables'!$BC$68, AG1='Input Tables'!$BD$68,AG1='Input Tables'!$BE$68,AG1='Input Tables'!$BF$68,AG1='Input Tables'!$BG$68,AG1='Input Tables'!$BH$68,AG1='Input Tables'!$BI$68,AG1='Input Tables'!$BJ$68,AG1='Input Tables'!$BK$68, AG1='Input Tables'!$BL$68,'Input Tables'!$BM$68),('Cost Budgets'!$G$16*AG6),0) -> 0 | AH50: =IF(OR(AH1='Input Tables'!$BA$68, AH1='Input Tables'!$BB$68,AH1='Input Tables'!$BC$68, AH1='Input Tables'!$BD$68,AH1='Input Tables'!$BE$68,AH1='Input Tables'!$BF$68,AH1='Input Tables'!$BG$68,AH1='Input Tables'!$BH$68,AH1='Input Tables'!$BI$68,AH1='Input Tables'!$BJ$68,AH1='Input Tables'!$BK$68, AH1='Input Tables'!$BL$68,'Input Tables'!$BM$68),('Cost Budgets'!$G$16*AH6),0) -> 0 | AI50: =IF(OR(AI1='Input Tables'!$BA$68, AI1='Input Tables'!$BB$68,AI1='Input Tables'!$BC$68, AI1='Input Tables'!$BD$68,AI1='Input Tables'!$BE$68,AI1='Input Tables'!$BF$68,AI1='Input Tables'!$BG$68,AI1='Input Tables'!$BH$68,AI1='Input Tables'!$BI$68,AI1='Input Tables'!$BJ$68,AI1='Input Tables'!$BK$68, AI1='Input Tables'!$BL$68,'Input Tables'!$BM$68),('Cost Budgets'!$G$16*AI6),0) -> 0 | AJ50: =IF(OR(AJ1='Input Tables'!$BA$68, AJ1='Input Tables'!$BB$68,AJ1='Input Tables'!$BC$68, AJ1='Input Tables'!$BD$68,AJ1='Input Tables'!$BE$68,AJ1='Input Tables'!$BF$68,AJ1='Input Tables'!$BG$68,AJ1='Input Tables'!$BH$68,AJ1='Input Tables'!$BI$68,AJ1='Input Tables'!$BJ$68,AJ1='Input Tables'!$BK$68, AJ1='Input Tables'!$BL$68,'Input Tables'!$BM$68),('Cost Budgets'!$G$16*AJ6),0) -> 0 | AK50: =IF(OR(AK1='Input Tables'!$BA$68, AK1='Input Tables'!$BB$68,AK1='Input Tables'!$BC$68, AK1='Input Tables'!$BD$68,AK1='Input Tables'!$BE$68,AK1='Input Tables'!$BF$68,AK1='Input Tables'!$BG$68,AK1='Input Tables'!$BH$68,AK1='Input Tables'!$BI$68,AK1='Input Tables'!$BJ$68,AK1='Input Tables'!$BK$68, AK1='Input Tables'!$BL$68,'Input Tables'!$BM$68),('Cost Budgets'!$G$16*AK6),0) -> 0 | AL50: =IF(OR(AL1='Input Tables'!$BA$68, AL1='Input Tables'!$BB$68,AL1='Input Tables'!$BC$68, AL1='Input Tables'!$BD$68,AL1='Input Tables'!$BE$68,AL1='Input Tables'!$BF$68,AL1='Input Tables'!$BG$68,AL1='Input Tables'!$BH$68,AL1='Input Tables'!$BI$68,AL1='Input Tables'!$BJ$68,AL1='Input Tables'!$BK$68, AL1='Input Tables'!$BL$68,'Input Tables'!$BM$68),('Cost Budgets'!$G$16*AL6),0) -> 0 | AM50: =IF(OR(AM1='Input Tables'!$BA$68, AM1='Input Tables'!$BB$68,AM1='Input Tables'!$BC$68, AM1='Input Tables'!$BD$68,AM1='Input Tables'!$BE$68,AM1='Input Tables'!$BF$68,AM1='Input Tables'!$BG$68,AM1='Input Tables'!$BH$68,AM1='Input Tables'!$BI$68,AM1='Input Tables'!$BJ$68,AM1='Input Tables'!$BK$68, AM1='Input Tables'!$BL$68,'Input Tables'!$BM$68),('Cost Budgets'!$G$16*AM6),0) -> 0 | AN50: =IF(OR(AN1='Input Tables'!$BA$68, AN1='Input Tables'!$BB$68,AN1='Input Tables'!$BC$68, AN1='Input Tables'!$BD$68,AN1='Input Tables'!$BE$68,AN1='Input Tables'!$BF$68,AN1='Input Tables'!$BG$68,AN1='Input Tables'!$BH$68,AN1='Input Tables'!$BI$68,AN1='Input Tables'!$BJ$68,AN1='Input Tables'!$BK$68, AN1='Input Tables'!$BL$68,'Input Tables'!$BM$68),('Cost Budgets'!$G$16*AN6),0) -> 0 | AO50: =IF(OR(AO1='Input Tables'!$BA$68, AO1='Input Tables'!$BB$68,AO1='Input Tables'!$BC$68, AO1='Input Tables'!$BD$68,AO1='Input Tables'!$BE$68,AO1='Input Tables'!$BF$68,AO1='Input Tables'!$BG$68,AO1='Input Tables'!$BH$68,AO1='Input Tables'!$BI$68,AO1='Input Tables'!$BJ$68,AO1='Input Tables'!$BK$68, AO1='Input Tables'!$BL$68,'Input Tables'!$BM$68),('Cost Budgets'!$G$16*AO6),0) -> 0 | AP50: =IF(OR(AP1='Input Tables'!$BA$68, AP1='Input Tables'!$BB$68,AP1='Input Tables'!$BC$68, AP1='Input Tables'!$BD$68,AP1='Input Tables'!$BE$68,AP1='Input Tables'!$BF$68,AP1='Input Tables'!$BG$68,AP1='Input Tables'!$BH$68,AP1='Input Tables'!$BI$68,AP1='Input Tables'!$BJ$68,AP1='Input Tables'!$BK$68, AP1='Input Tables'!$BL$68,'Input Tables'!$BM$68),('Cost Budgets'!$G$16*AP6),0) -> 0 | AQ50: =IF(OR(AQ1='Input Tables'!$BA$68, AQ1='Input Tables'!$BB$68,AQ1='Input Tables'!$BC$68, AQ1='Input Tables'!$BD$68,AQ1='Input Tables'!$BE$68,AQ1='Input Tables'!$BF$68,AQ1='Input Tables'!$BG$68,AQ1='Input Tables'!$BH$68,AQ1='Input Tables'!$BI$68,AQ1='Input Tables'!$BJ$68,AQ1='Input Tables'!$BK$68, AQ1='Input Tables'!$BL$68,'Input Tables'!$BM$68),('Cost Budgets'!$G$16*AQ6),0) -> 0 | AR50: =IF(OR(AR1='Input Tables'!$BA$68, AR1='Input Tables'!$BB$68,AR1='Input Tables'!$BC$68, AR1='Input Tables'!$BD$68,AR1='Input Tables'!$BE$68,AR1='Input Tables'!$BF$68,AR1='Input Tables'!$BG$68,AR1='Input Tables'!$BH$68,AR1='Input Tables'!$BI$68,AR1='Input Tables'!$BJ$68,AR1='Input Tables'!$BK$68, AR1='Input Tables'!$BL$68,'Input Tables'!$BM$68),('Cost Budgets'!$G$16*AR6),0) -> 0 | AS50: =IF(OR(AS1='Input Tables'!$BA$68, AS1='Input Tables'!$BB$68,AS1='Input Tables'!$BC$68, AS1='Input Tables'!$BD$68,AS1='Input Tables'!$BE$68,AS1='Input Tables'!$BF$68,AS1='Input Tables'!$BG$68,AS1='Input Tables'!$BH$68,AS1='Input Tables'!$BI$68,AS1='Input Tables'!$BJ$68,AS1='Input Tables'!$BK$68, AS1='Input Tables'!$BL$68,'Input Tables'!$BM$68),('Cost Budgets'!$G$16*AS6),0) -> 0 | AT50: =IF(OR(AT1='Input Tables'!$BA$68, AT1='Input Tables'!$BB$68,AT1='Input Tables'!$BC$68, AT1='Input Tables'!$BD$68,AT1='Input Tables'!$BE$68,AT1='Input Tables'!$BF$68,AT1='Input Tables'!$BG$68,AT1='Input Tables'!$BH$68,AT1='Input Tables'!$BI$68,AT1='Input Tables'!$BJ$68,AT1='Input Tables'!$BK$68, AT1='Input Tables'!$BL$68,'Input Tables'!$BM$68),('Cost Budgets'!$G$16*AT6),0) -> 0 | AU50: =IF(OR(AU1='Input Tables'!$BA$68, AU1='Input Tables'!$BB$68,AU1='Input Tables'!$BC$68, AU1='Input Tables'!$BD$68,AU1='Input Tables'!$BE$68,AU1='Input Tables'!$BF$68,AU1='Input Tables'!$BG$68,AU1='Input Tables'!$BH$68,AU1='Input Tables'!$BI$68,AU1='Input Tables'!$BJ$68,AU1='Input Tables'!$BK$68, AU1='Input Tables'!$BL$68,'Input Tables'!$BM$68),('Cost Budgets'!$G$16*AU6),0) -> 0 | AV50: =IF(OR(AV1='Input Tables'!$BA$68, AV1='Input Tables'!$BB$68,AV1='Input Tables'!$BC$68, AV1='Input Tables'!$BD$68,AV1='Input Tables'!$BE$68,AV1='Input Tables'!$BF$68,AV1='Input Tables'!$BG$68,AV1='Input Tables'!$BH$68,AV1='Input Tables'!$BI$68,AV1='Input Tables'!$BJ$68,AV1='Input Tables'!$BK$68, AV1='Input Tables'!$BL$68,'Input Tables'!$BM$68),('Cost Budgets'!$G$16*AV6),0) -> 0 | AW50: =IF(OR(AW1='Input Tables'!$BA$68, AW1='Input Tables'!$BB$68,AW1='Input Tables'!$BC$68, AW1='Input Tables'!$BD$68,AW1='Input Tables'!$BE$68,AW1='Input Tables'!$BF$68,AW1='Input Tables'!$BG$68,AW1='Input Tables'!$BH$68,AW1='Input Tables'!$BI$68,AW1='Input Tables'!$BJ$68,AW1='Input Tables'!$BK$68, AW1='Input Tables'!$BL$68,'Input Tables'!$BM$68),('Cost Budgets'!$G$16*AW6),0) -> 0 | AX50: =IF(OR(AX1='Input Tables'!$BA$68, AX1='Input Tables'!$BB$68,AX1='Input Tables'!$BC$68, AX1='Input Tables'!$BD$68,AX1='Input Tables'!$BE$68,AX1='Input Tables'!$BF$68,AX1='Input Tables'!$BG$68,AX1='Input Tables'!$BH$68,AX1='Input Tables'!$BI$68,AX1='Input Tables'!$BJ$68,AX1='Input Tables'!$BK$68, AX1='Input Tables'!$BL$68,'Input Tables'!$BM$68),('Cost Budgets'!$G$16*AX6),0) -> 0 | AY50: =IF(OR(AY1='Input Tables'!$BA$68, AY1='Input Tables'!$BB$68,AY1='Input Tables'!$BC$68, AY1='Input Tables'!$BD$68,AY1='Input Tables'!$BE$68,AY1='Input Tables'!$BF$68,AY1='Input Tables'!$BG$68,AY1='Input Tables'!$BH$68,AY1='Input Tables'!$BI$68,AY1='Input Tables'!$BJ$68,AY1='Input Tables'!$BK$68, AY1='Input Tables'!$BL$68,'Input Tables'!$BM$68),('Cost Budgets'!$G$16*AY6),0) -> 0 | AZ50: =IF(OR(AZ1='Input Tables'!$BA$68, AZ1='Input Tables'!$BB$68,AZ1='Input Tables'!$BC$68, AZ1='Input Tables'!$BD$68,AZ1='Input Tables'!$BE$68,AZ1='Input Tables'!$BF$68,AZ1='Input Tables'!$BG$68,AZ1='Input Tables'!$BH$68,AZ1='Input Tables'!$BI$68,AZ1='Input Tables'!$BJ$68,AZ1='Input Tables'!$BK$68, AZ1='Input Tables'!$BL$68,'Input Tables'!$BM$68),('Cost Budgets'!$G$16*AZ6),0) -> 0 | BA50: =IF(OR(BA1='Input Tables'!$BA$68, BA1='Input Tables'!$BB$68,BA1='Input Tables'!$BC$68, BA1='Input Tables'!$BD$68,BA1='Input Tables'!$BE$68,BA1='Input Tables'!$BF$68,BA1='Input Tables'!$BG$68,BA1='Input Tables'!$BH$68,BA1='Input Tables'!$BI$68,BA1='Input Tables'!$BJ$68,BA1='Input Tables'!$BK$68, BA1='Input Tables'!$BL$68,'Input Tables'!$BM$68),('Cost Budgets'!$G$16*BA6),0) -> 0 | BB50: =IF(OR(BB1='Input Tables'!$BA$68, BB1='Input Tables'!$BB$68,BB1='Input Tables'!$BC$68, BB1='Input Tables'!$BD$68,BB1='Input Tables'!$BE$68,BB1='Input Tables'!$BF$68,BB1='Input Tables'!$BG$68,BB1='Input Tables'!$BH$68,BB1='Input Tables'!$BI$68,BB1='Input Tables'!$BJ$68,BB1='Input Tables'!$BK$68, BB1='Input Tables'!$BL$68,'Input Tables'!$BM$68),('Cost Budgets'!$G$16*BB6),0) -> 0 | BC50: =IF(OR(BC1='Input Tables'!$BA$68, BC1='Input Tables'!$BB$68,BC1='Input Tables'!$BC$68, BC1='Input Tables'!$BD$68,BC1='Input Tables'!$BE$68,BC1='Input Tables'!$BF$68,BC1='Input Tables'!$BG$68,BC1='Input Tables'!$BH$68,BC1='Input Tables'!$BI$68,BC1='Input Tables'!$BJ$68,BC1='Input Tables'!$BK$68, BC1='Input Tables'!$BL$68,'Input Tables'!$BM$68),('Cost Budgets'!$G$16*BC6),0) -> 0 | BD50: =IF(OR(BD1='Input Tables'!$BA$68, BD1='Input Tables'!$BB$68,BD1='Input Tables'!$BC$68, BD1='Input Tables'!$BD$68,BD1='Input Tables'!$BE$68,BD1='Input Tables'!$BF$68,BD1='Input Tables'!$BG$68,BD1='Input Tables'!$BH$68,BD1='Input Tables'!$BI$68,BD1='Input Tables'!$BJ$68,BD1='Input Tables'!$BK$68, BD1='Input Tables'!$BL$68,'Input Tables'!$BM$68),('Cost Budgets'!$G$16*BD6),0) -> 0 | BE50: =IF(OR(BE1='Input Tables'!$BA$68, BE1='Input Tables'!$BB$68,BE1='Input Tables'!$BC$68, BE1='Input Tables'!$BD$68,BE1='Input Tables'!$BE$68,BE1='Input Tables'!$BF$68,BE1='Input Tables'!$BG$68,BE1='Input Tables'!$BH$68,BE1='Input Tables'!$BI$68,BE1='Input Tables'!$BJ$68,BE1='Input Tables'!$BK$68, BE1='Input Tables'!$BL$68,'Input Tables'!$BM$68),('Cost Budgets'!$G$16*BE6),0) -> 0 | BF50: =IF(OR(BF1='Input Tables'!$BA$68, BF1='Input Tables'!$BB$68,BF1='Input Tables'!$BC$68, BF1='Input Tables'!$BD$68,BF1='Input Tables'!$BE$68,BF1='Input Tables'!$BF$68,BF1='Input Tables'!$BG$68,BF1='Input Tables'!$BH$68,BF1='Input Tables'!$BI$68,BF1='Input Tables'!$BJ$68,BF1='Input Tables'!$BK$68, BF1='Input Tables'!$BL$68,'Input Tables'!$BM$68),('Cost Budgets'!$G$16*BF6),0) -> 0 | BG50: =IF(OR(BG1='Input Tables'!$BA$68, BG1='Input Tables'!$BB$68,BG1='Input Tables'!$BC$68, BG1='Input Tables'!$BD$68,BG1='Input Tables'!$BE$68,BG1='Input Tables'!$BF$68,BG1='Input Tables'!$BG$68,BG1='Input Tables'!$BH$68,BG1='Input Tables'!$BI$68,BG1='Input Tables'!$BJ$68,BG1='Input Tables'!$BK$68, BG1='Input Tables'!$BL$68,'Input Tables'!$BM$68),('Cost Budgets'!$G$16*BG6),0) -> 0 | BH50: =IF(OR(BH1='Input Tables'!$BA$68, BH1='Input Tables'!$BB$68,BH1='Input Tables'!$BC$68, BH1='Input Tables'!$BD$68,BH1='Input Tables'!$BE$68,BH1='Input Tables'!$BF$68,BH1='Input Tables'!$BG$68,BH1='Input Tables'!$BH$68,BH1='Input Tables'!$BI$68,BH1='Input Tables'!$BJ$68,BH1='Input Tables'!$BK$68, BH1='Input Tables'!$BL$68,'Input Tables'!$BM$68),('Cost Budgets'!$G$16*BH6),0) -> 0 | BI50: =IF(OR(BI1='Input Tables'!$BA$68, BI1='Input Tables'!$BB$68,BI1='Input Tables'!$BC$68, BI1='Input Tables'!$BD$68,BI1='Input Tables'!$BE$68,BI1='Input Tables'!$BF$68,BI1='Input Tables'!$BG$68,BI1='Input Tables'!$BH$68,BI1='Input Tables'!$BI$68,BI1='Input Tables'!$BJ$68,BI1='Input Tables'!$BK$68, BI1='Input Tables'!$BL$68,'Input Tables'!$BM$68),('Cost Budgets'!$G$16*BI6),0) -> 0 | BJ50: =IF(OR(BJ1='Input Tables'!$BA$68, BJ1='Input Tables'!$BB$68,BJ1='Input Tables'!$BC$68, BJ1='Input Tables'!$BD$68,BJ1='Input Tables'!$BE$68,BJ1='Input Tables'!$BF$68,BJ1='Input Tables'!$BG$68,BJ1='Input Tables'!$BH$68,BJ1='Input Tables'!$BI$68,BJ1='Input Tables'!$BJ$68,BJ1='Input Tables'!$BK$68, BJ1='Input Tables'!$BL$68,'Input Tables'!$BM$68),('Cost Budgets'!$G$16*BJ6),0) -> 0 | BK50: =IF(OR(BK1='Input Tables'!$BA$68, BK1='Input Tables'!$BB$68,BK1='Input Tables'!$BC$68, BK1='Input Tables'!$BD$68,BK1='Input Tables'!$BE$68,BK1='Input Tables'!$BF$68,BK1='Input Tables'!$BG$68,BK1='Input Tables'!$BH$68,BK1='Input Tables'!$BI$68,BK1='Input Tables'!$BJ$68,BK1='Input Tables'!$BK$68, BK1='Input Tables'!$BL$68,'Input Tables'!$BM$68),('Cost Budgets'!$G$16*BK6),0) -> 0
B52: Deer Control | E52: =IFERROR(IF(OR(E1='Input Tables'!$BA$76, E1='Input Tables'!$BB$76,E1='Input Tables'!$BC$76, E1='Input Tables'!$BD$76,E1='Input Tables'!$BE$76,E1='Input Tables'!$BF$76,E1='Input Tables'!$BG$76,E1='Input Tables'!$BH$76,E1='Input Tables'!$BI$76,E1='Input Tables'!$BJ$76,E1='Input Tables'!$BK$76, E1='Input Tables'!$BL$76,'Input Tables'!$BM$76),('Cost Budgets'!$G$17*E6),0),0) -> 349.44 | F52: =IFERROR(IF(OR(F1='Input Tables'!$BA$76, F1='Input Tables'!$BB$76,F1='Input Tables'!$BC$76, F1='Input Tables'!$BD$76,F1='Input Tables'!$BE$76,F1='Input Tables'!$BF$76,F1='Input Tables'!$BG$76,F1='Input Tables'!$BH$76,F1='Input Tables'!$BI$76,F1='Input Tables'!$BJ$76,F1='Input Tables'!$BK$76, F1='Input Tables'!$BL$76,'Input Tables'!$BM$76),('Cost Budgets'!$G$17*F6),0),0) -> 0 | G52: =IFERROR(IF(OR(G1='Input Tables'!$BA$76, G1='Input Tables'!$BB$76,G1='Input Tables'!$BC$76, G1='Input Tables'!$BD$76,G1='Input Tables'!$BE$76,G1='Input Tables'!$BF$76,G1='Input Tables'!$BG$76,G1='Input Tables'!$BH$76,G1='Input Tables'!$BI$76,G1='Input Tables'!$BJ$76,G1='Input Tables'!$BK$76, G1='Input Tables'!$BL$76,'Input Tables'!$BM$76),('Cost Budgets'!$G$17*G6),0),0) -> 0 | H52: =IFERROR(IF(OR(H1='Input Tables'!$BA$76, H1='Input Tables'!$BB$76,H1='Input Tables'!$BC$76, H1='Input Tables'!$BD$76,H1='Input Tables'!$BE$76,H1='Input Tables'!$BF$76,H1='Input Tables'!$BG$76,H1='Input Tables'!$BH$76,H1='Input Tables'!$BI$76,H1='Input Tables'!$BJ$76,H1='Input Tables'!$BK$76, H1='Input Tables'!$BL$76,'Input Tables'!$BM$76),('Cost Budgets'!$G$17*H6),0),0) -> 342.2201653 | I52: =IFERROR(IF(OR(I1='Input Tables'!$BA$76, I1='Input Tables'!$BB$76,I1='Input Tables'!$BC$76, I1='Input Tables'!$BD$76,I1='Input Tables'!$BE$76,I1='Input Tables'!$BF$76,I1='Input Tables'!$BG$76,I1='Input Tables'!$BH$76,I1='Input Tables'!$BI$76,I1='Input Tables'!$BJ$76,I1='Input Tables'!$BK$76, I1='Input Tables'!$BL$76,'Input Tables'!$BM$76),('Cost Budgets'!$G$17*I6),0),0) -> 0 | J52: =IFERROR(IF(OR(J1='Input Tables'!$BA$76, J1='Input Tables'!$BB$76,J1='Input Tables'!$BC$76, J1='Input Tables'!$BD$76,J1='Input Tables'!$BE$76,J1='Input Tables'!$BF$76,J1='Input Tables'!$BG$76,J1='Input Tables'!$BH$76,J1='Input Tables'!$BI$76,J1='Input Tables'!$BJ$76,J1='Input Tables'!$BK$76, J1='Input Tables'!$BL$76,'Input Tables'!$BM$76),('Cost Budgets'!$G$17*J6),0),0) -> 0 | K52: =IFERROR(IF(OR(K1='Input Tables'!$BA$76, K1='Input Tables'!$BB$76,K1='Input Tables'!$BC$76, K1='Input Tables'!$BD$76,K1='Input Tables'!$BE$76,K1='Input Tables'!$BF$76,K1='Input Tables'!$BG$76,K1='Input Tables'!$BH$76,K1='Input Tables'!$BI$76,K1='Input Tables'!$BJ$76,K1='Input Tables'!$BK$76, K1='Input Tables'!$BL$76,'Input Tables'!$BM$76),('Cost Budgets'!$G$17*K6),0),0) -> 277.2416529 | L52: =IFERROR(IF(OR(L1='Input Tables'!$BA$76, L1='Input Tables'!$BB$76,L1='Input Tables'!$BC$76, L1='Input Tables'!$BD$76,L1='Input Tables'!$BE$76,L1='Input Tables'!$BF$76,L1='Input Tables'!$BG$76,L1='Input Tables'!$BH$76,L1='Input Tables'!$BI$76,L1='Input Tables'!$BJ$76,L1='Input Tables'!$BK$76, L1='Input Tables'!$BL$76,'Input Tables'!$BM$76),('Cost Budgets'!$G$17*L6),0),0) -> 0 | M52: =IFERROR(IF(OR(M1='Input Tables'!$BA$76, M1='Input Tables'!$BB$76,M1='Input Tables'!$BC$76, M1='Input Tables'!$BD$76,M1='Input Tables'!$BE$76,M1='Input Tables'!$BF$76,M1='Input Tables'!$BG$76,M1='Input Tables'!$BH$76,M1='Input Tables'!$BI$76,M1='Input Tables'!$BJ$76,M1='Input Tables'!$BK$76, M1='Input Tables'!$BL$76,'Input Tables'!$BM$76),('Cost Budgets'!$G$17*M6),0),0) -> 0 | N52: =IFERROR(IF(OR(N1='Input Tables'!$BA$76, N1='Input Tables'!$BB$76,N1='Input Tables'!$BC$76, N1='Input Tables'!$BD$76,N1='Input Tables'!$BE$76,N1='Input Tables'!$BF$76,N1='Input Tables'!$BG$76,N1='Input Tables'!$BH$76,N1='Input Tables'!$BI$76,N1='Input Tables'!$BJ$76,N1='Input Tables'!$BK$76, N1='Input Tables'!$BL$76,'Input Tables'!$BM$76),('Cost Budgets'!$G$17*N6),0),0) -> 255.5821488 | O52: =IFERROR(IF(OR(O1='Input Tables'!$BA$76, O1='Input Tables'!$BB$76,O1='Input Tables'!$BC$76, O1='Input Tables'!$BD$76,O1='Input Tables'!$BE$76,O1='Input Tables'!$BF$76,O1='Input Tables'!$BG$76,O1='Input Tables'!$BH$76,O1='Input Tables'!$BI$76,O1='Input Tables'!$BJ$76,O1='Input Tables'!$BK$76, O1='Input Tables'!$BL$76,'Input Tables'!$BM$76),('Cost Budgets'!$G$17*O6),0),0) -> 0 | P52: =IFERROR(IF(OR(P1='Input Tables'!$BA$76, P1='Input Tables'!$BB$76,P1='Input Tables'!$BC$76, P1='Input Tables'!$BD$76,P1='Input Tables'!$BE$76,P1='Input Tables'!$BF$76,P1='Input Tables'!$BG$76,P1='Input Tables'!$BH$76,P1='Input Tables'!$BI$76,P1='Input Tables'!$BJ$76,P1='Input Tables'!$BK$76, P1='Input Tables'!$BL$76,'Input Tables'!$BM$76),('Cost Budgets'!$G$17*P6),0),0) -> 0 | Q52: =IFERROR(IF(OR(Q1='Input Tables'!$BA$76, Q1='Input Tables'!$BB$76,Q1='Input Tables'!$BC$76, Q1='Input Tables'!$BD$76,Q1='Input Tables'!$BE$76,Q1='Input Tables'!$BF$76,Q1='Input Tables'!$BG$76,Q1='Input Tables'!$BH$76,Q1='Input Tables'!$BI$76,Q1='Input Tables'!$BJ$76,Q1='Input Tables'!$BK$76, Q1='Input Tables'!$BL$76,'Input Tables'!$BM$76),('Cost Budgets'!$G$17*Q6),0),0) -> 255.5821488 | R52: =IFERROR(IF(OR(R1='Input Tables'!$BA$76, R1='Input Tables'!$BB$76,R1='Input Tables'!$BC$76, R1='Input Tables'!$BD$76,R1='Input Tables'!$BE$76,R1='Input Tables'!$BF$76,R1='Input Tables'!$BG$76,R1='Input Tables'!$BH$76,R1='Input Tables'!$BI$76,R1='Input Tables'!$BJ$76,R1='Input Tables'!$BK$76, R1='Input Tables'!$BL$76,'Input Tables'!$BM$76),('Cost Budgets'!$G$17*R6),0),0) -> 0 | S52: =IFERROR(IF(OR(S1='Input Tables'!$BA$76, S1='Input Tables'!$BB$76,S1='Input Tables'!$BC$76, S1='Input Tables'!$BD$76,S1='Input Tables'!$BE$76,S1='Input Tables'!$BF$76,S1='Input Tables'!$BG$76,S1='Input Tables'!$BH$76,S1='Input Tables'!$BI$76,S1='Input Tables'!$BJ$76,S1='Input Tables'!$BK$76, S1='Input Tables'!$BL$76,'Input Tables'!$BM$76),('Cost Budgets'!$G$17*S6),0),0) -> 0 | T52: =IFERROR(IF(OR(T1='Input Tables'!$BA$76, T1='Input Tables'!$BB$76,T1='Input Tables'!$BC$76, T1='Input Tables'!$BD$76,T1='Input Tables'!$BE$76,T1='Input Tables'!$BF$76,T1='Input Tables'!$BG$76,T1='Input Tables'!$BH$76,T1='Input Tables'!$BI$76,T1='Input Tables'!$BJ$76,T1='Input Tables'!$BK$76, T1='Input Tables'!$BL$76,'Input Tables'!$BM$76),('Cost Budgets'!$G$17*T6),0),0) -> 0 | U52: =IFERROR(IF(OR(U1='Input Tables'!$BA$76, U1='Input Tables'!$BB$76,U1='Input Tables'!$BC$76, U1='Input Tables'!$BD$76,U1='Input Tables'!$BE$76,U1='Input Tables'!$BF$76,U1='Input Tables'!$BG$76,U1='Input Tables'!$BH$76,U1='Input Tables'!$BI$76,U1='Input Tables'!$BJ$76,U1='Input Tables'!$BK$76, U1='Input Tables'!$BL$76,'Input Tables'!$BM$76),('Cost Budgets'!$G$17*U6),0),0) -> 0 | V52: =IFERROR(IF(OR(V1='Input Tables'!$BA$76, V1='Input Tables'!$BB$76,V1='Input Tables'!$BC$76, V1='Input Tables'!$BD$76,V1='Input Tables'!$BE$76,V1='Input Tables'!$BF$76,V1='Input Tables'!$BG$76,V1='Input Tables'!$BH$76,V1='Input Tables'!$BI$76,V1='Input Tables'!$BJ$76,V1='Input Tables'!$BK$76, V1='Input Tables'!$BL$76,'Input Tables'!$BM$76),('Cost Budgets'!$G$17*V6),0),0) -> 0 | W52: =IFERROR(IF(OR(W1='Input Tables'!$BA$76, W1='Input Tables'!$BB$76,W1='Input Tables'!$BC$76, W1='Input Tables'!$BD$76,W1='Input Tables'!$BE$76,W1='Input Tables'!$BF$76,W1='Input Tables'!$BG$76,W1='Input Tables'!$BH$76,W1='Input Tables'!$BI$76,W1='Input Tables'!$BJ$76,W1='Input Tables'!$BK$76, W1='Input Tables'!$BL$76,'Input Tables'!$BM$76),('Cost Budgets'!$G$17*W6),0),0) -> 0 | X52: =IFERROR(IF(OR(X1='Input Tables'!$BA$76, X1='Input Tables'!$BB$76,X1='Input Tables'!$BC$76, X1='Input Tables'!$BD$76,X1='Input Tables'!$BE$76,X1='Input Tables'!$BF$76,X1='Input Tables'!$BG$76,X1='Input Tables'!$BH$76,X1='Input Tables'!$BI$76,X1='Input Tables'!$BJ$76,X1='Input Tables'!$BK$76, X1='Input Tables'!$BL$76,'Input Tables'!$BM$76),('Cost Budgets'!$G$17*X6),0),0) -> 0 | Y52: =IFERROR(IF(OR(Y1='Input Tables'!$BA$76, Y1='Input Tables'!$BB$76,Y1='Input Tables'!$BC$76, Y1='Input Tables'!$BD$76,Y1='Input Tables'!$BE$76,Y1='Input Tables'!$BF$76,Y1='Input Tables'!$BG$76,Y1='Input Tables'!$BH$76,Y1='Input Tables'!$BI$76,Y1='Input Tables'!$BJ$76,Y1='Input Tables'!$BK$76, Y1='Input Tables'!$BL$76,'Input Tables'!$BM$76),('Cost Budgets'!$G$17*Y6),0),0) -> 0 | Z52: =IFERROR(IF(OR(Z1='Input Tables'!$BA$76, Z1='Input Tables'!$BB$76,Z1='Input Tables'!$BC$76, Z1='Input Tables'!$BD$76,Z1='Input Tables'!$BE$76,Z1='Input Tables'!$BF$76,Z1='Input Tables'!$BG$76,Z1='Input Tables'!$BH$76,Z1='Input Tables'!$BI$76,Z1='Input Tables'!$BJ$76,Z1='Input Tables'!$BK$76, Z1='Input Tables'!$BL$76,'Input Tables'!$BM$76),('Cost Budgets'!$G$17*Z6),0),0) -> 0 | AA52: =IFERROR(IF(OR(AA1='Input Tables'!$BA$76, AA1='Input Tables'!$BB$76,AA1='Input Tables'!$BC$76, AA1='Input Tables'!$BD$76,AA1='Input Tables'!$BE$76,AA1='Input Tables'!$BF$76,AA1='Input Tables'!$BG$76,AA1='Input Tables'!$BH$76,AA1='Input Tables'!$BI$76,AA1='Input Tables'!$BJ$76,AA1='Input Tables'!$BK$76, AA1='Input Tables'!$BL$76,'Input Tables'!$BM$76),('Cost Budgets'!$G$17*AA6),0),0) -> 0 | AB52: =IFERROR(IF(OR(AB1='Input Tables'!$BA$76, AB1='Input Tables'!$BB$76,AB1='Input Tables'!$BC$76, AB1='Input Tables'!$BD$76,AB1='Input Tables'!$BE$76,AB1='Input Tables'!$BF$76,AB1='Input Tables'!$BG$76,AB1='Input Tables'!$BH$76,AB1='Input Tables'!$BI$76,AB1='Input Tables'!$BJ$76,AB1='Input Tables'!$BK$76, AB1='Input Tables'!$BL$76,'Input Tables'!$BM$76),('Cost Budgets'!$G$17*AB6),0),0) -> 0 | AC52: =IFERROR(IF(OR(AC1='Input Tables'!$BA$76, AC1='Input Tables'!$BB$76,AC1='Input Tables'!$BC$76, AC1='Input Tables'!$BD$76,AC1='Input Tables'!$BE$76,AC1='Input Tables'!$BF$76,AC1='Input Tables'!$BG$76,AC1='Input Tables'!$BH$76,AC1='Input Tables'!$BI$76,AC1='Input Tables'!$BJ$76,AC1='Input Tables'!$BK$76, AC1='Input Tables'!$BL$76,'Input Tables'!$BM$76),('Cost Budgets'!$G$17*AC6),0),0) -> 0 | AD52: =IFERROR(IF(OR(AD1='Input Tables'!$BA$76, AD1='Input Tables'!$BB$76,AD1='Input Tables'!$BC$76, AD1='Input Tables'!$BD$76,AD1='Input Tables'!$BE$76,AD1='Input Tables'!$BF$76,AD1='Input Tables'!$BG$76,AD1='Input Tables'!$BH$76,AD1='Input Tables'!$BI$76,AD1='Input Tables'!$BJ$76,AD1='Input Tables'!$BK$76, AD1='Input Tables'!$BL$76,'Input Tables'!$BM$76),('Cost Budgets'!$G$17*AD6),0),0) -> 0 | AE52: =IFERROR(IF(OR(AE1='Input Tables'!$BA$76, AE1='Input Tables'!$BB$76,AE1='Input Tables'!$BC$76, AE1='Input Tables'!$BD$76,AE1='Input Tables'!$BE$76,AE1='Input Tables'!$BF$76,AE1='Input Tables'!$BG$76,AE1='Input Tables'!$BH$76,AE1='Input Tables'!$BI$76,AE1='Input Tables'!$BJ$76,AE1='Input Tables'!$BK$76, AE1='Input Tables'!$BL$76,'Input Tables'!$BM$76),('Cost Budgets'!$G$17*AE6),0),0) -> 0 | AF52: =IFERROR(IF(OR(AF1='Input Tables'!$BA$76, AF1='Input Tables'!$BB$76,AF1='Input Tables'!$BC$76, AF1='Input Tables'!$BD$76,AF1='Input Tables'!$BE$76,AF1='Input Tables'!$BF$76,AF1='Input Tables'!$BG$76,AF1='Input Tables'!$BH$76,AF1='Input Tables'!$BI$76,AF1='Input Tables'!$BJ$76,AF1='Input Tables'!$BK$76, AF1='Input Tables'!$BL$76,'Input Tables'!$BM$76),('Cost Budgets'!$G$17*AF6),0),0) -> 0 | AG52: =IFERROR(IF(OR(AG1='Input Tables'!$BA$76, AG1='Input Tables'!$BB$76,AG1='Input Tables'!$BC$76, AG1='Input Tables'!$BD$76,AG1='Input Tables'!$BE$76,AG1='Input Tables'!$BF$76,AG1='Input Tables'!$BG$76,AG1='Input Tables'!$BH$76,AG1='Input Tables'!$BI$76,AG1='Input Tables'!$BJ$76,AG1='Input Tables'!$BK$76, AG1='Input Tables'!$BL$76,'Input Tables'!$BM$76),('Cost Budgets'!$G$17*AG6),0),0) -> 0 | AH52: =IFERROR(IF(OR(AH1='Input Tables'!$BA$76, AH1='Input Tables'!$BB$76,AH1='Input Tables'!$BC$76, AH1='Input Tables'!$BD$76,AH1='Input Tables'!$BE$76,AH1='Input Tables'!$BF$76,AH1='Input Tables'!$BG$76,AH1='Input Tables'!$BH$76,AH1='Input Tables'!$BI$76,AH1='Input Tables'!$BJ$76,AH1='Input Tables'!$BK$76, AH1='Input Tables'!$BL$76,'Input Tables'!$BM$76),('Cost Budgets'!$G$17*AH6),0),0) -> 0 | AI52: =IFERROR(IF(OR(AI1='Input Tables'!$BA$76, AI1='Input Tables'!$BB$76,AI1='Input Tables'!$BC$76, AI1='Input Tables'!$BD$76,AI1='Input Tables'!$BE$76,AI1='Input Tables'!$BF$76,AI1='Input Tables'!$BG$76,AI1='Input Tables'!$BH$76,AI1='Input Tables'!$BI$76,AI1='Input Tables'!$BJ$76,AI1='Input Tables'!$BK$76, AI1='Input Tables'!$BL$76,'Input Tables'!$BM$76),('Cost Budgets'!$G$17*AI6),0),0) -> 0 | AJ52: =IFERROR(IF(OR(AJ1='Input Tables'!$BA$76, AJ1='Input Tables'!$BB$76,AJ1='Input Tables'!$BC$76, AJ1='Input Tables'!$BD$76,AJ1='Input Tables'!$BE$76,AJ1='Input Tables'!$BF$76,AJ1='Input Tables'!$BG$76,AJ1='Input Tables'!$BH$76,AJ1='Input Tables'!$BI$76,AJ1='Input Tables'!$BJ$76,AJ1='Input Tables'!$BK$76, AJ1='Input Tables'!$BL$76,'Input Tables'!$BM$76),('Cost Budgets'!$G$17*AJ6),0),0) -> 0 | AK52: =IFERROR(IF(OR(AK1='Input Tables'!$BA$76, AK1='Input Tables'!$BB$76,AK1='Input Tables'!$BC$76, AK1='Input Tables'!$BD$76,AK1='Input Tables'!$BE$76,AK1='Input Tables'!$BF$76,AK1='Input Tables'!$BG$76,AK1='Input Tables'!$BH$76,AK1='Input Tables'!$BI$76,AK1='Input Tables'!$BJ$76,AK1='Input Tables'!$BK$76, AK1='Input Tables'!$BL$76,'Input Tables'!$BM$76),('Cost Budgets'!$G$17*AK6),0),0) -> 0 | AL52: =IFERROR(IF(OR(AL1='Input Tables'!$BA$76, AL1='Input Tables'!$BB$76,AL1='Input Tables'!$BC$76, AL1='Input Tables'!$BD$76,AL1='Input Tables'!$BE$76,AL1='Input Tables'!$BF$76,AL1='Input Tables'!$BG$76,AL1='Input Tables'!$BH$76,AL1='Input Tables'!$BI$76,AL1='Input Tables'!$BJ$76,AL1='Input Tables'!$BK$76, AL1='Input Tables'!$BL$76,'Input Tables'!$BM$76),('Cost Budgets'!$G$17*AL6),0),0) -> 0 | AM52: =IFERROR(IF(OR(AM1='Input Tables'!$BA$76, AM1='Input Tables'!$BB$76,AM1='Input Tables'!$BC$76, AM1='Input Tables'!$BD$76,AM1='Input Tables'!$BE$76,AM1='Input Tables'!$BF$76,AM1='Input Tables'!$BG$76,AM1='Input Tables'!$BH$76,AM1='Input Tables'!$BI$76,AM1='Input Tables'!$BJ$76,AM1='Input Tables'!$BK$76, AM1='Input Tables'!$BL$76,'Input Tables'!$BM$76),('Cost Budgets'!$G$17*AM6),0),0) -> 0 | AN52: =IFERROR(IF(OR(AN1='Input Tables'!$BA$76, AN1='Input Tables'!$BB$76,AN1='Input Tables'!$BC$76, AN1='Input Tables'!$BD$76,AN1='Input Tables'!$BE$76,AN1='Input Tables'!$BF$76,AN1='Input Tables'!$BG$76,AN1='Input Tables'!$BH$76,AN1='Input Tables'!$BI$76,AN1='Input Tables'!$BJ$76,AN1='Input Tables'!$BK$76, AN1='Input Tables'!$BL$76,'Input Tables'!$BM$76),('Cost Budgets'!$G$17*AN6),0),0) -> 0 | AO52: =IFERROR(IF(OR(AO1='Input Tables'!$BA$76, AO1='Input Tables'!$BB$76,AO1='Input Tables'!$BC$76, AO1='Input Tables'!$BD$76,AO1='Input Tables'!$BE$76,AO1='Input Tables'!$BF$76,AO1='Input Tables'!$BG$76,AO1='Input Tables'!$BH$76,AO1='Input Tables'!$BI$76,AO1='Input Tables'!$BJ$76,AO1='Input Tables'!$BK$76, AO1='Input Tables'!$BL$76,'Input Tables'!$BM$76),('Cost Budgets'!$G$17*AO6),0),0) -> 0 | AP52: =IFERROR(IF(OR(AP1='Input Tables'!$BA$76, AP1='Input Tables'!$BB$76,AP1='Input Tables'!$BC$76, AP1='Input Tables'!$BD$76,AP1='Input Tables'!$BE$76,AP1='Input Tables'!$BF$76,AP1='Input Tables'!$BG$76,AP1='Input Tables'!$BH$76,AP1='Input Tables'!$BI$76,AP1='Input Tables'!$BJ$76,AP1='Input Tables'!$BK$76, AP1='Input Tables'!$BL$76,'Input Tables'!$BM$76),('Cost Budgets'!$G$17*AP6),0),0) -> 0 | AQ52: =IFERROR(IF(OR(AQ1='Input Tables'!$BA$76, AQ1='Input Tables'!$BB$76,AQ1='Input Tables'!$BC$76, AQ1='Input Tables'!$BD$76,AQ1='Input Tables'!$BE$76,AQ1='Input Tables'!$BF$76,AQ1='Input Tables'!$BG$76,AQ1='Input Tables'!$BH$76,AQ1='Input Tables'!$BI$76,AQ1='Input Tables'!$BJ$76,AQ1='Input Tables'!$BK$76, AQ1='Input Tables'!$BL$76,'Input Tables'!$BM$76),('Cost Budgets'!$G$17*AQ6),0),0) -> 0 | AR52: =IFERROR(IF(OR(AR1='Input Tables'!$BA$76, AR1='Input Tables'!$BB$76,AR1='Input Tables'!$BC$76, AR1='Input Tables'!$BD$76,AR1='Input Tables'!$BE$76,AR1='Input Tables'!$BF$76,AR1='Input Tables'!$BG$76,AR1='Input Tables'!$BH$76,AR1='Input Tables'!$BI$76,AR1='Input Tables'!$BJ$76,AR1='Input Tables'!$BK$76, AR1='Input Tables'!$BL$76,'Input Tables'!$BM$76),('Cost Budgets'!$G$17*AR6),0),0) -> 0 | AS52: =IFERROR(IF(OR(AS1='Input Tables'!$BA$76, AS1='Input Tables'!$BB$76,AS1='Input Tables'!$BC$76, AS1='Input Tables'!$BD$76,AS1='Input Tables'!$BE$76,AS1='Input Tables'!$BF$76,AS1='Input Tables'!$BG$76,AS1='Input Tables'!$BH$76,AS1='Input Tables'!$BI$76,AS1='Input Tables'!$BJ$76,AS1='Input Tables'!$BK$76, AS1='Input Tables'!$BL$76,'Input Tables'!$BM$76),('Cost Budgets'!$G$17*AS6),0),0) -> 0 | AT52: =IFERROR(IF(OR(AT1='Input Tables'!$BA$76, AT1='Input Tables'!$BB$76,AT1='Input Tables'!$BC$76, AT1='Input Tables'!$BD$76,AT1='Input Tables'!$BE$76,AT1='Input Tables'!$BF$76,AT1='Input Tables'!$BG$76,AT1='Input Tables'!$BH$76,AT1='Input Tables'!$BI$76,AT1='Input Tables'!$BJ$76,AT1='Input Tables'!$BK$76, AT1='Input Tables'!$BL$76,'Input Tables'!$BM$76),('Cost Budgets'!$G$17*AT6),0),0) -> 0 | AU52: =IFERROR(IF(OR(AU1='Input Tables'!$BA$76, AU1='Input Tables'!$BB$76,AU1='Input Tables'!$BC$76, AU1='Input Tables'!$BD$76,AU1='Input Tables'!$BE$76,AU1='Input Tables'!$BF$76,AU1='Input Tables'!$BG$76,AU1='Input Tables'!$BH$76,AU1='Input Tables'!$BI$76,AU1='Input Tables'!$BJ$76,AU1='Input Tables'!$BK$76, AU1='Input Tables'!$BL$76,'Input Tables'!$BM$76),('Cost Budgets'!$G$17*AU6),0),0) -> 0 | AV52: =IFERROR(IF(OR(AV1='Input Tables'!$BA$76, AV1='Input Tables'!$BB$76,AV1='Input Tables'!$BC$76, AV1='Input Tables'!$BD$76,AV1='Input Tables'!$BE$76,AV1='Input Tables'!$BF$76,AV1='Input Tables'!$BG$76,AV1='Input Tables'!$BH$76,AV1='Input Tables'!$BI$76,AV1='Input Tables'!$BJ$76,AV1='Input Tables'!$BK$76, AV1='Input Tables'!$BL$76,'Input Tables'!$BM$76),('Cost Budgets'!$G$17*AV6),0),0) -> 0 | AW52: =IFERROR(IF(OR(AW1='Input Tables'!$BA$76, AW1='Input Tables'!$BB$76,AW1='Input Tables'!$BC$76, AW1='Input Tables'!$BD$76,AW1='Input Tables'!$BE$76,AW1='Input Tables'!$BF$76,AW1='Input Tables'!$BG$76,AW1='Input Tables'!$BH$76,AW1='Input Tables'!$BI$76,AW1='Input Tables'!$BJ$76,AW1='Input Tables'!$BK$76, AW1='Input Tables'!$BL$76,'Input Tables'!$BM$76),('Cost Budgets'!$G$17*AW6),0),0) -> 0 | AX52: =IFERROR(IF(OR(AX1='Input Tables'!$BA$76, AX1='Input Tables'!$BB$76,AX1='Input Tables'!$BC$76, AX1='Input Tables'!$BD$76,AX1='Input Tables'!$BE$76,AX1='Input Tables'!$BF$76,AX1='Input Tables'!$BG$76,AX1='Input Tables'!$BH$76,AX1='Input Tables'!$BI$76,AX1='Input Tables'!$BJ$76,AX1='Input Tables'!$BK$76, AX1='Input Tables'!$BL$76,'Input Tables'!$BM$76),('Cost Budgets'!$G$17*AX6),0),0) -> 0 | AY52: =IFERROR(IF(OR(AY1='Input Tables'!$BA$76, AY1='Input Tables'!$BB$76,AY1='Input Tables'!$BC$76, AY1='Input Tables'!$BD$76,AY1='Input Tables'!$BE$76,AY1='Input Tables'!$BF$76,AY1='Input Tables'!$BG$76,AY1='Input Tables'!$BH$76,AY1='Input Tables'!$BI$76,AY1='Input Tables'!$BJ$76,AY1='Input Tables'!$BK$76, AY1='Input Tables'!$BL$76,'Input Tables'!$BM$76),('Cost Budgets'!$G$17*AY6),0),0) -> 0 | AZ52: =IFERROR(IF(OR(AZ1='Input Tables'!$BA$76, AZ1='Input Tables'!$BB$76,AZ1='Input Tables'!$BC$76, AZ1='Input Tables'!$BD$76,AZ1='Input Tables'!$BE$76,AZ1='Input Tables'!$BF$76,AZ1='Input Tables'!$BG$76,AZ1='Input Tables'!$BH$76,AZ1='Input Tables'!$BI$76,AZ1='Input Tables'!$BJ$76,AZ1='Input Tables'!$BK$76, AZ1='Input Tables'!$BL$76,'Input Tables'!$BM$76),('Cost Budgets'!$G$17*AZ6),0),0) -> 0 | BA52: =IFERROR(IF(OR(BA1='Input Tables'!$BA$76, BA1='Input Tables'!$BB$76,BA1='Input Tables'!$BC$76, BA1='Input Tables'!$BD$76,BA1='Input Tables'!$BE$76,BA1='Input Tables'!$BF$76,BA1='Input Tables'!$BG$76,BA1='Input Tables'!$BH$76,BA1='Input Tables'!$BI$76,BA1='Input Tables'!$BJ$76,BA1='Input Tables'!$BK$76, BA1='Input Tables'!$BL$76,'Input Tables'!$BM$76),('Cost Budgets'!$G$17*BA6),0),0) -> 0 | BB52: =IFERROR(IF(OR(BB1='Input Tables'!$BA$76, BB1='Input Tables'!$BB$76,BB1='Input Tables'!$BC$76, BB1='Input Tables'!$BD$76,BB1='Input Tables'!$BE$76,BB1='Input Tables'!$BF$76,BB1='Input Tables'!$BG$76,BB1='Input Tables'!$BH$76,BB1='Input Tables'!$BI$76,BB1='Input Tables'!$BJ$76,BB1='Input Tables'!$BK$76, BB1='Input Tables'!$BL$76,'Input Tables'!$BM$76),('Cost Budgets'!$G$17*BB6),0),0) -> 0 | BC52: =IFERROR(IF(OR(BC1='Input Tables'!$BA$76, BC1='Input Tables'!$BB$76,BC1='Input Tables'!$BC$76, BC1='Input Tables'!$BD$76,BC1='Input Tables'!$BE$76,BC1='Input Tables'!$BF$76,BC1='Input Tables'!$BG$76,BC1='Input Tables'!$BH$76,BC1='Input Tables'!$BI$76,BC1='Input Tables'!$BJ$76,BC1='Input Tables'!$BK$76, BC1='Input Tables'!$BL$76,'Input Tables'!$BM$76),('Cost Budgets'!$G$17*BC6),0),0) -> 0 | BD52: =IFERROR(IF(OR(BD1='Input Tables'!$BA$76, BD1='Input Tables'!$BB$76,BD1='Input Tables'!$BC$76, BD1='Input Tables'!$BD$76,BD1='Input Tables'!$BE$76,BD1='Input Tables'!$BF$76,BD1='Input Tables'!$BG$76,BD1='Input Tables'!$BH$76,BD1='Input Tables'!$BI$76,BD1='Input Tables'!$BJ$76,BD1='Input Tables'!$BK$76, BD1='Input Tables'!$BL$76,'Input Tables'!$BM$76),('Cost Budgets'!$G$17*BD6),0),0) -> 0 | BE52: =IFERROR(IF(OR(BE1='Input Tables'!$BA$76, BE1='Input Tables'!$BB$76,BE1='Input Tables'!$BC$76, BE1='Input Tables'!$BD$76,BE1='Input Tables'!$BE$76,BE1='Input Tables'!$BF$76,BE1='Input Tables'!$BG$76,BE1='Input Tables'!$BH$76,BE1='Input Tables'!$BI$76,BE1='Input Tables'!$BJ$76,BE1='Input Tables'!$BK$76, BE1='Input Tables'!$BL$76,'Input Tables'!$BM$76),('Cost Budgets'!$G$17*BE6),0),0) -> 0 | BF52: =IFERROR(IF(OR(BF1='Input Tables'!$BA$76, BF1='Input Tables'!$BB$76,BF1='Input Tables'!$BC$76, BF1='Input Tables'!$BD$76,BF1='Input Tables'!$BE$76,BF1='Input Tables'!$BF$76,BF1='Input Tables'!$BG$76,BF1='Input Tables'!$BH$76,BF1='Input Tables'!$BI$76,BF1='Input Tables'!$BJ$76,BF1='Input Tables'!$BK$76, BF1='Input Tables'!$BL$76,'Input Tables'!$BM$76),('Cost Budgets'!$G$17*BF6),0),0) -> 0 | BG52: =IFERROR(IF(OR(BG1='Input Tables'!$BA$76, BG1='Input Tables'!$BB$76,BG1='Input Tables'!$BC$76, BG1='Input Tables'!$BD$76,BG1='Input Tables'!$BE$76,BG1='Input Tables'!$BF$76,BG1='Input Tables'!$BG$76,BG1='Input Tables'!$BH$76,BG1='Input Tables'!$BI$76,BG1='Input Tables'!$BJ$76,BG1='Input Tables'!$BK$76, BG1='Input Tables'!$BL$76,'Input Tables'!$BM$76),('Cost Budgets'!$G$17*BG6),0),0) -> 0 | BH52: =IFERROR(IF(OR(BH1='Input Tables'!$BA$76, BH1='Input Tables'!$BB$76,BH1='Input Tables'!$BC$76, BH1='Input Tables'!$BD$76,BH1='Input Tables'!$BE$76,BH1='Input Tables'!$BF$76,BH1='Input Tables'!$BG$76,BH1='Input Tables'!$BH$76,BH1='Input Tables'!$BI$76,BH1='Input Tables'!$BJ$76,BH1='Input Tables'!$BK$76, BH1='Input Tables'!$BL$76,'Input Tables'!$BM$76),('Cost Budgets'!$G$17*BH6),0),0) -> 0 | BI52: =IFERROR(IF(OR(BI1='Input Tables'!$BA$76, BI1='Input Tables'!$BB$76,BI1='Input Tables'!$BC$76, BI1='Input Tables'!$BD$76,BI1='Input Tables'!$BE$76,BI1='Input Tables'!$BF$76,BI1='Input Tables'!$BG$76,BI1='Input Tables'!$BH$76,BI1='Input Tables'!$BI$76,BI1='Input Tables'!$BJ$76,BI1='Input Tables'!$BK$76, BI1='Input Tables'!$BL$76,'Input Tables'!$BM$76),('Cost Budgets'!$G$17*BI6),0),0) -> 0 | BJ52: =IFERROR(IF(OR(BJ1='Input Tables'!$BA$76, BJ1='Input Tables'!$BB$76,BJ1='Input Tables'!$BC$76, BJ1='Input Tables'!$BD$76,BJ1='Input Tables'!$BE$76,BJ1='Input Tables'!$BF$76,BJ1='Input Tables'!$BG$76,BJ1='Input Tables'!$BH$76,BJ1='Input Tables'!$BI$76,BJ1='Input Tables'!$BJ$76,BJ1='Input Tables'!$BK$76, BJ1='Input Tables'!$BL$76,'Input Tables'!$BM$76),('Cost Budgets'!$G$17*BJ6),0),0) -> 0 | BK52: =IFERROR(IF(OR(BK1='Input Tables'!$BA$76, BK1='Input Tables'!$BB$76,BK1='Input Tables'!$BC$76, BK1='Input Tables'!$BD$76,BK1='Input Tables'!$BE$76,BK1='Input Tables'!$BF$76,BK1='Input Tables'!$BG$76,BK1='Input Tables'!$BH$76,BK1='Input Tables'!$BI$76,BK1='Input Tables'!$BJ$76,BK1='Input Tables'!$BK$76, BK1='Input Tables'!$BL$76,'Input Tables'!$BM$76),('Cost Budgets'!$G$17*BK6),0),0) -> 0
B54: Potential Revenue less Est. /Man. Costs | D54: =D37-D40-D42-D44-D46-D48-D50-D52 -> -1365.068 | E54: =E37-E40-E42-E44-E46-E48-E50-E52 -> -599.94 | F54: 696.060528 | G54: 1678.795963 | H54: 2754.093623 | I54: 4011.499324 | J54: 3920.229633 | K54: 4879.328294 | L54: 4787.171937 | M54: 5180.799766 | N54: 4926.400821 | O54: 5832.726307 | P54: 6354.551902 | Q54: 7635.328898 | R54: 8901.569866 | S54: 7238.512699 | T54: 8467.180006 | U54: 8386.52323 | V54: 7424.11724 | W54: 7958.924166 | X54: 6897.289782 | Y54: 6445.848883 | Z54: 6849.210889 | AA54: 5960.677742 | AB54: 6468.733099 | AC54: 5533.811926 | AD54: 5313.787944 | AE54: 5097.949751 | AF54: 4690.453308 | AG54: 4976.590221 | AH54: 4334.419074 | AI54: 4582.877359 | AJ54: 3880.164473 | AK54: 4095.341301 | AL54: 3595.833407 | AM54: 3550.355524 | AN54: 3639.798719 | AO54: 3227.452902 | AP54: 3095.411368 | AQ54: 2775.918708 | AR54: 2803.002454 | AS54: 2901.320321 | AT54: 2464.991771 | AU54: 2485.37967 | AV54: 2193.754243 | AW54: 2327.670203 | AX54: 2284.044951 | AY54: 1989.787696 | AZ54: 1926.009932 | BA54: 2016.504812 | BB54: 1802.808147 | BC54: 1792.554476 | BD54: 1782.206746 | BE54: 1513.357125 | BF54: 1607.709313 | BG54: 1600.692857 | BH54: 1362.410068 | BI54: 1395.001235 | BJ54: 1374.063851 | BK54: 1408.328073
A55: Harvesting Costs
B56: Harvesting Cost (Potential) | D56: =IF(D12>0,'Cost Budgets'!$F$20,0) -> 0 | E56: =IF(E12>0,'Cost Budgets'!$F$20,0) -> 0 | F56: =IF(F12>0,'Cost Budgets'!$F$20,0) -> 2058.649213 | G56: =IF(G12>0,'Cost Budgets'!$F$20,0) -> 2058.649213 | H56: =IF(H12>0,'Cost Budgets'!$F$20,0) -> 2058.649213 | I56: =IF(I12>0,'Cost Budgets'!$F$20,0) -> 2058.649213 | J56: =IF(J12>0,'Cost Budgets'!$F$20,0) -> 2058.649213 | K56: =IF(K12>0,'Cost Budgets'!$F$20,0) -> 2058.649213 | L56: =IF(L12>0,'Cost Budgets'!$F$20,0) -> 2058.649213 | M56: =IF(M12>0,'Cost Budgets'!$F$20,0) -> 2058.649213 | N56: =IF(N12>0,'Cost Budgets'!$F$20,0) -> 2058.649213 | O56: =IF(O12>0,'Cost Budgets'!$F$20,0) -> 2058.649213 | P56: =IF(P12>0,'Cost Budgets'!$F$20,0) -> 2058.649213 | Q56: =IF(Q12>0,'Cost Budgets'!$F$20,0) -> 2058.649213 | R56: =IF(R12>0,'Cost Budgets'!$F$20,0) -> 2058.649213 | S56: =IF(S12>0,'Cost Budgets'!$F$20,0) -> 2058.649213 | T56: =IF(T12>0,'Cost Budgets'!$F$20,0) -> 2058.649213 | U56: =IF(U12>0,'Cost Budgets'!$F$20,0) -> 2058.649213 | V56: =IF(V12>0,'Cost Budgets'!$F$20,0) -> 2058.649213 | W56: =IF(W12>0,'Cost Budgets'!$F$20,0) -> 2058.649213 | X56: =IF(X12>0,'Cost Budgets'!$F$20,0) -> 2058.649213 | Y56: =IF(Y12>0,'Cost Budgets'!$F$20,0) -> 2058.649213 | Z56: =IF(Z12>0,'Cost Budgets'!$F$20,0) -> 2058.649213 | AA56: =IF(AA12>0,'Cost Budgets'!$F$20,0) -> 2058.649213 | AB56: =IF(AB12>0,'Cost Budgets'!$F$20,0) -> 2058.649213 | AC56: =IF(AC12>0,'Cost Budgets'!$F$20,0) -> 2058.649213 | AD56: =IF(AD12>0,'Cost Budgets'!$F$20,0) -> 2058.649213 | AE56: =IF(AE12>0,'Cost Budgets'!$F$20,0) -> 2058.649213 | AF56: =IF(AF12>0,'Cost Budgets'!$F$20,0) -> 2058.649213 | AG56: =IF(AG12>0,'Cost Budgets'!$F$20,0) -> 2058.649213 | AH56: =IF(AH12>0,'Cost Budgets'!$F$20,0) -> 2058.649213 | AI56: =IF(AI12>0,'Cost Budgets'!$F$20,0) -> 2058.649213 | AJ56: =IF(AJ12>0,'Cost Budgets'!$F$20,0) -> 2058.649213 | AK56: =IF(AK12>0,'Cost Budgets'!$F$20,0) -> 2058.649213 | AL56: =IF(AL12>0,'Cost Budgets'!$F$20,0) -> 2058.649213 | AM56: =IF(AM12>0,'Cost Budgets'!$F$20,0) -> 2058.649213 | AN56: =IF(AN12>0,'Cost Budgets'!$F$20,0) -> 2058.649213 | AO56: =IF(AO12>0,'Cost Budgets'!$F$20,0) -> 2058.649213 | AP56: =IF(AP12>0,'Cost Budgets'!$F$20,0) -> 2058.649213 | AQ56: =IF(AQ12>0,'Cost Budgets'!$F$20,0) -> 2058.649213 | AR56: =IF(AR12>0,'Cost Budgets'!$F$20,0) -> 2058.649213 | AS56: =IF(AS12>0,'Cost Budgets'!$F$20,0) -> 2058.649213 | AT56: =IF(AT12>0,'Cost Budgets'!$F$20,0) -> 2058.649213 | AU56: =IF(AU12>0,'Cost Budgets'!$F$20,0) -> 2058.649213 | AV56: =IF(AV12>0,'Cost Budgets'!$F$20,0) -> 2058.649213 | AW56: =IF(AW12>0,'Cost Budgets'!$F$20,0) -> 2058.649213 | AX56: =IF(AX12>0,'Cost Budgets'!$F$20,0) -> 2058.649213 | AY56: =IF(AY12>0,'Cost Budgets'!$F$20,0) -> 2058.649213 | AZ56: =IF(AZ12>0,'Cost Budgets'!$F$20,0) -> 2058.649213 | BA56: =IF(BA12>0,'Cost Budgets'!$F$20,0) -> 2058.649213 | BB56: =IF(BB12>0,'Cost Budgets'!$F$20,0) -> 2058.649213 | BC56: =IF(BC12>0,'Cost Budgets'!$F$20,0) -> 2058.649213 | BD56: =IF(BD12>0,'Cost Budgets'!$F$20,0) -> 2058.649213 | BE56: =IF(BE12>0,'Cost Budgets'!$F$20,0) -> 2058.649213 | BF56: =IF(BF12>0,'Cost Budgets'!$F$20,0) -> 2058.649213 | BG56: =IF(BG12>0,'Cost Budgets'!$F$20,0) -> 2058.649213 | BH56: =IF(BH12>0,'Cost Budgets'!$F$20,0) -> 2058.649213 | BI56: =IF(BI12>0,'Cost Budgets'!$F$20,0) -> 2058.649213 | BJ56: =IF(BJ12>0,'Cost Budgets'!$F$20,0) -> 2058.649213 | BK56: =IF(BK12>0,'Cost Budgets'!$F$20,0) -> 2058.649213
B58: Harvesting Cost (Actual) | D58: =IF(D56>D20,0,D56) -> 0 | E58: 0 | F58: 0 | G58: 0 | H58: 2058.649213 | I58: 2058.649213 | J58: 2058.649213 | K58: 2058.649213 | L58: 2058.649213 | M58: 2058.649213 | N58: 2058.649213 | O58: 2058.649213 | P58: 2058.649213 | Q58: 2058.649213 | R58: 2058.649213 | S58: 2058.649213 | T58: 2058.649213 | U58: 2058.649213 | V58: 2058.649213 | W58: 2058.649213 | X58: 2058.649213 | Y58: 2058.649213 | Z58: 2058.649213 | AA58: 2058.649213 | AB58: 2058.649213 | AC58: 2058.649213 | AD58: 2058.649213 | AE58: 2058.649213 | AF58: 2058.649213 | AG58: 2058.649213 | AH58: 2058.649213 | AI58: 2058.649213 | AJ58: =IF(AJ56>AJ20,0,AJ56) -> 2058.649213 | AK58: 2058.649213 | AL58: 2058.649213 | AM58: 2058.649213 | AN58: 2058.649213 | AO58: 2058.649213 | AP58: 2058.649213 | AQ58: 2058.649213 | AR58: 2058.649213 | AS58: 2058.649213 | AT58: 2058.649213 | AU58: 2058.649213 | AV58: 2058.649213 | AW58: 2058.649213 | AX58: 2058.649213 | AY58: 0 | AZ58: 0 | BA58: 0 | BB58: 0 | BC58: 0 | BD58: 0 | BE58: 0 | BF58: 0 | BG58: 0 | BH58: 0 | BI58: 0 | BJ58: 0 | BK58: 0
B61: Total Revenues | D61: =D22 -> 0 | E61: =E22 -> 0 | F61: 0 | G61: 0 | H61: 3241.067904 | I61: 4094.061307 | J61: 4141.257732 | K61: 5235.439104 | L61: 4896.976896 | M61: 5246.626212 | N61: 5290.090474 | O61: 5898.552754 | P61: 6420.378348 | Q61: 7963.61855 | R61: 8967.396312 | S61: 7304.339146 | T61: 8533.006452 | U61: 8452.349676 | V61: 7484.744781 | W61: 8018.167968 | X61: 6951.962554 | Y61: 6495.101295 | Z61: 6897.198368 | AA61: 6005.092336 | AB61: 6511.92183 | AC61: 5573.862579 | AD61: 5349.867565 | AE61: 5132.932624 | AF61: 4722.988963 | AG61: 5008.074806 | AH61: 4363.758504 | AI61: 4611.213486 | AJ61: 3906.621528 | AK61: 4120.843815 | AL61: 3619.691275 | AM61: 3573.307787 | AN61: 3662.750982 | AO61: 3248.98789 | AP61: 3116.068405 | AQ61: 2795.337384 | AR61: 2821.593787 | AS61: 2919.911654 | AT61: 2482.519285 | AU61: 2502.111869 | AV61: 2209.559186 | AW61: 2342.729183 | AX61: 2299.10393 | AY61: 0 | AZ61: 0 | BA61: 0 | BB61: 0 | BC61: 0 | BD61: 0 | BE61: 0 | BF61: 0 | BG61: 0 | BH61: 0 | BI61: 0 | BJ61: 0 | BK61: 0
B63: Total Costs | D63: =D26+D28+D30+D32+D36+D58 -> 919.568 | E63: =E26+E28+E30+E32+E36+E40+E42+E44+E46+E48+E50+E52+E58 -> 599.94 | F63: 90 | G63: 130.5 | H63: 2545.623494 | I63: 2141.211197 | J63: 2279.677312 | K63: 2414.760023 | L63: 2168.454172 | M63: 2124.475659 | N63: 2422.338866 | O63: 2124.475659 | P63: 2124.475659 | Q63: 2386.938866 | R63: 2124.475659 | S63: 2124.475659 | T63: 2124.475659 | U63: 2124.475659 | V63: 2119.276754 | W63: 2117.893015 | X63: 2113.321985 | Y63: 2107.901625 | Z63: 2106.636692 | AA63: 2103.063807 | AB63: 2101.837945 | AC63: 2098.699866 | AD63: 2094.728835 | AE63: 2093.632086 | AF63: 2091.184869 | AG63: 2090.133798 | AH63: 2087.988644 | AI63: 2086.98534 | AJ63: 2085.106267 | AK63: =AK26+AK28+AK30+AK32+AK36+AK40+AK42+AK44+AK46+AK48+AK50+AK52+AK58 -> 2084.151727 | AL63: 2082.507081 | AM63: 2081.601476 | AN63: 2081.601476 | AO63: 2080.184201 | AP63: 2079.306249 | AQ63: 2078.067889 | AR63: 2077.240546 | AS63: 2077.240546 | AT63: 2076.176728 | AU63: 2075.381413 | AV63: 2074.454156 | AW63: 2073.708193 | AX63: 2073.708193 | AY63: 14.26583131 | AZ63: 13.55308155 | BA63: 13.55308155 | BB63: 12.87637903 | BC63: 12.19777339 | BD63: 12.19777339 | BE63: 11.62217129 | BF63: 10.97799605 | BG63: 10.97799605 | BH63: 10.49013948 | BI63: 9.880196447 | BJ63: 9.880196447 | BK63: 9.880196447
B65: Net Revenues | D65: =D61-D63 -> -919.568 | E65: =E61-E63 -> -599.94 | F65: -90 | G65: -130.5 | H65: 695.4444099 | I65: 1952.850111 | J65: 1861.58042 | K65: 2820.679081 | L65: 2728.522724 | M65: 3122.150553 | N65: 2867.751608 | O65: 3774.077094 | P65: 4295.902689 | Q65: 5576.679684 | R65: 6842.920653 | S65: 5179.863486 | T65: 6408.530793 | U65: 6327.874017 | V65: 5365.468027 | W65: 5900.274953 | X65: 4838.640569 | Y65: 4387.19967 | Z65: 4790.561676 | AA65: 3902.028529 | AB65: 4410.083886 | AC65: 3475.162713 | AD65: 3255.138731 | AE65: 3039.300538 | AF65: 2631.804095 | AG65: 2917.941008 | AH65: 2275.76986 | AI65: 2524.228146 | AJ65: 1821.51526 | AK65: 2036.692088 | AL65: 1537.184194 | AM65: 1491.706311 | AN65: 1581.149506 | AO65: 1168.803689 | AP65: 1036.762155 | AQ65: 717.269495 | AR65: 744.3532408 | AS65: 842.6711083 | AT65: 406.3425575 | AU65: 426.7304565 | AV65: 135.1050294 | AW65: 269.0209902 | AX65: 225.3957378 | AY65: -14.26583131 | AZ65: -13.55308155 | BA65: -13.55308155 | BB65: -12.87637903 | BC65: -12.19777339 | BD65: -12.19777339 | BE65: -11.62217129 | BF65: -10.97799605 | BG65: -10.97799605 | BH65: -10.49013948 | BI65: -9.880196447 | BJ65: -9.880196447 | BK65: -9.880196447
D66: =NPV('Management Input'!$Q$6,'Financial Analysis'!D65) -> -875.7790476 | E66: =NPV('Management Input'!$Q$6,$D$65:E65) -> -1419.942313 | F66: =NPV('Management Input'!$Q$6,$D$65:F65) -> -1497.687697 | G66: =NPV('Management Input'!$Q$6,$D$65:G65) -> -1605.05037 | H66: =NPV('Management Input'!$Q$6,$D$65:H65) -> -1060.151477 | I66: =NPV('Management Input'!$Q$6,$D$65:I65) -> 397.0953425 | J66: =NPV('Management Input'!$Q$6,$D$65:J65) -> 1720.085791 | K66: =NPV('Management Input'!$Q$6,$D$65:K65) -> 3629.232421 | L66: =NPV('Management Input'!$Q$6,$D$65:L65) -> 5388.062497 | M66: =NPV('Management Input'!$Q$6,$D$65:M65) -> 7304.792101 | N66: =NPV('Management Input'!$Q$6,$D$65:N65) -> 8981.507072 | O66: =NPV('Management Input'!$Q$6,$D$65:O65) -> 11083.05442 | P66: =NPV('Management Input'!$Q$6,$D$65:P65) -> 13361.26333 | Q66: =NPV('Management Input'!$Q$6,$D$65:Q65) -> 16177.86553 | R66: =NPV('Management Input'!$Q$6,$D$65:R65) -> 19469.42736 | S66: =NPV('Management Input'!$Q$6,$D$65:S65) -> 21842.38251 | T66: =NPV('Management Input'!$Q$6,$D$65:T65) -> 24638.40326 | U66: =NPV('Management Input'!$Q$6,$D$65:U65) -> 27267.76562 | V66: =NPV('Management Input'!$Q$6,$D$65:V65) -> 29391.06351 | W66: =NPV('Management Input'!$Q$6,$D$65:W65) -> 31614.81509 | X66: =NPV('Management Input'!$Q$6,$D$65:X65) -> 33351.60818 | Y66: =NPV('Management Input'!$Q$6,$D$65:Y65) -> 34851.37182 | Z66: =NPV('Management Input'!$Q$6,$D$65:Z65) -> 36411.04124 | AA66: =NPV('Management Input'!$Q$6,$D$65:AA65) -> 37620.93507 | AB66: =NPV('Management Input'!$Q$6,$D$65:AB65) -> 38923.24506 | AC66: =NPV('Management Input'!$Q$6,$D$65:AC65) -> 39900.60238 | AD66: =NPV('Management Input'!$Q$6,$D$65:AD65) -> 40772.48582 | AE66: =NPV('Management Input'!$Q$6,$D$65:AE65) -> 41547.79205 | AF66: =NPV('Management Input'!$Q$6,$D$65:AF65) -> 42187.17917 | AG66: =NPV('Management Input'!$Q$6,$D$65:AG65) -> 42862.32491 | AH66: =NPV('Management Input'!$Q$6,$D$65:AH65) -> 43363.81237 | AI66: =NPV('Management Input'!$Q$6,$D$65:AI65) -> 43893.56245 | AJ66: =NPV('Management Input'!$Q$6,$D$65:AJ65) -> 44257.63333 | AK66: =NPV('Management Input'!$Q$6,$D$65:AK65) -> 44645.32745 | AL66: =NPV('Management Input'!$Q$6,$D$65:AL65) -> 44924.00401 | AM66: =NPV('Management Input'!$Q$6,$D$65:AM65) -> 45181.55816 | AN66: =NPV('Management Input'!$Q$6,$D$65:AN65) -> 45441.55548 | AO66: =NPV('Management Input'!$Q$6,$D$65:AO65) -> 45624.59641 | AP66: =NPV('Management Input'!$Q$6,$D$65:AP65) -> 45779.22738 | AQ66: =NPV('Management Input'!$Q$6,$D$65:AQ65) -> 45881.11241 | AR66: =NPV('Management Input'!$Q$6,$D$65:AR65) -> 45981.80971 | AS66: =NPV('Management Input'!$Q$6,$D$65:AS65) -> 46090.37914 | AT66: =NPV('Management Input'!$Q$6,$D$65:AT65) -> 46140.23916 | AU66: =NPV('Management Input'!$Q$6,$D$65:AU65) -> 46190.10745 | AV66: =NPV('Management Input'!$Q$6,$D$65:AV65) -> 46205.14417 | AW66: =NPV('Management Input'!$Q$6,$D$65:AW65) -> 46233.6595 | AX66: =NPV('Management Input'!$Q$6,$D$65:AX65) -> 46256.41302 | AY66: =NPV('Management Input'!$Q$6,$D$65:AY65) -> 46255.04147 | AZ66: =NPV('Management Input'!$Q$6,$D$65:AZ65) -> 46253.8005 | BA66: =NPV('Management Input'!$Q$6,$D$65:BA65) -> 46252.61862 | BB66: =NPV('Management Input'!$Q$6,$D$65:BB65) -> 46251.54922 | BC66: =NPV('Management Input'!$Q$6,$D$65:BC65) -> 46250.58442 | BD66: =NPV('Management Input'!$Q$6,$D$65:BD65) -> 46249.66556 | BE66: =NPV('Management Input'!$Q$6,$D$65:BE65) -> 46248.83176 | BF66: =NPV('Management Input'!$Q$6,$D$65:BF65) -> 46248.08167 | BG66: =NPV('Management Input'!$Q$6,$D$65:BG65) -> 46247.3673 | BH66: =NPV('Management Input'!$Q$6,$D$65:BH65) -> 46246.71719 | BI66: =NPV('Management Input'!$Q$6,$D$65:BI65) -> 46246.13403 | BJ66: =NPV('Management Input'!$Q$6,$D$65:BJ65) -> 46245.57864 | BK66: =NPV('Management Input'!$Q$6,$D$65:BK65) -> 46245.0497
D67: =MIRR(D65,'Management Input'!$Q$6+1,'Management Input'!$Q$6) ->  | E67: =MIRR($D$65:E65,'Management Input'!$Q$6+1,'Management Input'!$Q$6) -> -1 | F67: =MIRR($D$65:F65,'Management Input'!$Q$6+1,'Management Input'!$Q$6) -> -1 | G67: =MIRR($D$65:G65,'Management Input'!$Q$6+1,'Management Input'!$Q$6) -> -1 | H67: =MIRR($D$65:H65,'Management Input'!$Q$6+1,'Management Input'!$Q$6) -> -0.136139405 | I67: =MIRR($D$65:I65,'Management Input'!$Q$6+1,'Management Input'!$Q$6) -> 0.1652758404 | J67: =MIRR($D$65:J65,'Management Input'!$Q$6+1,'Management Input'!$Q$6) -> 0.2462575258 | K67: =MIRR($D$65:K65,'Management Input'!$Q$6+1,'Management Input'!$Q$6) -> 0.2975564436 | L67: =MIRR($D$65:L65,'Management Input'!$Q$6+1,'Management Input'!$Q$6) -> 0.3102700321 | M67: =MIRR($D$65:M65,'Management Input'!$Q$6+1,'Management Input'!$Q$6) -> 0.3132999173 | N67: =MIRR($D$65:N65,'Management Input'!$Q$6+1,'Management Input'!$Q$6) -> 0.3065767577 | O67: =MIRR($D$65:O65,'Management Input'!$Q$6+1,'Management Input'!$Q$6) -> 0.3021253087 | P67: =MIRR($D$65:P65,'Management Input'!$Q$6+1,'Management Input'!$Q$6) -> 0.296703443 | Q67: =MIRR($D$65:Q65,'Management Input'!$Q$6+1,'Management Input'!$Q$6) -> 0.2928590636 | R67: =MIRR($D$65:R65,'Management Input'!$Q$6+1,'Management Input'!$Q$6) -> 0.2893323988 | S67: =MIRR($D$65:S65,'Management Input'!$Q$6+1,'Management Input'!$Q$6) -> 0.2808818983 | T67: =MIRR($D$65:T65,'Management Input'!$Q$6+1,'Management Input'!$Q$6) -> 0.274007418 | U67: =MIRR($D$65:U65,'Management Input'!$Q$6+1,'Management Input'!$Q$6) -> 0.2666922216 | V67: =MIRR($D$65:V65,'Management Input'!$Q$6+1,'Management Input'!$Q$6) -> 0.2585093709 | W67: =MIRR($D$65:W65,'Management Input'!$Q$6+1,'Management Input'!$Q$6) -> 0.2511223836 | X67: =MIRR($D$65:X65,'Management Input'!$Q$6+1,'Management Input'!$Q$6) -> 0.2433713941 | Y67: =MIRR($D$65:Y65,'Management Input'!$Q$6+1,'Management Input'!$Q$6) -> 0.2358730175 | Z67: =MIRR($D$65:Z65,'Management Input'!$Q$6+1,'Management Input'!$Q$6) -> 0.2290890359 | AA67: =MIRR($D$65:AA65,'Management Input'!$Q$6+1,'Management Input'!$Q$6) -> 0.2223660319 | AB67: =MIRR($D$65:AB65,'Management Input'!$Q$6+1,'Management Input'!$Q$6) -> 0.2163030444 | AC67: =MIRR($D$65:AC65,'Management Input'!$Q$6+1,'Management Input'!$Q$6) -> 0.2103240146 | AD67: =MIRR($D$65:AD65,'Management Input'!$Q$6+1,'Management Input'!$Q$6) -> 0.2046901148 | AE67: =MIRR($D$65:AE65,'Management Input'!$Q$6+1,'Management Input'!$Q$6) -> 0.1993788081 | AF67: =MIRR($D$65:AF65,'Management Input'!$Q$6+1,'Management Input'!$Q$6) -> 0.1943218881 | AG67: =MIRR($D$65:AG65,'Management Input'!$Q$6+1,'Management Input'!$Q$6) -> 0.1896571452 | AH67: =MIRR($D$65:AH65,'Management Input'!$Q$6+1,'Management Input'!$Q$6) -> 0.1851584402 | AI67: =MIRR($D$65:AI65,'Management Input'!$Q$6+1,'Management Input'!$Q$6) -> 0.18098431 | AJ67: =MIRR($D$65:AJ65,'Management Input'!$Q$6+1,'Management Input'!$Q$6) -> 0.1769467942 | AK67: =MIRR($D$65:AK65,'Management Input'!$Q$6+1,'Management Input'!$Q$6) -> 0.1731824736 | AL67: =MIRR($D$65:AL65,'Management Input'!$Q$6+1,'Management Input'!$Q$6) -> 0.1695676597 | AM67: =MIRR($D$65:AM65,'Management Input'!$Q$6+1,'Management Input'!$Q$6) -> 0.1661533746 | AN67: =MIRR($D$65:AN65,'Management Input'!$Q$6+1,'Management Input'!$Q$6) -> 0.1629386231 | AO67: =MIRR($D$65:AO65,'Management Input'!$Q$6+1,'Management Input'!$Q$6) -> 0.1598538043 | AP67: =MIRR($D$65:AP65,'Management Input'!$Q$6+1,'Management Input'!$Q$6) -> 0.1569201869 | AQ67: =MIRR($D$65:AQ65,'Management Input'!$Q$6+1,'Management Input'!$Q$6) -> 0.154110703 | AR67: =MIRR($D$65:AR65,'Management Input'!$Q$6+1,'Management Input'!$Q$6) -> 0.151447162 | AS67: =MIRR($D$65:AS65,'Management Input'!$Q$6+1,'Management Input'!$Q$6) -> 0.1489237546 | AT67: =MIRR($D$65:AT65,'Management Input'!$Q$6+1,'Management Input'!$Q$6) -> 0.1464919638 | AU67: =MIRR($D$65:AU65,'Management Input'!$Q$6+1,'Management Input'!$Q$6) -> 0.1441780488 | AV67: =MIRR($D$65:AV65,'Management Input'!$Q$6+1,'Management Input'!$Q$6) -> 0.1419547387 | AW67: =MIRR($D$65:AW65,'Management Input'!$Q$6+1,'Management Input'!$Q$6) -> 0.1398414142 | AX67: =MIRR($D$65:AX65,'Management Input'!$Q$6+1,'Management Input'!$Q$6) -> 0.1378206467 | AY67: =MIRR($D$65:AY65,'Management Input'!$Q$6+1,'Management Input'!$Q$6) -> 0.1358777342 | AZ67: =MIRR($D$65:AZ65,'Management Input'!$Q$6+1,'Management Input'!$Q$6) -> 0.1340188898 | BA67: =MIRR($D$65:BA65,'Management Input'!$Q$6+1,'Management Input'!$Q$6) -> 0.1322387748 | BB67: =MIRR($D$65:BB65,'Management Input'!$Q$6+1,'Management Input'!$Q$6) -> 0.1305324935 | BC67: =MIRR($D$65:BC65,'Management Input'!$Q$6+1,'Management Input'!$Q$6) -> 0.1288955472 | BD67: =MIRR($D$65:BD65,'Management Input'!$Q$6+1,'Management Input'!$Q$6) -> 0.1273237957 | BE67: =MIRR($D$65:BE65,'Management Input'!$Q$6+1,'Management Input'!$Q$6) -> 0.1258134216 | BF67: =MIRR($D$65:BF65,'Management Input'!$Q$6+1,'Management Input'!$Q$6) -> 0.1243608998 | BG67: =MIRR($D$65:BG65,'Management Input'!$Q$6+1,'Management Input'!$Q$6) -> 0.1229629702 | BH67: =MIRR($D$65:BH65,'Management Input'!$Q$6+1,'Management Input'!$Q$6) -> 0.1216166126 | BI67: =MIRR($D$65:BI65,'Management Input'!$Q$6+1,'Management Input'!$Q$6) -> 0.120319026 | BJ67: =MIRR($D$65:BJ65,'Management Input'!$Q$6+1,'Management Input'!$Q$6) -> 0.1190676081 | BK67: =MIRR($D$65:BK65,'Management Input'!$Q$6+1,'Management Input'!$Q$6) -> 0.1178599388
D68: =PMT('Management Input'!$Q$6,70,-D66) -> -45.277035 | E68: =PMT('Management Input'!$Q$6,70,-E66) -> -73.40981492 | F68: =PMT('Management Input'!$Q$6,70,-F66) -> -77.42918542 | G68: =PMT('Management Input'!$Q$6,70,-G66) -> -82.97974468 | H68: =PMT('Management Input'!$Q$6,70,-H66) -> -54.80893346 | I68: =PMT('Management Input'!$Q$6,70,-I66) -> 20.52949288 | J68: =PMT('Management Input'!$Q$6,70,-J66) -> 88.92697855 | K68: =PMT('Management Input'!$Q$6,70,-K66) -> 187.6282423 | L68: =PMT('Management Input'!$Q$6,70,-L66) -> 278.5582676 | M68: =PMT('Management Input'!$Q$6,70,-M66) -> 377.6515646 | N68: =PMT('Management Input'!$Q$6,70,-N66) -> 464.3363085 | O68: =PMT('Management Input'!$Q$6,70,-O66) -> 572.9845263 | P68: =PMT('Management Input'!$Q$6,70,-P66) -> 690.7659977 | Q68: =PMT('Management Input'!$Q$6,70,-Q66) -> 836.3819455 | R68: =PMT('Management Input'!$Q$6,70,-R66) -> 1006.552904 | S68: =PMT('Management Input'!$Q$6,70,-S66) -> 1129.232676 | T68: =PMT('Management Input'!$Q$6,70,-T66) -> 1273.784581 | U68: =PMT('Management Input'!$Q$6,70,-U66) -> 1409.720387 | V68: =PMT('Management Input'!$Q$6,70,-V66) -> 1519.49309 | W68: =PMT('Management Input'!$Q$6,70,-W66) -> 1634.459163 | X68: =PMT('Management Input'!$Q$6,70,-X66) -> 1724.249895 | Y68: =PMT('Management Input'!$Q$6,70,-Y66) -> 1801.786405 | Z68: =PMT('Management Input'!$Q$6,70,-Z66) -> 1882.419993 | AA68: =PMT('Management Input'!$Q$6,70,-AA66) -> 1944.970479 | AB68: =PMT('Management Input'!$Q$6,70,-AB66) -> 2012.298803 | AC68: =PMT('Management Input'!$Q$6,70,-AC66) -> 2062.827348 | AD68: =PMT('Management Input'!$Q$6,70,-AD66) -> 2107.902984 | AE68: =PMT('Management Input'!$Q$6,70,-AE66) -> 2147.985659 | AF68: =PMT('Management Input'!$Q$6,70,-AF66) -> 2181.041432 | AG68: =PMT('Management Input'!$Q$6,70,-AG66) -> 2215.945895 | AH68: =PMT('Management Input'!$Q$6,70,-AH66) -> 2241.872371 | AI68: =PMT('Management Input'!$Q$6,70,-AI66) -> 2269.260002 | AJ68: =PMT('Management Input'!$Q$6,70,-AJ66) -> 2288.082158 | AK68: =PMT('Management Input'!$Q$6,70,-AK66) -> 2308.125615 | AL68: =PMT('Management Input'!$Q$6,70,-AL66) -> 2322.532958 | AM68: =PMT('Management Input'!$Q$6,70,-AM66) -> 2335.848289 | AN68: =PMT('Management Input'!$Q$6,70,-AN66) -> 2349.289931 | AO68: =PMT('Management Input'!$Q$6,70,-AO66) -> 2358.752992 | AP68: =PMT('Management Input'!$Q$6,70,-AP66) -> 2366.747282 | AQ68: =PMT('Management Input'!$Q$6,70,-AQ66) -> 2372.014652 | AR68: =PMT('Management Input'!$Q$6,70,-AR66) -> 2377.220617 | AS68: =PMT('Management Input'!$Q$6,70,-AS66) -> 2382.833564 | AT68: =PMT('Management Input'!$Q$6,70,-AT66) -> 2385.411285 | AU68: =PMT('Management Input'!$Q$6,70,-AU66) -> 2387.989433 | AV68: =PMT('Management Input'!$Q$6,70,-AV66) -> 2388.766819 | AW68: =PMT('Management Input'!$Q$6,70,-AW66) -> 2390.241037 | AX68: =PMT('Management Input'!$Q$6,70,-AX66) -> 2391.417375 | AY68: =PMT('Management Input'!$Q$6,70,-AY66) -> 2391.346467 | AZ68: =PMT('Management Input'!$Q$6,70,-AZ66) -> 2391.28231 | BA68: =PMT('Management Input'!$Q$6,70,-BA66) -> 2391.221208 | BB68: =PMT('Management Input'!$Q$6,70,-BB66) -> 2391.165921 | BC68: =PMT('Management Input'!$Q$6,70,-BC66) -> 2391.116042 | BD68: =PMT('Management Input'!$Q$6,70,-BD66) -> 2391.068537 | BE68: =PMT('Management Input'!$Q$6,70,-BE66) -> 2391.02543 | BF68: =PMT('Management Input'!$Q$6,70,-BF66) -> 2390.986652 | BG68: =PMT('Management Input'!$Q$6,70,-BG66) -> 2390.949719 | BH68: =PMT('Management Input'!$Q$6,70,-BH66) -> 2390.916109 | BI68: =PMT('Management Input'!$Q$6,70,-BI66) -> 2390.88596 | BJ68: =PMT('Management Input'!$Q$6,70,-BJ66) -> 2390.857247 | BK68: =PMT('Management Input'!$Q$6,70,-BK66) -> 2390.829901
D69: =IRR(D66,1) ->  | E69: =IRR($D$66:E66,1) ->  | F69: =IRR($D$66:F66,1) ->  | G69: =IRR($D$66:G66,1) ->  | H69: =IRR($D$66:H66,1) ->  | I69: =IRR($D$66:I66,1) -> -0.7491392902 | J69: =IRR($D$66:J66,1) -> -0.2734767618 | K69: =IRR($D$66:K66,1) -> -0.02585683309 | L69: =IRR($D$66:L66,1) -> 0.1099534327 | M69: =IRR($D$66:M66,1) -> 0.1945095942 | N69: =IRR($D$66:N66,1) -> 0.2483822585 | O69: =IRR($D$66:O66,1) -> 0.2856118062 | P69: =IRR($D$66:P66,1) -> 0.3119952153 | Q69: =IRR($D$66:Q66,1) -> 0.33144492 | R69: =IRR($D$66:R66,1) -> 0.346065105 | S69: =IRR($D$66:S66,1) -> 0.3565654325 | T69: =IRR($D$66:T66,1) -> 0.3643229634 | U69: =IRR($D$66:U66,1) -> 0.370045909 | V69: =IRR($D$66:V66,1) -> 0.3742211337 | W69: =IRR($D$66:W66,1) -> 0.3772999073 | X69: =IRR($D$66:X66,1) -> 0.3795495211 | Y69: =IRR($D$66:Y66,1) -> 0.381191824 | Z69: =IRR($D$66:Z66,1) -> 0.3823987525 | AA69: =IRR($D$66:AA66,1) -> 0.3832807368 | AB69: =IRR($D$66:AB66,1) -> 0.3839289495 | AC69: =IRR($D$66:AC66,1) -> 0.3844026058 | AD69: =IRR($D$66:AD66,1) -> 0.3847485661 | AE69: =IRR($D$66:AE66,1) -> 0.3850011029 | AF69: =IRR($D$66:AF66,1) -> 0.3851851012 | AG69: =IRR($D$66:AG66,1) -> 0.385319421 | AH69: =IRR($D$66:AH66,1) -> 0.3854171601 | AI69: =IRR($D$66:AI66,1) -> 0.3854883737 | AJ69: =IRR($D$66:AJ66,1) -> 0.3855400913 | AK69: =IRR($D$66:AK66,1) -> 0.3855776853 | AL69: =IRR($D$66:AL66,1) -> 0.3856049543 | AM69: =IRR($D$66:AM66,1) -> 0.3856247296 | AN69: =IRR($D$66:AN66,1) -> 0.3856390736 | AO69: =IRR($D$66:AO66,1) -> 0.385649462 | AP69: =IRR($D$66:AP66,1) -> 0.3856569817 | AQ69: =IRR($D$66:AQ66,1) -> 0.385662419 | AR69: =IRR($D$66:AR66,1) -> 0.3856663507 | AS69: =IRR($D$66:AS66,1) -> 0.3856691944 | AT69: =IRR($D$66:AT66,1) -> 0.3856712486 | AU69: =IRR($D$66:AU66,1) -> 0.3856727325 | AV69: =IRR($D$66:AV66,1) -> 0.3856738037 | AW69: =IRR($D$66:AW66,1) -> 0.3856745771 | AX69: =IRR($D$66:AX66,1) -> 0.3856751356 | AY69: =IRR($D$66:AY66,1) -> 0.3856755386 | AZ69: =IRR($D$66:AZ66,1) -> 0.3856758294 | BA69: =IRR($D$66:BA66,1) -> 0.3856760393 | BB69: =IRR($D$66:BB66,1) -> 0.3856761907 | BC69: =IRR($D$66:BC66,1) -> 0.3856763 | BD69: =IRR($D$66:BD66,1) -> 0.3856763789 | BE69: =IRR($D$66:BE66,1) -> 0.3856764358 | BF69: =IRR($D$66:BF66,1) -> 0.3856764769 | BG69: =IRR($D$66:BG66,1) -> 0.3856765065 | BH69: =IRR($D$66:BH66,1) -> 0.3856765279 | BI69: =IRR($D$66:BI66,1) -> 0.3856765433 | BJ69: =IRR($D$66:BJ66,1) -> 0.3856765545 | BK69: =IRR($D$66:BK66,1) -> 0.3856765625
B71: ="PV of Revenues @ "&TEXT('Management Input'!Q6,"0%") -> PV of Revenues @ 5% | D71: =NPV('Management Input'!$Q$6,D61:BK61) -> 79326.26631
B73: ="PV of Costs @ "&TEXT('Management Input'!Q6,"0%") -> PV of Costs @ 5% | D73: =NPV('Management Input'!$Q$6,D63:BK63) -> 33081.21661
B75: ="NPV @ "&TEXT('Management Input'!Q6,"0%") -> NPV @ 5% | D75: =D71-D73 -> 46245.0497
B77: Rate of Return (MIRR) | D77: =MIRR(D65:BK65,'Management Input'!Q6+1,'Management Input'!Q6) -> 0.1178599388
B79: Years to Break Even | D79: =MATCH(0,D67:BK67,1) -> 5
B81: ="AEV @ "&TEXT('Management Input'!Q6,"0%") -> AEV @ 5% | D81: =PMT('Management Input'!Q6,60,-D75) -> 2443.042019
B83: ="IRR @ "&TEXT('Management Input'!Q6,"0%") -> IRR @ 5% | D83: =IRR(D65:BK65) -> 0.4549604125

Sheet Input Tables
A1: Site Prep | B1: Estimated Cost/ac | C1: Cost per Tree | D1: Occurrence
A2: Discing only | B2: 100 | C2: =B2/'Cost Budgets'!$B$3 -> 2.066115702 | D2: 1
A3: Herbicide only (1 qt/ac.) | B3: 120 | C3: =B3/'Cost Budgets'!$B$3 -> 2.479338843 | D3: 1
A4: Herbicide with Discing | B4: 150 | C4: =B4/'Cost Budgets'!$B$3 -> 3.099173554 | D4: 1
A5: User Defined | B5: 0 | C5: 0
A7: Layout/Design | B7: Estimated Cost/ac | C7: Cost per Tree | D7: Occurrence
A8: Diamond
A9: Hexagonal | E9: No Cost
A10: Rectangular/Square
A12: Planting Stock | B12: Estimated Cost/ac | C12: Cost per Tree | D12: Occurrence
A13: Grafted Seedlings | B13: =C13*'Cost Budgets'!$B$3 -> 968 | C13: 20 | D13: 1
A14: Seed | B14: =C14*'Cost Budgets'!$B$3 -> 169.4 | C14: 3.5 | D14: 1
A15: Seedlings (bare root) | B15: =C15*'Cost Budgets'!$B$3 -> 193.6 | C15: 4 | D15: 1
A16: Seedlings (RPM™) | B16: =C16*'Cost Budgets'!$B$3 -> 847 | C16: 17.5 | D16: 1
A17: User Defined | B17: =C17*'Cost Budgets'!$B$3 -> 0 | C17: 0 | D17: 1
A19: Fertilization (initial) | B19: Estimated Cost/ac | C19: Cost per Tree | D19: Occurrence
A20: Good early growth (> 8") | B20: =C20*'Cost Budgets'!B3 -> 49.368 | C20: 1.02 | D20: 1
A21: Slow early growth (< 8") | B21: 0 | C21: 0 | D21: 1
A22: User Defined | B22: 0 | C22: 0 | D22: 1
A24: Thinning | B24: Estimated Cost/ac | C24: Cost per TC | D24: Occurrence
A25: ='Management Input'!E21 -> 0.1 | B25: 0 | C25: 0.042 | F25: As per model
A27: Tree Staking | B27: Estimated Cost/ac | C27: Cost per Tree | D27: Occurrence
A28: Re-Bar | B28: =C28*'Cost Budgets'!$B$3 -> 67.276 | C28: 1.39 | D28: 1
A29: Steel conduit pipe | B29: =C29*'Cost Budgets'!$B$3 -> 96.8 | C29: 2 | D29: 1
A30: T-posts | B30: =C30*'Cost Budgets'!$B$3 -> 338.8 | C30: 7 | D30: 1
A31: User Defined | B31: 0 | C31: 0 | D31: 1
A32: Wooden stakes | B32: =C32*'Cost Budgets'!$B$3 -> 19.36 | C32: 0.4
A34: Fertilization (maintenance) | B34: Estimated Cost/ac | C34: Cost per Tree | D34: Occurrence
A35: Bearing trees (33% N) | B35: 90 | C35: =B35/'Cost Budgets'!$B$3 -> 1.859504132 | D35: Fertilizer applied every | G35: 1 | H35: years, until year | J35: 30 | BA35: =G36 -> 2 | BB35: =G36+G35 -> 3 | BC35: =IF(AND((BB35+$G$35)<$J$35,BB35>0),BB35+$G$35,0) -> 4 | BD35: 5 | BE35: 6 | BF35: 7 | BG35: 8 | BH35: 9 | BI35: 10 | BJ35: 11 | BK35: 12 | BL35: 13 | BM35: 14 | BN35: 15 | BO35: 16 | BP35: 17 | BQ35: 18 | BR35: 19 | BS35: 20 | BT35: 21 | BU35: 22 | BV35: 23 | BW35: 24 | BX35: 25 | BY35: 26 | BZ35: 27 | CA35: 28 | CB35: 29 | CC35: 0 | CD35: 0 | CE35: 0 | CF35: 0 | CG35: 0 | CH35: 0 | CI35: 0 | CJ35: 0 | CK35: 0 | CL35: 0 | CM35: 0
A36: Bearing trees (46% N) | B36: 90 | C36: =B36/'Cost Budgets'!$B$3 -> 1.859504132 | E36: First Year of Application | G36: 2
A37: Non-bearing tree | B37: 90 | C37: =B37/'Cost Budgets'!$B$3 -> 1.859504132
A38: User Defined | B38: 0 | C38: 0
A40: Pruning | B40: Estimated Cost/ac | C40: Cost per Tree | D40: Occurrence
A41: Spring prune | B41: =C41*'Cost Budgets'!$B$3 -> 24.2 | C41: 0.5 | D41: Pruning conducted every | G41: 2 | H41: years, until year | J41: 12 | BA41: =G42 -> 5 | BB41: =G42+G41 -> 7 | BC41: =IF(AND((BB41+$G$41)<$J$41,BB41>0),BB41+$G$41,0) -> 9 | BD41: =IF(AND((BC41+$G$41)<$J$41,BC41>0),BC41+$G$41,0) -> 11 | BE41: 0 | BF41: 0 | BG41: 0 | BH41: 0 | BI41: 0 | BJ41: 0 | BK41: 0 | BL41: 0 | BM41: 0 | BN41: 0 | BO41: 0 | BP41: 0 | BQ41: 0 | BR41: 0 | BS41: 0 | BT41: 0 | BU41: 0 | BV41: 0 | BW41: 0 | BX41: 0 | BY41: 0 | BZ41: 0 | CA41: 0 | CB41: 0 | CC41: 0 | CD41: 0 | CE41: 0 | CF41: 0 | CG41: 0 | CH41: 0 | CI41: 0 | CJ41: 0 | CK41: 0 | CL41: 0 | CM41: 0
A42: Spring & Summer Prune | B42: =C42*'Cost Budgets'!$B$3 -> 48.4 | C42: 1 | E42: First Year of Application | G42: 5
A43: Summer/Fall prune | B43: =C43*'Cost Budgets'!$B$3 -> 24.2 | C43: 0.5
A44: User Defined | B44: 0 | C44: 0
A46: Weed control | B46: Estimated Cost/ac | C46: Cost per Tree | D46: Occurrence
A47: Discing | B47: 100 | C47: =B47/'Cost Budgets'!$B$3 -> 2.066115702 | D47: Weed control conducted every | G47: 5 | H47: years, until year | J47: 10 | BA47: =G48 -> 2 | BB47: =G48+G47 -> 7 | BC47: =IF(AND((BB47+$G$47)<$J$47,BB47>0),BB47+$G$47,0) -> 0 | BD47: =IF(AND((BC47+$G$47)<$J$47,BC47>0),BC47+$G$47,0) -> 0 | BE47: 0 | BF47: 0 | BG47: 0 | BH47: 0 | BI47: 0 | BJ47: 0 | BK47: 0 | BL47: 0 | BM47: 0 | BN47: 0 | BO47: 0 | BP47: 0 | BQ47: 0 | BR47: 0 | BS47: 0 | BT47: 0 | BU47: 0 | BV47: 0 | BW47: 0 | BX47: 0 | BY47: 0 | BZ47: 0 | CA47: 0 | CB47: 0 | CC47: 0 | CD47: 0 | CE47: 0 | CF47: 0 | CG47: 0 | CH47: 0 | CI47: 0 | CJ47: 0 | CK47: 0 | CL47: 0 | CM47: 0
A48: Herbicide (Roundup TM) | B48: 120 | C48: =B48/'Cost Budgets'!$B$3 -> 2.479338843 | E48: First Year of Application | G48: 2
A49: Mats (weed) | B49: =C49*'Cost Budgets'!B3 -> 62.92 | C49: 1.3
A50: Mowing | B50: 10 | C50: =B50/'Cost Budgets'!$B$3 -> 0.2066115702
A51: User Defined | B51: 0 | C51: 0
A53: Pest Control | B53: Estimated Cost/ac | C53: Cost per Tree | D53: Occurrence
A54: Asana XL | B54: ='Chemical costs'!H2 -> 8.144216509 | C54: =B54/'Cost Budgets'!$B$3 -> 0.1682689361 | D54: Pest control applied every | G54: 3 | H54: years, until year | J54: 15 | BA54: =G55 -> 5 | BB54: =G55+G54 -> 8 | BC54: =IF(AND((BB54+$G$54)<$J$54,BB54>0),BB54+$G$54,0) -> 11 | BD54: =IF(AND((BC54+$G$54)<$J$54,BC54>0),BC54+$G$54,0) -> 14 | BE54: 0 | BF54: 0 | BG54: 0 | BH54: 0 | BI54: 0 | BJ54: 0 | BK54: 0 | BL54: 0 | BM54: 0 | BN54: 0 | BO54: 0 | BP54: 0 | BQ54: 0 | BR54: 0 | BS54: 0 | BT54: 0 | BU54: 0 | BV54: 0 | BW54: 0 | BX54: 0 | BY54: 0 | BZ54: 0 | CA54: 0 | CB54: 0 | CC54: 0 | CD54: 0 | CE54: 0 | CF54: 0 | CG54: 0 | CH54: 0 | CI54: 0 | CJ54: 0 | CK54: 0 | CL54: 0 | CM54: 0
A55: Confirm 2F | B55: ='Chemical costs'!H3 -> 0 | C55: =B55/'Cost Budgets'!$B$3 -> 0 | E55: First Year of Application | G55: 5
A56: Dipel ES | B56: ='Chemical costs'!H8 -> 33 | C56: =B56/'Cost Budgets'!$B$3 -> 0.6818181818
A57: Guthion 2L | B57: ='Chemical costs'!H10 -> 89.32 | C57: =B57/'Cost Budgets'!$B$3 -> 1.845454545
A58: Imidian 70 WSB | B58: ='Chemical costs'!H6 -> 20.233125 | C58: =B58/'Cost Budgets'!$B$3 -> 0.4180397727
A59: Javelin WG | B59: ='Chemical costs'!H9 -> 0 | C59: =B59/'Cost Budgets'!$B$3 -> 0
A60: Lorsban 4E/Nufos 4E | B60: ='Chemical costs'!H4 -> 16.456 | C60: =B60/'Cost Budgets'!$B$3 -> 0.34
A61: None | B61: 0 | C61: =B61/'Cost Budgets'!$B$3 -> 0
A62: Sevin 80W | B62: ='Chemical costs'!H7 -> 34.25625 | C62: =B62/'Cost Budgets'!$B$3 -> 0.7077737603
A63: Sniper 2E | B63: ='Chemical costs'!H11 -> 0 | C63: =B63/'Cost Budgets'!$B$3 -> 0
A64: User Defined | B64: 0 | C64: 0
A65: Warrior | B65: ='Chemical costs'!H5 -> 9.408 | C65: =B65/'Cost Budgets'!$B$3 -> 0.1943801653
A67: Disease Control | B67: Estimated Cost/ac | C67: Cost per Tree | D67: Occurrence
A68: Abound | B68: ='Chemical costs'!H12 -> 0 | C68: =B68/'Cost Budgets'!$B$3 -> 0 | D68: Disease control applied every | G68: 3 | H68: years, until year | J68: 15 | BA68: =G69 -> 2 | BB68: =G69+G68 -> 5 | BC68: =IF(AND((BB68+$G$68)<$J$68,BB68>0),BB68+$G$68,0) -> 8 | BD68: =IF(AND((BC68+$G$68)<$J$68,BC68>0),BC68+$G$68,0) -> 11 | BE68: 14 | BF68: 0 | BG68: 0 | BH68: 0 | BI68: 0 | BJ68: 0 | BK68: 0 | BL68: 0 | BM68: 0 | BN68: 0 | BO68: 0 | BP68: 0 | BQ68: 0 | BR68: 0 | BS68: 0 | BT68: 0 | BU68: 0 | BV68: 0 | BW68: 0 | BX68: 0 | BY68: 0 | BZ68: 0 | CA68: 0 | CB68: 0 | CC68: 0 | CD68: 0 | CE68: 0 | CF68: 0 | CG68: 0 | CH68: 0 | CI68: 0 | CJ68: 0 | CK68: 0 | CL68: 0 | CM68: 0
A69: Flint | B69: ='Chemical costs'!H13 -> 0 | C69: =B69/'Cost Budgets'!$B$3 -> 0 | E69: First Year of Application | G69: 2
A70: None | B70: 0 | C70: =B70/'Cost Budgets'!$B$3 -> 0
A71: Pristine | B71: ='Chemical costs'!H14 -> 0 | C71: =B71/'Cost Budgets'!$B$3 -> 0
A72: Syllit | B72: ='Chemical costs'!H15 -> 55.88 | C72: =B72/'Cost Budgets'!$B$3 -> 1.154545455
A73: User Defined | B73: 0 | C73: 0
A75: Deer Control | B75: Estimated Cost/ac | C75: Cost per Tree | D75: Occurrence
A76: Game Deterrent Fencing | B76: 349.44 | C76: =B76/'Cost Budgets'!$B$3 -> 7.219834711 | D76: Deer Control measures used every | G76: 3 | H76: years, until year | J76: 15 | BA76: =G77 -> 2 | BB76: =G77+G76 -> 5 | BC76: =IF(AND((BB76+$G$76)<$J$76,BB76>0),BB76+$G$76,0) -> 8 | BD76: =IF(AND((BC76+$G$76)<$J$76,BC76>0),BC76+$G$76,0) -> 11 | BE76: 14 | BF76: 0 | BG76: 0 | BH76: 0 | BI76: 0 | BJ76: 0 | BK76: 0 | BL76: 0 | BM76: 0 | BN76: 0 | BO76: 0 | BP76: 0 | BQ76: 0 | BR76: 0 | BS76: 0 | BT76: 0 | BU76: 0 | BV76: 0 | BW76: 0 | BX76: 0 | BY76: 0 | BZ76: 0 | CA76: 0 | CB76: 0 | CC76: 0 | CD76: 0 | CE76: 0 | CF76: 0 | CG76: 0 | CH76: 0 | CI76: 0 | CJ76: 0 | CK76: 0 | CL76: 0 | CM76: 0
A77: None | B77: 0 | C77: 0 | E77: First Year of Application | G77: 2
A78: Plantskydd® Repellent | B78: =C78*'Cost Budgets'!$B$3 -> 4.84 | C78: 0.1
A79: Plotsaver Ribbon | B79: 47.5 | C79: =B79/'Cost Budgets'!$B$3 -> 0.9814049587
A80: Tree Guard® Deer Repellent | B80: =C80*'Cost Budgets'!$B$3 -> 2.178 | C80: 0.045
A81: Tube Tree Shelters | B81: =C81*'Cost Budgets'!B3 -> 48.4 | C81: 1
A82: User Defined | B82: 68.36 | C82: =B82/'Cost Budgets'!B3 -> 1.412396694
A84: Grafting Technique | B84: Estimated Cost/ac | C84: Cost per Tree | D84: Occurrence
A85: Not Grafted | B85: 0 | C85: 0
A86: Nursery Grafted | B86: =C86*'Cost Budgets'!$B$3 -> 871.2 | C86: 18
A87: Professionally Field Grafted | B87: =C87*'Cost Budgets'!$B$3 -> 871.2 | C87: 18 | D87: Grafting conducted every | G87: 1 | H87: years, until year | J87: 5 | BA87: =1+G87 -> 2 | BB87: =IF(AND((BA87+$G$87)<$J$87,BA87>0),BA87+$G$87,0) -> 3 | BC87: =IF(AND((BB87+$G$87)<$J$87,BB87>0),BB87+$G$87,0) -> 4 | BD87: 0 | BE87: 0 | BF87: 0 | BG87: 0 | BH87: 0 | BI87: 0 | BJ87: 0 | BK87: 0 | BL87: 0 | BM87: 0 | BN87: 0 | BO87: 0 | BP87: 0 | BQ87: 0 | BR87: 0 | BS87: 0 | BT87: 0 | BU87: 0 | BV87: 0 | BW87: 0 | BX87: 0 | BY87: 0 | BZ87: 0 | CA87: 0 | CB87: 0 | CC87: 0 | CD87: 0 | CE87: 0 | CF87: 0 | CG87: 0 | CH87: 0 | CI87: 0 | CJ87: 0 | CK87: 0 | CL87: 0
A88: Self Grafted (Bench) | B88: =C88*'Cost Budgets'!$B$3 -> 484 | C88: 10
A89: Self Grafted (Field) | B89: =C89*'Cost Budgets'!$B$3 -> 484 | C89: 10 | D89: Grafting conducted every | G89: 1 | H89: years, until year | J89: 5 | BA89: =1+G89 -> 2 | BB89: =IF(AND((BA89+$G$89)<$J$89,BA89>0),BA89+$G$89,0) -> 3 | BC89: =IF(AND((BB89+$G$89)<$J$89,BB89>0),BB89+$G$89,0) -> 4 | BD89: 0 | BE89: 0 | BF89: 0 | BG89: 0 | BH89: 0 | BI89: 0 | BJ89: 0 | BK89: 0 | BL89: 0 | BM89: 0 | BN89: 0 | BO89: 0 | BP89: 0 | BQ89: 0 | BR89: 0 | BS89: 0 | BT89: 0 | BU89: 0 | BV89: 0 | BW89: 0 | BX89: 0 | BY89: 0 | BZ89: 0 | CA89: 0 | CB89: 0 | CC89: 0 | CD89: 0 | CE89: 0 | CF89: 0 | CG89: 0 | CH89: 0 | CI89: 0 | CJ89: 0 | CK89: 0 | CL89: 0
A91: Harvest Techniques | B91: Estimated Cost/ac | C91: Cost per Tree
A92: Hand pickup | B92: 75 | C92: =B92/'Cost Budgets'!$B$3 -> 1.549586777 | D92: PV | E92: N | F92: I | G92: PMT
A93: Mechanized (unspecified) | B93: =IF(K94=0,(-1*G93)/'Financial Analysis'!$D$86,(-1*G93)/K94) -> 2058.649213 | C93: =B93/'Cost Budgets'!$B$3 -> 42.53407465 | D93: 150000 | E93: 15 | F93: 0.07 | G93: =PMT(F93,E93,D93) -> -16469.19371 | M93: Harvesting starts in the | P93: =LOOKUP(0,'Financial Analysis'!D22:BK22,'Financial Analysis'!D1:BK1)+1 -> 5 | Q93: year, until year | S93: =P93+E93 -> 20 | BA93: =P93 -> 5 | BB93: =IF(BA93>$S$93,0,BA93+1) -> 6 | BC93: =IF(OR(BB93>$S$93,BB93=0),0,BB93+1) -> 7 | BD93: =IF(OR(BC93>$S$93,BC93=0),0,BC93+1) -> 8 | BE93: 9 | BF93: =IF(OR(BE93>$S$93,BE93=0),0,BE93+1) -> 10 | BG93: 11 | BH93: 12 | BI93: 13 | BJ93: 14 | BK93: 15 | BL93: 16 | BM93: 17 | BN93: 18 | BO93: 19 | BP93: 20 | BQ93: 21 | BR93: 0 | BS93: 0 | BT93: 0 | BU93: 0 | BV93: 0 | BW93: 0
A94: Paddock Vac System | B94: =IF(K94=0,(-1*G94)/'Financial Analysis'!$D$86,(-1*G94)/K94) -> 142.7432354 | C94: =B94/'Cost Budgets'!$B$3 -> 2.949240401 | D94: 4500 | E94: 5 | F94: 0.085 | G94: =PMT(F94,E94,D94) -> -1141.945883 | I94: Number of Acres: | K94: ='Management Input'!R10 -> 8 | M94: Harvesting starts in the | P94: =LOOKUP(1,'Financial Analysis'!D58:BK58,'Financial Analysis'!D1:BK1)+1 -> 5 | Q94: year, until year | S94: =P94+E94 -> 10 | BA94: =P94 -> 5 | BB94: =IF(BA94>$S$93,0,BA94+1) -> 6 | BC94: =IF(OR(BB94>$S$93,BB94=0),0,BB94+1) -> 7 | BD94: =IF(OR(BC94>$S$93,BC94=0),0,BC94+1) -> 8 | BE94: 9 | BF94: 10 | BG94: 11 | BH94: 12 | BI94: 13 | BJ94: 14 | BK94: 15 | BL94: 16 | BM94: 17 | BN94: 18 | BO94: 19 | BP94: 20 | BQ94: 21 | BR94: 0 | BS94: 0 | BT94: 0 | BU94: 0 | BV94: 0 | BW94: 0
A95: Nut wizard | B95: 75 | C95: =B95/'Cost Budgets'!$B$3 -> 1.549586777
A96: User Defined | B96: 0 | C96: 0
A98: Site Index | B98: Ave TC/year | C98: TC @ Year 5 | D98: Nut Prod. @ year 5
A99: Average | B99: =C99/5 -> 0.416 | C99: =C100+0.33 -> 2.08 | D99: ='Growth models'!F5 -> 18.3
A100: Fair | B100: =C100/5 -> 0.35 | C100: =C102+0.25 -> 1.75 | D100: ='Growth models'!F6 -> 8.7972
A101: Good | B101: =C101/5 -> 0.5 | C101: =C99+0.42 -> 2.5 | D101: ='Growth models'!F4 -> 23.742
A102: Poor | B102: =C102/5 -> 0.3 | C102: 1.5 | D102: ='Growth models'!F7 -> 3.3394
A105: Irrigation Systems | B105: Cost/Ac | C105: Cost/Tree | E105: Cost /acre/year
A106: Drip Irrigation | B106: 445.5 | C106: =B106/'Cost Budgets'!B91 -> 9.204545455
A107: Hand water | B107: =PV('Management Input'!$Q$6,60,-E107) -> 283.9393429 | C107: =B107/'Cost Budgets'!B91 -> 5.866515349 | E107: 15
A108: Sprinkler | B108: =PV('Management Input'!$Q$6,60,-E108) -> 189.2928953 | C108: =B108/'Cost Budgets'!B91 -> 3.911010232 | E108: 10
A109: None | B109: 0 | C109: =B109/'Cost Budgets'!B91 -> 0
A110: User Defined | B110: 0 | C110: =B110/'Cost Budgets'!B95 -> 0

Sheet Recommendations (hidden)
A1: RECOMMENDATIONS FOR CHINESE CHESTNUT MANAGEMENT
A2: All recommendations on this page are taken directly from: Hunt, K., M. Gold, W. Reid, and M.Warmund. 2009. Growing Chinese Chestnut in Missouri. Agroforestry in Action, AF1007-2008, University of Missouri Center for Agroforestry.
A5: Site Selection Chinese chestnut trees perform best in well-drained, loamy to sandy loam soils. Heavy, poorly-drained soils, or soils that have a perched water table during wet seasons promote Phytophthora root rot, a devastating disease of chestnuts. Soils should be slightly acid (pH 5.5-6.5). Most Chinese chestnuts can tolerate –20⁰ F temperatures when fully dormant, but it is strongly recommended that frost pockets be avoided as planting sites, to avoid injury to swelling buds in the spring. Site selection similar to the requirements for peaches, where summit and shoulder slopes are chosen to allow for good air drainage, would be the best choice to safeguard from winter and late spring frost injury. Chinese chestnut trees are rather drought tolerant once established, but ample water throughout the growing season promotes good tree growth and regular nut production. Maximum chestnut yields and nut size are obtained only under optimum soil water conditions, therefore irrigation is recommended. A lack of water during mid-August will result in smaller nut size, while a lack of water in September can prevent burrs from opening normally. Micro-irrigation techniques (drip and/or micro-sprinklers) are best suited for chestnut orchards.
P9: Management Input'!A1
A20: Orchard Design
P74: Management Input'!A1

Sheet Chemical costs
A1: Name | B1: Low App Rate/ac | C1: Hi App Rate/ac | D1: Ave Rate | E1: unit | F1: cost | G1: unit | H1: cost/acre | CD1: oz | CE1: pt | CF1: qt | CG1: gal
A2: Asana XL | B2: 4.8 | C2: 14.5 | D2: =AVERAGE(B2:C2) -> 9.65 | E2: oz | F2: 108.02 | G2: gal | H2: =D2*(HLOOKUP(E2,$CD$1:$CG$5,IF(G2="oz", 2, IF(G2="pt",3, IF(G2="qt", 4,5)))))*F2 -> 8.144216509 | CC2: oz | CD2: 1 | CE2: 16 | CF2: 32 | CG2: 128
A3: Confirm 2F | B3: 8 | C3: 16 | D3: =AVERAGE(B3:C3) -> 12 | E3: oz | H3: =D3*(HLOOKUP(E3,$CD$1:$CG$5,IF(G3="oz", 2, IF(G3="pt",3, IF(G3="qt", 4,5)))))*F3 -> 0 | CC3: pt | CD3: 0.0625 | CE3: 1 | CF3: 2 | CG3: 8
A4: Lorsban 4E/Nufos 4E | B4: 1.4 | C4: 5 | D4: 3.2 | E4: pt | F4: 41.14 | G4: gal | H4: 16.456 | CC4: qt | CD4: 0.0312 | CE4: 0.5 | CF4: 1 | CG4: 4
A5: Warrior | B5: 2.56 | C5: 5.12 | D5: 3.84 | E5: oz | F5: 2.45 | G5: oz | H5: 9.408 | CC5: gal | CD5: 0.007813 | CE5: 0.125 | CF5: 0.25 | CG5: 1
A6: Imidian 70WSB | B6: 1 | C6: 3.125 | D6: 2.0625 | E6: pt | F6: 9.81 | G6: pt | H6: =D6*F6 -> 20.233125
A7: Sevin 80W | B7: 2.5 | C7: 6.25 | D7: 4.375 | E7: pt | F7: 7.83 | G7: pt | H7: =D7*F7 -> 34.25625
A8: Dipel ES | B8: 1 | C8: 4 | D8: 2.5 | E8: pt | F8: 13.2 | G8: pt | H8: 33
A9: Javelin WG | B9: 0.25 | C9: 4 | D9: 2.125 | E9: pt | H9: 0
A10: Guthion 2L | B10: 6 | C10: 8 | D10: 7 | E10: pt | F10: 12.76 | G10: pt | H10: 89.32 | CD10: this is read: Vertical/horizontal
A11: Sniper 2E | B11: 1.5 | C11: 2.25 | D11: 1.875 | E11: pt | H11: 0
A12: Abound | B12: 9.2 | C12: 12.3 | D12: 10.75 | E12: oz | H12: 0 | CD12: i.e., oz/qt = 32
A13: Flint | B13: 2 | C13: 4 | D13: 3 | E13: oz | H13: 0
A14: Pristine | B14: 10.5 | C14: 14.5 | D14: 12.5 | E14: oz | H14: 0
A15: Syllit | B15: 4 | C15: 4 | D15: 4 | E15: pt | F15: 13.97 | G15: pt | H15: 55.88
A16: Roundup ™

Sheet Growth models
A2: Age | B2: 1 | C2: =B2+1 -> 2 | D2: =C2+1 -> 3 | E2: 4 | F2: 5 | G2: 6 | H2: 7 | I2: 8 | J2: 9 | K2: 10 | L2: 11 | M2: 12 | N2: 13 | O2: 14 | P2: 15 | Q2: 16 | R2: 17 | S2: 18 | T2: 19 | U2: 20 | V2: 21 | W2: 22 | X2: 23 | Y2: 24 | Z2: 25 | AA2: 26 | AB2: 27 | AC2: 28 | AD2: 29 | AE2: 30 | AF2: 31 | AG2: 32 | AH2: 33 | AI2: 34 | AJ2: 35 | AK2: 36 | AL2: 37 | AM2: 38 | AN2: 39 | AO2: 40 | AP2: 41 | AQ2: 42 | AR2: 43 | AS2: 44 | AT2: 45 | AU2: 46 | AV2: 47 | AW2: 48 | AX2: 49 | AY2: 50 | AZ2: 51 | BA2: 52 | BB2: 53 | BC2: 54 | BD2: 55 | BE2: 56 | BF2: 57 | BG2: 58 | BH2: =BG2+1 -> 59 | BI2: 60
A3: TC | B3: ='Financial Analysis'!D2 -> 0.5 | C3: ='Financial Analysis'!E2 -> 1 | D3: ='Financial Analysis'!F2 -> 1.5 | E3: ='Financial Analysis'!G2 -> 2 | F3: ='Financial Analysis'!H2 -> 2.5 | G3: ='Financial Analysis'!I2 -> 3 | H3: ='Financial Analysis'!J2 -> 3.5 | I3: ='Financial Analysis'!K2 -> 4 | J3: ='Financial Analysis'!L2 -> 4.5 | K3: ='Financial Analysis'!M2 -> 5 | L3: ='Financial Analysis'!N2 -> 5.5 | M3: ='Financial Analysis'!O2 -> 6 | N3: ='Financial Analysis'!P2 -> 6.5 | O3: ='Financial Analysis'!Q2 -> 7 | P3: ='Financial Analysis'!R2 -> 7.5 | Q3: ='Financial Analysis'!S2 -> 8 | R3: ='Financial Analysis'!T2 -> 8.452772423 | S3: ='Financial Analysis'!U2 -> 8.888657409 | T3: ='Financial Analysis'!V2 -> 9.30683024 | U3: ='Financial Analysis'!W2 -> 9.706745045 | V3: ='Financial Analysis'!X2 -> 10.11381917 | W3: ='Financial Analysis'!Y2 -> 10.50339594 | X3: ='Financial Analysis'!Z2 -> 10.90220725 | Y3: ='Financial Analysis'!AA2 -> 11.30997172 | Z3: ='Financial Analysis'!AB2 -> 11.70204308 | AA3: ='Financial Analysis'!AC2 -> 12.10463328 | AB3: ='Financial Analysis'!AD2 -> 12.49229276 | AC3: ='Financial Analysis'!AE2 -> 12.89172839 | AD3: ='Financial Analysis'!AF2 -> 13.30221928 | AE3: ='Financial Analysis'!AG2 -> 13.69939766 | AF3: ='Financial Analysis'!AH2 -> 14.1085496 | AG3: ='Financial Analysis'!AI2 -> 14.50506977 | AH3: ='Financial Analysis'!AJ2 -> 14.91425746 | AI3: ='Financial Analysis'!AK2 -> 15.31147523 | AJ3: ='Financial Analysis'!AL2 -> 15.72185885 | AK3: ='Financial Analysis'!AM2 -> 16.12091271 | AL3: ='Financial Analysis'!AN2 -> 16.5334618 | AM3: ='Financial Analysis'!AO2 -> 16.93529909 | AN3: ='Financial Analysis'!AP2 -> 17.32631568 | AO3: ='Financial Analysis'!AQ2 -> 17.73232387 | AP3: ='Financial Analysis'!AR2 -> 18.12811117 | AQ3: ='Financial Analysis'!AS2 -> 18.53880518 | AR3: ='Financial Analysis'!AT2 -> 18.93985664 | AS3: ='Financial Analysis'!AU2 -> 19.33118069 | AT3: ='Financial Analysis'!AV2 -> 19.73842456 | AU3: ='Financial Analysis'!AW2 -> 20.13649602 | AV3: ='Financial Analysis'!AX2 -> 20.55010683 | AW3: ='Financial Analysis'!AY2 -> 20.95508343 | AX3: ='Financial Analysis'!AZ2 -> 21.35134693 | AY3: ='Financial Analysis'!BA2 -> 21.76379085 | AZ3: ='Financial Analysis'!BB2 -> 22.16803862 | BA3: ='Financial Analysis'!BC2 -> 22.56402128 | BB3: ='Financial Analysis'!BD2 -> 22.97661669 | BC3: ='Financial Analysis'!BE2 -> 23.38144383 | BD3: ='Financial Analysis'!BF2 -> 23.77843952 | BE3: ='Financial Analysis'!BG2 -> 24.1923001 | BF3: ='Financial Analysis'!BH2 -> 24.5988078 | BG3: ='Financial Analysis'!BI2 -> 24.99790251 | BH3: ='Financial Analysis'!BJ2 -> 25.41395961 | BI3: ='Financial Analysis'!BK2 -> 25.82306603
A4: Nut yield (good) | B4: =0.0016*(B2^3)-0.2308*(B2^2)+10.338*B2-22.378 -> -12.2692 | C4: =0.0016*(C2^3)-0.2308*(C2^2)+10.338*C2-22.378 -> -2.6124 | D4: 6.602 | E4: 15.3836 | F4: 23.742 | G4: 31.6868 | H4: 39.2276 | I4: 46.374 | J4: 53.1356 | K4: 59.522 | L4: 65.5428 | M4: 71.2076 | N4: 76.526 | O4: 81.5076 | P4: 86.162 | Q4: 90.4988 | R4: 94.5276 | S4: 98.258 | T4: 101.6996 | U4: 104.862 | V4: 107.7548 | W4: 110.3876 | X4: 112.77 | Y4: 114.9116 | Z4: 116.822 | AA4: 118.5108 | AB4: 119.9876 | AC4: 121.262 | AD4: 122.3436 | AE4: 123.242 | AF4: 123.9668 | AG4: 124.5276 | AH4: 124.934 | AI4: 125.1956 | AJ4: 125.322 | AK4: 125.3228 | AL4: 125.2076 | AM4: 124.986 | AN4: 124.6676 | AO4: 124.262 | AP4: 123.7788 | AQ4: 123.2276 | AR4: 122.618 | AS4: 121.9596 | AT4: 121.262 | AU4: 120.5348 | AV4: 119.7876 | AW4: 119.03 | AX4: 118.2716 | AY4: 117.522 | AZ4: 116.7908 | BA4: 116.0876 | BB4: 115.422 | BC4: 114.8036 | BD4: 114.242 | BE4: 113.7468 | BF4: 113.3276 | BG4: 112.994 | BH4: 112.7556 | BI4: 112.622
A5: Nut yield (Average) | B5: =0.0012*(B2^3)-0.1701*(B2^2)+7.4625*(B2)-14.91 -> -7.6164 | C5: =0.0012*(C2^3)-0.1701*(C2^2)+7.4625*(C2)-14.91 -> -0.6558 | D5: 5.979 | E5: 12.2952 | F5: 18.3 | G5: 24.0006 | H5: 29.4042 | I5: 34.518 | J5: 39.3492 | K5: 43.905 | L5: 48.1926 | M5: 52.2192 | N5: 55.992 | O5: 59.5182 | P5: 62.805 | Q5: 65.8596 | R5: 68.6892 | S5: 71.301 | T5: 73.7022 | U5: 75.9 | V5: 77.9016 | W5: 79.7142 | X5: 81.345 | Y5: 82.8012 | Z5: 84.09 | AA5: 85.2186 | AB5: 86.1942 | AC5: 87.024 | AD5: 87.7152 | AE5: 88.275 | AF5: 88.7106 | AG5: 89.0292 | AH5: 89.238 | AI5: 89.3442 | AJ5: 89.355 | AK5: 89.2776 | AL5: 89.1192 | AM5: 88.887 | AN5: 88.5882 | AO5: 88.23 | AP5: 87.8196 | AQ5: 87.3642 | AR5: 86.871 | AS5: 86.3472 | AT5: 85.8 | AU5: 85.2366 | AV5: 84.6642 | AW5: 84.09 | AX5: 83.5212 | AY5: 82.965 | AZ5: 82.4286 | BA5: 81.9192 | BB5: 81.444 | BC5: 81.0102 | BD5: 80.625 | BE5: 80.2956 | BF5: 80.0292 | BG5: 79.833 | BH5: 79.7142 | BI5: 79.68
A6: Nut yield (Fair) | B6: =0.0007*(B2^3)-0.095*(B2^2)+4.1643*(B2)-9.7368 -> -5.6668 | C6: =0.0007*(C2^3)-0.095*(C2^2)+4.1643*(C2)-9.7368 -> -1.7826 | D6: 1.92 | E6: 5.4452 | F6: 8.7972 | G6: 11.9802 | H6: 14.9984 | I6: 17.856 | J6: 20.5572 | K6: 23.1062 | L6: 25.5072 | M6: 27.7644 | N6: 29.882 | O6: 31.8642 | P6: 33.7152 | Q6: 35.4392 | R6: 37.0404 | S6: 38.523 | T6: 39.8912 | U6: 41.1492 | V6: 42.3012 | W6: 43.3514 | X6: 44.304 | Y6: 45.1632 | Z6: 45.9332 | AA6: 46.6182 | AB6: 47.2224 | AC6: 47.75 | AD6: 48.2052 | AE6: 48.5922 | AF6: 48.9152 | AG6: 49.1784 | AH6: 49.386 | AI6: 49.5422 | AJ6: 49.6512 | AK6: 49.7172 | AL6: 49.7444 | AM6: 49.737 | AN6: 49.6992 | AO6: 49.6352 | AP6: 49.5492 | AQ6: 49.4454 | AR6: 49.328 | AS6: 49.2012 | AT6: 49.0692 | AU6: 48.9362 | AV6: 48.8064 | AW6: 48.684 | AX6: 48.5732 | AY6: 48.4782 | AZ6: 48.4032 | BA6: 48.3524 | BB6: 48.33 | BC6: 48.3402 | BD6: 48.3872 | BE6: 48.4752 | BF6: 48.6084 | BG6: 48.791 | BH6: 49.0272 | BI6: 49.3212
A7: Nut yield (Poor) | B7: =0.0003*(B2^3)-0.0471*(B2^2)+2.1122*(B2)-6.0816 -> -4.0162 | C7: -2.0432 | D7: -0.1608 | E7: 1.6328 | F7: 3.3394 | G7: 4.9608 | H7: 6.4988 | I7: 7.9552 | J7: 9.3318 | K7: 10.6304 | L7: 11.8528 | M7: 13.0008 | N7: 14.0762 | O7: 15.0808 | P7: 16.0164 | Q7: 16.8848 | R7: 17.6878 | S7: 18.4272 | T7: 19.1048 | U7: 19.7224 | V7: 20.2818 | W7: 20.7848 | X7: 21.2332 | Y7: 21.6288 | Z7: 21.9734 | AA7: 22.2688 | AB7: =0.0003*(AB2^3)-0.0471*(AB2^2)+2.1122*(AB2)-6.0816 -> 22.5168 | AC7: =0.0003*(AC2^3)-0.0471*(AC2^2)+2.1122*(AC2)-6.0816 -> 22.7192 | AD7: 22.8778 | AE7: 22.9944 | AF7: 23.0708 | AG7: 23.1088 | AH7: 23.1102 | AI7: 23.0768 | AJ7: 23.0104 | AK7: 22.9128 | AL7: 22.7858 | AM7: 22.6312 | AN7: 22.4508 | AO7: 22.2464 | AP7: 22.0198 | AQ7: 21.7728 | AR7: 21.5072 | AS7: 21.2248 | AT7: 20.9274 | AU7: 20.6168 | AV7: 20.2948 | AW7: 19.9632 | AX7: 19.6238 | AY7: 19.2784 | AZ7: 18.9288 | BA7: 18.5768 | BB7: 18.2242 | BC7: 17.8728 | BD7: 17.5244 | BE7: 17.1808 | BF7: 16.8438 | BG7: 16.5152 | BH7: 16.1968 | BI7: 15.8904
A32: ='Management Input'!E10 -> Good | B32: =IF($A$32="Good",B4,IF($A$32="Average",B5,IF($A$32="Fair",B6,B7))) -> -12.2692 | C32: =IF($A$32="Good",C4,IF($A$32="Average",C5,IF($A$32="Fair",C6,C7))) -> -2.6124 | D32: =IF($A$32="Good",D4,IF($A$32="Average",D5,IF($A$32="Fair",D6,D7))) -> 6.602 | E32: =IF($A$32="Good",E4,IF($A$32="Average",E5,IF($A$32="Fair",E6,E7))) -> 15.3836 | F32: 23.742 | G32: 31.6868 | H32: 39.2276 | I32: 46.374 | J32: 53.1356 | K32: 59.522 | L32: 65.5428 | M32: 71.2076 | N32: 76.526 | O32: 81.5076 | P32: 86.162 | Q32: 90.4988 | R32: 94.5276 | S32: 98.258 | T32: 101.6996 | U32: 104.862 | V32: 107.7548 | W32: 110.3876 | X32: 112.77 | Y32: 114.9116 | Z32: 116.822 | AA32: 118.5108 | AB32: 119.9876 | AC32: 121.262 | AD32: 122.3436 | AE32: 123.242 | AF32: 123.9668 | AG32: 124.5276 | AH32: 124.934 | AI32: 125.1956 | AJ32: 125.322 | AK32: 125.3228 | AL32: 125.2076 | AM32: 124.986 | AN32: 124.6676 | AO32: 124.262 | AP32: 123.7788 | AQ32: 123.2276 | AR32: 122.618 | AS32: 121.9596 | AT32: 121.262 | AU32: 120.5348 | AV32: 119.7876 | AW32: 119.03 | AX32: 118.2716 | AY32: 117.522 | AZ32: 116.7908 | BA32: 116.0876 | BB32: 115.422 | BC32: 114.8036 | BD32: 114.242 | BE32: 113.7468 | BF32: 113.3276 | BG32: 112.994 | BH32: 112.7556 | BI32: 112.622
B90: 1 | C90: 2 | D90: 3 | E90: 4 | F90: 5 | G90: 6 | H90: 7 | I90: 8 | J90: 9 | K90: 10 | L90: 11 | M90: 12 | N90: 13 | O90: 14 | P90: 15 | Q90: 16 | R90: 17 | S90: 18 | T90: 19 | U90: 20 | V90: 21 | W90: 22 | X90: 23 | Y90: 24 | Z90: 25 | AA90: 26 | AB90: 27 | AC90: 28 | AD90: 29 | AE90: 30 | AF90: 31 | AG90: 32 | AH90: 33 | AI90: 34 | AJ90: 35 | AK90: 36 | AL90: 37 | AM90: 38 | AN90: 39 | AO90: 40 | AP90: 41 | AQ90: 42 | AR90: 43 | AS90: 44 | AT90: 45 | AU90: 46 | AV90: 47 | AW90: 48 | AX90: 49 | AY90: 50 | AZ90: 51 | BA90: 52 | BB90: 53 | BC90: 54 | BD90: 55 | BE90: 56 | BF90: 57 | BG90: 58 | BH90: 59 | BI90: 60 | BJ90: 61 | BK90: 62 | BL90: 63 | BM90: 64 | BN90: 65 | BO90: 66 | BP90: 67 | BQ90: 68 | BR90: 69 | BS90: 70
A91: Good | B91: 0 | C91: 0 | D91: 7 | E91: 14 | F91: 21 | G91: 28 | H91: 35 | I91: 37 | J91: 44 | K91: 51 | L91: 58 | M91: 66 | N91: 73 | O91: 80 | P91: 87 | Q91: 94 | R91: 101 | S91: 108 | T91: 115 | U91: 120 | V91: =U91*1.001 -> 120.12 | W91: 120.24012 | X91: 120.3603601 | Y91: 120.4807205 | Z91: 120.6012012 | AA91: 120.7218024 | AB91: 120.8425242 | AC91: 120.9633667 | AD91: 121.0843301 | AE91: 121.2054144 | AF91: 121.3266198 | AG91: 121.4479465 | AH91: 121.5693944 | AI91: 121.6909638 | AJ91: 121.8126548 | AK91: 121.9344674 | AL91: 122.0564019 | AM91: 122.1784583 | AN91: 122.3006367 | AO91: 122.4229374 | AP91: 122.5453603 | AQ91: 122.6679057 | AR91: 122.7905736 | AS91: 122.9133642 | AT91: 123.0362775 | AU91: 123.1593138 | AV91: 123.2824731 | AW91: 123.4057556 | AX91: 123.5291613 | AY91: 123.6526905 | AZ91: 123.7763432 | BA91: 123.9001195 | BB91: 124.0240197 | BC91: 124.1480437 | BD91: 124.2721917 | BE91: 124.3964639 | BF91: 124.5208604 | BG91: 124.6453812 | BH91: 124.7700266 | BI91: 124.8947966 | BJ91: 125.0196914 | BK91: 125.1447111 | BL91: 125.2698558 | BM91: 125.3951257 | BN91: 125.5205208 | BO91: 125.6460413 | BP91: 125.7716874 | BQ91: 125.8974591 | BR91: 126.0233565 | BS91: 126.1493799
A92: Average | B92: 0 | C92: 0 | D92: 5 | E92: 10 | F92: 15 | G92: 20 | H92: 25 | I92: 30 | J92: 35 | K92: 40 | L92: 45 | M92: 50 | N92: 55 | O92: 60 | P92: 65 | Q92: 70 | R92: 75 | S92: 80 | T92: 85 | U92: 85.085 | V92: 85.170085 | W92: =V92*1.001 -> 85.25525508 | X92: =W92*1.001 -> 85.34051034 | Y92: =X92*1.001 -> 85.42585085 | Z92: =Y92*1.001 -> 85.5112767 | AA92: =Z92*1.001 -> 85.59678798 | AB92: =AA92*1.001 -> 85.68238477 | AC92: =AB92*1.001 -> 85.76806715 | AD92: =AC92*1.001 -> 85.85383522 | AE92: =AD92*1.001 -> 85.93968905 | AF92: =AE92*1.001 -> 86.02562874 | AG92: =AF92*1.001 -> 86.11165437 | AH92: =AG92*1.001 -> 86.19776603 | AI92: =AH92*1.001 -> 86.28396379 | AJ92: =AI92*1.001 -> 86.37024776 | AK92: =AJ92*1.001 -> 86.456618 | AL92: =AK92*1.001 -> 86.54307462 | AM92: =AL92*1.001 -> 86.6296177 | AN92: =AM92*1.001 -> 86.71624731 | AO92: =AN92*1.001 -> 86.80296356 | AP92: =AO92*1.001 -> 86.88976652 | AQ92: =AP92*1.001 -> 86.97665629 | AR92: =AQ92*1.001 -> 87.06363295 | AS92: =AR92*1.001 -> 87.15069658 | AT92: =AS92*1.001 -> 87.23784728 | AU92: =AT92*1.001 -> 87.32508512 | AV92: =AU92*1.001 -> 87.41241021 | AW92: =AV92*1.001 -> 87.49982262 | AX92: =AW92*1.001 -> 87.58732244 | AY92: =AX92*1.001 -> 87.67490976 | AZ92: =AY92*1.001 -> 87.76258467 | BA92: =AZ92*1.001 -> 87.85034726 | BB92: =BA92*1.001 -> 87.93819761 | BC92: =BB92*1.001 -> 88.0261358 | BD92: =BC92*1.001 -> 88.11416194 | BE92: =BD92*1.001 -> 88.2022761 | BF92: =BE92*1.001 -> 88.29047838 | BG92: =BF92*1.001 -> 88.37876886 | BH92: =BG92*1.001 -> 88.46714762 | BI92: =BH92*1.001 -> 88.55561477 | BJ92: =BI92*1.001 -> 88.64417039 | BK92: =BJ92*1.001 -> 88.73281456 | BL92: =BK92*1.001 -> 88.82154737 | BM92: =BL92*1.001 -> 88.91036892 | BN92: =BM92*1.001 -> 88.99927929 | BO92: =BN92*1.001 -> 89.08827857 | BP92: =BO92*1.001 -> 89.17736685 | BQ92: =BP92*1.001 -> 89.26654421 | BR92: =BQ92*1.001 -> 89.35581076 | BS92: =BR92*1.001 -> 89.44516657
A93: Fair | B93: 0 | C93: 0 | D93: 0 | E93: 3 | F93: 6 | G93: 9 | H93: 12 | I93: 15 | J93: 18 | K93: 21 | L93: 24 | M93: 27 | N93: 30 | O93: 33 | P93: 36 | Q93: 39 | R93: 40 | S93: 43 | T93: 44 | U93: 46 | V93: =U93*1.001 -> 46.046 | W93: =V93*1.001 -> 46.092046 | X93: =W93*1.001 -> 46.13813805 | Y93: =X93*1.001 -> 46.18427618 | Z93: =Y93*1.001 -> 46.23046046 | AA93: =Z93*1.001 -> 46.27669092 | AB93: =AA93*1.001 -> 46.32296761 | AC93: =AB93*1.001 -> 46.36929058 | AD93: =AC93*1.001 -> 46.41565987 | AE93: =AD93*1.001 -> 46.46207553 | AF93: =AE93*1.001 -> 46.50853761 | AG93: =AF93*1.001 -> 46.55504614 | AH93: =AG93*1.001 -> 46.60160119 | AI93: =AH93*1.001 -> 46.64820279 | AJ93: =AI93*1.001 -> 46.69485099 | AK93: =AJ93*1.001 -> 46.74154584 | AL93: =AK93*1.001 -> 46.78828739 | AM93: =AL93*1.001 -> 46.83507568 | AN93: =AM93*1.001 -> 46.88191075 | AO93: =AN93*1.001 -> 46.92879266 | AP93: =AO93*1.001 -> 46.97572146 | AQ93: =AP93*1.001 -> 47.02269718 | AR93: =AQ93*1.001 -> 47.06971987 | AS93: =AR93*1.001 -> 47.11678959 | AT93: =AS93*1.001 -> 47.16390638 | AU93: =AT93*1.001 -> 47.21107029 | AV93: =AU93*1.001 -> 47.25828136 | AW93: =AV93*1.001 -> 47.30553964 | AX93: =AW93*1.001 -> 47.35284518 | AY93: =AX93*1.001 -> 47.40019803 | AZ93: =AY93*1.001 -> 47.44759823 | BA93: =AZ93*1.001 -> 47.49504582 | BB93: =BA93*1.001 -> 47.54254087 | BC93: =BB93*1.001 -> 47.59008341 | BD93: =BC93*1.001 -> 47.63767349 | BE93: =BD93*1.001 -> 47.68531117 | BF93: =BE93*1.001 -> 47.73299648 | BG93: =BF93*1.001 -> 47.78072947 | BH93: =BG93*1.001 -> 47.8285102 | BI93: =BH93*1.001 -> 47.87633871 | BJ93: =BI93*1.001 -> 47.92421505 | BK93: =BJ93*1.001 -> 47.97213927 | BL93: =BK93*1.001 -> 48.02011141 | BM93: =BL93*1.001 -> 48.06813152 | BN93: =BM93*1.001 -> 48.11619965 | BO93: =BN93*1.001 -> 48.16431585 | BP93: =BO93*1.001 -> 48.21248017 | BQ93: =BP93*1.001 -> 48.26069265 | BR93: =BQ93*1.001 -> 48.30895334 | BS93: =BR93*1.001 -> 48.35726229
A94: Poor | B94: 0 | C94: 0 | D94: 0 | E94: 0 | F94: 1.5 | G94: 3 | H94: 4.5 | I94: 6 | J94: 7.5 | K94: 9 | L94: 10.5 | M94: 12 | N94: 13.5 | O94: 15 | P94: 16.5 | Q94: 18 | R94: 19.5 | S94: 21 | T94: 22.5 | U94: 23 | V94: 23.023 | W94: 23.046023 | X94: 23.06906902 | Y94: 23.09213809 | Z94: 23.11523023 | AA94: 23.13834546 | AB94: 23.16148381 | AC94: 23.18464529 | AD94: 23.20782993 | AE94: 23.23103776 | AF94: 23.2542688 | AG94: 23.27752307 | AH94: 23.30080059 | AI94: 23.3241014 | AJ94: 23.3474255 | AK94: 23.37077292 | AL94: 23.39414369 | AM94: 23.41753784 | AN94: 23.44095538 | AO94: 23.46439633 | AP94: 23.48786073 | AQ94: 23.51134859 | AR94: 23.53485994 | AS94: 23.5583948 | AT94: 23.58195319 | AU94: 23.60553515 | AV94: 23.62914068 | AW94: 23.65276982 | AX94: 23.67642259 | AY94: 23.70009901 | AZ94: 23.72379911 | BA94: 23.74752291 | BB94: 23.77127043 | BC94: 23.79504171 | BD94: 23.81883675 | BE94: 23.84265558 | BF94: 23.86649824 | BG94: 23.89036474 | BH94: 23.9142551 | BI94: 23.93816936 | BJ94: 23.96210753 | BK94: 23.98606963 | BL94: 24.0100557 | BM94: 24.03406576 | BN94: 24.05809983 | BO94: 24.08215792 | BP94: 24.10624008 | BQ94: 24.13034632 | BR94: 24.15447667 | BS94: 24.17863115
